Transaction,Payment Date,Supplier Name,Purpose,Department,Amount
5201334877,01/07/2020,HOMES FOR HARINGEY LIMITED,Buildings,Director of Finance,976818.87 
5201334889,01/07/2020,HUMANKIND,Buildings,Director of Adults & Health,126411.33 
5201334874,01/07/2020,MAGICARE LTD,Groceries Fruit Veg,Director of Adults & Health,61045.69 
5201334888,01/07/2020,HUMANKIND,Buildings,Director of Adults & Health,37705.00 
5201334900,01/07/2020,HOMES FOR HARINGEY LIMITED,Arms Length Mgmt Org,"Director of Regen,Planning & Devlop",31976.00 
5201334884,01/07/2020,VOICEABILITY ADVOCACY,Buildings,Director of Adults & Health,21002.25 
5201334898,01/07/2020,BLOOM PROCUREMENT SERVICES LTD,Consultancy,Director of Finance,18201.08 
5201334869,01/07/2020,POHWER,Groceries Fruit Veg,Director of Adults & Health,8996.03 
6000010341,01/07/2020,BETA DISTRIB (SOUTH) LTD T/A,Mailing,Director of Transformation & Resources,7551.50 
5201334809,01/07/2020,MARLBOROUGH HIGHWAYS LTD,PayContractr Infrast,Director of Finance,7425.65 
8002823138,01/07/2020,CAPITAL CITY COLLEGE GROUP CCCG,L.A. - Recoup Supp,Director of Children's Services,7330.00 
5201334872,01/07/2020,NORTHGATE PUBLIC SERVICES (UK) LTD,Groceries Fruit Veg,Director of Transformation & Resources,6000.00 
5201334879,01/07/2020,ALLEN LANE LTD,Buildings,Director of Finance,3531.25 
5201334852,01/07/2020,BEST PROPERTIES & INVESTMENTS LTD,R&M - Handbacks,"Director of Regen,Planning & Devlop",3283.00 
5201334875,01/07/2020,McBains Ltd,Groceries Fruit Veg,Director of Finance,2950.00 
5201334880,01/07/2020,ALLEN LANE LTD,Buildings,Director of Finance,2567.55 
5201334824,01/07/2020,LONDON BOROUGH OF CAMDEN,Maint & Support,Director of Transformation & Resources,2311.70 
5201334881,01/07/2020,ALLEN LANE LTD,Buildings,Director of Finance,2254.00 
8002822270,01/07/2020,EMBRACE UK COMMUNITY SUPPORT CENTRE,Priv Sec-- LBH & CCG,Director of Adults & Health,1960.00 
8002823595,01/07/2020,TRAIN2CARE ACADEMY,Prv Sctr Care Pkage,Director of Adults & Health,1827.00 
8002823640,01/07/2020,TRAIN2CARE ACADEMY,Prv Sctr Care Pkage,Director of Adults & Health,1827.00 
8002823649,01/07/2020,TRAIN2CARE ACADEMY,Prv Sctr Care Pkage,Director of Adults & Health,1827.00 
2500021551,01/07/2020,GRANT PAYMENTS,R&M - Day to Day Ext,Director of Environment & Neighbourhoods,1753.00 
8002823594,01/07/2020,TRAIN2CARE ACADEMY,Prv Sctr Care Pkage,Director of Adults & Health,1743.00 
5201334837,01/07/2020,ADAMS & STYLES,Prem - Leasing,"Director of Regen,Planning & Devlop",1681.33 
5201334858,01/07/2020,Redacted Personal Data,Prem - Leasing,"Director of Regen,Planning & Devlop",1681.33 
5201334860,01/07/2020,WARHAM SEYMOUR INVESTMENS LTD,Prem - Leasing,"Director of Regen,Planning & Devlop",1681.33 
5201334862,01/07/2020,HARTLEY DEVELOPMENTS LIMITED,Prem - Leasing,"Director of Regen,Planning & Devlop",1681.33 
5201334863,01/07/2020,HARTLEY DEVELOPMENTS LIMITED,Prem - Leasing,"Director of Regen,Planning & Devlop",1681.33 
5201334850,01/07/2020,Redacted Personal Data,Prem - Leasing,"Director of Regen,Planning & Devlop",1646.66 
8002823129,01/07/2020,HARINGTON SCHEME,L.A. - Recoup Supp,Director of Children's Services,1526.28 
5201334886,01/07/2020,SELBY ELITE AMATEUR BOXING CLUB,Buildings,Director of Environment & Neighbourhoods,1500.00 
5201334819,01/07/2020,PP RECRUITMENT LIMITED T/A PRINCIPA,Fees - Affidavits,Director of Environment & Neighbourhoods,1500.00 
5201334867,01/07/2020,PP RECRUITMENT LIMITED T/A PRINCIPA,Fees - Affidavits,Director of Environment & Neighbourhoods,1500.00 
5201334868,01/07/2020,PP RECRUITMENT LIMITED T/A PRINCIPA,Fees - Affidavits,Director of Environment & Neighbourhoods,1500.00 
5201334865,01/07/2020,PROPERTYNET (UK) LIMITED,Prem - Leasing,"Director of Regen,Planning & Devlop",1430.00 
5201334831,01/07/2020,ADAMS & STYLES,Prem - Leasing,"Director of Regen,Planning & Devlop",1365.52 
5201334849,01/07/2020,Redacted Personal Data,Prem - Leasing,"Director of Regen,Planning & Devlop",1365.00 
5201334853,01/07/2020,Redacted Personal Data,Prem - Leasing,"Director of Regen,Planning & Devlop",1365.00 
5201334864,01/07/2020,Redacted Personal Data,Prem - Leasing,"Director of Regen,Planning & Devlop",1365.00 
5201334844,01/07/2020,Redacted Personal Data,Prem - Leasing,"Director of Regen,Planning & Devlop",1360.00 
5201334832,01/07/2020,ADAMS & STYLES,Prem - Leasing,"Director of Regen,Planning & Devlop",1310.09 
5201334833,01/07/2020,ADAMS & STYLES,Prem - Leasing,"Director of Regen,Planning & Devlop",1310.09 
5201334841,01/07/2020,VMG CONSTRUCTION LTD,Prem - Leasing,"Director of Regen,Planning & Devlop",1235.00 
5201334839,01/07/2020,ARTEMI PROPERTIES,Prem - Leasing,"Director of Regen,Planning & Devlop",1200.33 
5201334840,01/07/2020,ARTEMI PROPERTIES,Prem - Leasing,"Director of Regen,Planning & Devlop",1200.33 
5201334866,01/07/2020,PP RECRUITMENT LIMITED T/A PRINCIPA,Fees - Affidavits,Director of Environment & Neighbourhoods,1200.00 
5201334873,01/07/2020,NORTHGATE PUBLIC SERVICES (UK) LTD,Groceries Fruit Veg,Director of Transformation & Resources,1200.00 
5201334827,01/07/2020,ADAMS & STYLES,Prem - Leasing,"Director of Regen,Planning & Devlop",1115.18 
5201334828,01/07/2020,ADAMS & STYLES,Prem - Leasing,"Director of Regen,Planning & Devlop",1115.18 
5201334829,01/07/2020,ADAMS & STYLES,Prem - Leasing,"Director of Regen,Planning & Devlop",1115.18 
5201334830,01/07/2020,ADAMS & STYLES,Prem - Leasing,"Director of Regen,Planning & Devlop",1115.18 
5201334834,01/07/2020,ADAMS & STYLES,Prem - Leasing,"Director of Regen,Planning & Devlop",1115.18 
5201334835,01/07/2020,ADAMS & STYLES,Prem - Leasing,"Director of Regen,Planning & Devlop",1115.18 
5201334836,01/07/2020,ADAMS & STYLES,Prem - Leasing,"Director of Regen,Planning & Devlop",1115.18 
5201334861,01/07/2020,RELY 100 PROPERTY MANAGEMENT,Prem - Leasing,"Director of Regen,Planning & Devlop",1106.47 
5201334838,01/07/2020,Redacted Personal Data,Prem - Leasing,"Director of Regen,Planning & Devlop",1105.00 
5201334842,01/07/2020,Redacted Personal Data,Prem - Leasing,"Director of Regen,Planning & Devlop",1105.00 
5201334843,01/07/2020,Redacted Personal Data,Prem - Leasing,"Director of Regen,Planning & Devlop",1105.00 
5201334845,01/07/2020,Redacted Personal Data,Prem - Leasing,"Director of Regen,Planning & Devlop",1105.00 
5201334846,01/07/2020,Redacted Personal Data,Prem - Leasing,"Director of Regen,Planning & Devlop",1105.00 
5201334847,01/07/2020,Redacted Personal Data,Prem - Leasing,"Director of Regen,Planning & Devlop",1105.00 
5201334848,01/07/2020,Redacted Personal Data,Prem - Leasing,"Director of Regen,Planning & Devlop",1105.00 
5201334851,01/07/2020,Redacted Personal Data,Prem - Leasing,"Director of Regen,Planning & Devlop",1105.00 
5201334857,01/07/2020,ORANGE STONE MANAGEMENT LIMITED,Prem - Leasing,"Director of Regen,Planning & Devlop",1105.00 
5201334859,01/07/2020,Redacted Personal Data,Prem - Leasing,"Director of Regen,Planning & Devlop",1105.00 
8002823650,01/07/2020,TRAIN2CARE ACADEMY,Prv Sctr Care Pkage,Director of Adults & Health,1007.75 
5201333188,01/07/2020,Redacted Personal Data,Prem - Leasing,"Director of Regen,Planning & Devlop",975.00 
5201334855,01/07/2020,ORANGE STONE MANAGEMENT LIMITED,Prem - Leasing,"Director of Regen,Planning & Devlop",964.16 
5201334878,01/07/2020,MYERS (IDEAL SUPPLIES) LTD,Buildings,"Director of Regen,Planning & Devlop",946.00 
5201334883,01/07/2020,ASSURED SECURITY LIMITED,Buildings,Director of Adults & Health,930.00 
8002823648,01/07/2020,TRAIN2CARE ACADEMY,Priv Sec-- LBH & CCG,Director of Adults & Health,893.02 
8002823598,01/07/2020,TRAIN2CARE ACADEMY,Priv Sec-- LBH & CCG,Director of Adults & Health,882.00 
8002823593,01/07/2020,TRAIN2CARE ACADEMY,Priv Sec-- LBH & CCG,Director of Adults & Health,855.00 
2500021552,01/07/2020,GRANT PAYMENTS,R&M - Day to Day Ext,Director of Environment & Neighbourhoods,819.00 
8002822269,01/07/2020,EMBRACE UK COMMUNITY SUPPORT CENTRE,Priv Sec-- LBH & CCG,Director of Adults & Health,787.50 
8002823648,01/07/2020,TRAIN2CARE ACADEMY,Prv Sctr Care Pkage,Director of Adults & Health,772.98 
8002823639,01/07/2020,TRAIN2CARE ACADEMY,Prv Sctr Care Pkage,Director of Adults & Health,770.00 
8002823642,01/07/2020,TRAIN2CARE ACADEMY,Prv Sctr Care Pkage,Director of Adults & Health,764.89 
8002823613,01/07/2020,TRAIN2CARE ACADEMY,Prv Sctr Care Pkage,Director of Adults & Health,735.00 
8002823596,01/07/2020,TRAIN2CARE ACADEMY,Priv Sec-- LBH & CCG,Director of Adults & Health,700.00 
5201334856,01/07/2020,ORANGE STONE MANAGEMENT LIMITED,Prem - Leasing,"Director of Regen,Planning & Devlop",693.33 
8002823615,01/07/2020,TRAIN2CARE ACADEMY,Priv Sec-- LBH & CCG,Director of Adults & Health,686.00 
8002823635,01/07/2020,TRAIN2CARE ACADEMY,Prv Sctr Care Pkage,Director of Adults & Health,686.00 
8002823645,01/07/2020,TRAIN2CARE ACADEMY,Prv Sctr Care Pkage,Director of Adults & Health,686.00 
5201334901,01/07/2020,ATTENTI LIMITED,Professional,Director of Children's Services,684.00 
5201334903,01/07/2020,ATTENTI LIMITED,Professional,Director of Children's Services,684.00 
5201334904,01/07/2020,ATTENTI LIMITED,Professional,Director of Children's Services,684.00 
5201334854,01/07/2020,ORANGE STONE MANAGEMENT LIMITED,Prem - Leasing,"Director of Regen,Planning & Devlop",682.50 
8002823638,01/07/2020,TRAIN2CARE ACADEMY,Prv Sctr Care Pkage,Director of Adults & Health,658.00 
5201334876,01/07/2020,POWERSOLVE (UK) LTD,Groceries Fruit Veg,Director of Children's Services,637.00 
8002823646,01/07/2020,TRAIN2CARE ACADEMY,Priv Sec-- LBH & CCG,Director of Adults & Health,630.00 
8002823950,01/07/2020,PRIMERA ASSISTED LIVING LIMITED T/A,Priv Sec-- LBH & CCG,Director of Adults & Health,577.50 
8002823644,01/07/2020,TRAIN2CARE ACADEMY,Prv Sctr Care Pkage,Director of Adults & Health,565.25 
8002823652,01/07/2020,TRAIN2CARE ACADEMY,Prv Sctr Care Pkage,Director of Adults & Health,560.00 
8002823889,01/07/2020,STERLING STANDARD CARE GROUP,Prv Sctr Care Pkage,Director of Adults & Health,553.00 
8002823641,01/07/2020,TRAIN2CARE ACADEMY,Priv Sec-- LBH & CCG,Director of Adults & Health,490.00 
8002823636,01/07/2020,TRAIN2CARE ACADEMY,Prv Sctr Care Pkage,Director of Adults & Health,490.00 
8002823651,01/07/2020,TRAIN2CARE ACADEMY,Prv Sctr Care Pkage,Director of Adults & Health,490.00 
8002823863,01/07/2020,STERLING STANDARD CARE GROUP,Prv Sctr Care Pkage,Director of Adults & Health,483.75 
5201334899,01/07/2020,CYPRIOT COMMUNITY CENTRE,Room Hire,Director of Children's Services,480.00 
6000010345,01/07/2020,PREMIER PRINT & PROMOTIONS LIMITED,Printing - Internal,Director of Transformation & Resources,476.00 
8002823882,01/07/2020,STERLING STANDARD CARE GROUP,Prv Sctr Care Pkage,Director of Adults & Health,462.00 
5201334902,01/07/2020,ATTENTI LIMITED,Professional,Director of Children's Services,418.00 
5201334905,01/07/2020,ATTENTI LIMITED,Professional,Director of Children's Services,399.00 
8002822268,01/07/2020,EMBRACE UK COMMUNITY SUPPORT CENTRE,Prv Sctr Care Pkage,Director of Adults & Health,392.00 
8002823634,01/07/2020,TRAIN2CARE ACADEMY,Prv Sctr Care Pkage,Director of Adults & Health,385.00 
1900872661,01/07/2020,ONE TIME,Vol Sec - Add Supp,Director of Children's Services,360.00 
8002823614,01/07/2020,TRAIN2CARE ACADEMY,Prv Sctr Care Pkage,Director of Adults & Health,343.00 
8002823597,01/07/2020,TRAIN2CARE ACADEMY,Prv Sctr Care Pkage,Director of Adults & Health,336.00 
8002822262,01/07/2020,EMBRACE UK COMMUNITY SUPPORT CENTRE,Priv Sec-- LBH & CCG,Director of Adults & Health,332.50 
1900872663,01/07/2020,SCOTTISH POWER,Energy - Gas,"Director of Regen,Planning & Devlop",306.22 
8002823637,01/07/2020,TRAIN2CARE ACADEMY,Priv Sec-- LBH & CCG,Director of Adults & Health,294.00 
8002823616,01/07/2020,TRAIN2CARE ACADEMY,Prv Sctr Care Pkage,Director of Adults & Health,294.00 
8002823617,01/07/2020,TRAIN2CARE ACADEMY,Prv Sctr Care Pkage,Director of Adults & Health,294.00 
8002823633,01/07/2020,TRAIN2CARE ACADEMY,Prv Sctr Care Pkage,Director of Adults & Health,290.02 
5201334882,01/07/2020,ASSURED SECURITY LIMITED,Buildings,Director of Adults & Health,287.50 
8002823852,01/07/2020,STERLING STANDARD CARE GROUP,Prv Sctr Care Pkage,Director of Adults & Health,273.00 
8002823643,01/07/2020,TRAIN2CARE ACADEMY,Prv Sctr Care Pkage,Director of Adults & Health,266.00 
8002824074,01/07/2020,TRAIN2CARE ACADEMY,Prv Sctr Care Pkage,Director of Adults & Health,232.00 
5201334825,01/07/2020,PRESCOTT THOMAS LTD,Groceries Fruit Veg,Director of Children's Services,227.78 
5201334885,01/07/2020,Kiran Curtis Limited,Buildings,Director of Finance,220.00 
5201334826,01/07/2020,PRESCOTT THOMAS LTD,Groceries Fruit Veg,Director of Children's Services,217.73 
8002823647,01/07/2020,TRAIN2CARE ACADEMY,Prv Sctr Care Pkage,Director of Adults & Health,217.50 
6000010342,01/07/2020,BETA DISTRIB (SOUTH) LTD T/A,Printing - Internal,Director of Transformation & Resources,175.00 
6000010343,01/07/2020,BETA DISTRIB (SOUTH) LTD T/A,Printing - Internal,Director of Transformation & Resources,175.00 
6000010344,01/07/2020,BETA DISTRIB (SOUTH) LTD T/A,Printing - Internal,Director of Transformation & Resources,175.00 
8002823881,01/07/2020,STERLING STANDARD CARE GROUP,Priv Sec-- LBH & CCG,Director of Adults & Health,164.50 
8002822256,01/07/2020,EMBRACE UK COMMUNITY SUPPORT CENTRE,Prv Sctr Care Pkage,Director of Adults & Health,157.30 
5201334870,01/07/2020,ORAMIS,Groceries Fruit Veg,Director of Environment & Neighbourhoods,146.80 
5201334871,01/07/2020,ORAMIS,Groceries Fruit Veg,Director of Environment & Neighbourhoods,146.80 
1900872653,01/07/2020,NEWLYN PLC,Fees - Baliffs,Director of Transformation & Resources,140.00 
8002823643,01/07/2020,TRAIN2CARE ACADEMY,Priv Sec-- LBH & CCG,Director of Adults & Health,126.00 
1900872662,01/07/2020,SOUTHERN ELECTRIC,Energy - Electric,"Director of Regen,Planning & Devlop",114.62 
8002823934,01/07/2020,PRIMERA ASSISTED LIVING LIMITED T/A,Priv Sec-- LBH & CCG,Director of Adults & Health,105.00 
1900872665,01/07/2020,SCOTTISH POWER,Energy - Gas,"Director of Regen,Planning & Devlop",86.30 
1900872652,01/07/2020,WILKIN CHAPMAN LLP,Fees Legal External,Director of Transformation & Resources,85.00 
8002822258,01/07/2020,EMBRACE UK COMMUNITY SUPPORT CENTRE,Priv Sec-- LBH & CCG,Director of Adults & Health,84.00 
5201334891,01/07/2020,CYPRIOT COMMUNITY CENTRE,Room Hire,Director of Children's Services,80.00 
5201334894,01/07/2020,CYPRIOT COMMUNITY CENTRE,Room Hire,Director of Children's Services,80.00 
5201334895,01/07/2020,CYPRIOT COMMUNITY CENTRE,Room Hire,Director of Children's Services,80.00 
5201334896,01/07/2020,CYPRIOT COMMUNITY CENTRE,Room Hire,Director of Children's Services,80.00 
5201334897,01/07/2020,CYPRIOT COMMUNITY CENTRE,Room Hire,Director of Children's Services,80.00 
5201334906,01/07/2020,CYPRIOT COMMUNITY CENTRE,Room Hire,Director of Children's Services,80.00 
5201334907,01/07/2020,CYPRIOT COMMUNITY CENTRE,Room Hire,Director of Children's Services,80.00 
8002823880,01/07/2020,STERLING STANDARD CARE GROUP,Priv Sec-- LBH & CCG,Director of Adults & Health,77.00 
1900872664,01/07/2020,SCOTTISH POWER,Energy - Gas,"Director of Regen,Planning & Devlop",64.18 
5201334887,01/07/2020,3 CUBED LTD,Buildings,Director of Children's Services,54.05 
8002823844,01/07/2020,STERLING STANDARD CARE GROUP,Priv Sec-- LBH & CCG,Director of Adults & Health,52.50 
8002823875,01/07/2020,STERLING STANDARD CARE GROUP,Priv Sec-- LBH & CCG,Director of Adults & Health,49.00 
1900872654,01/07/2020,REVENTUS LIMITED,Fees - Baliffs,Director of Transformation & Resources,37.46 
5201333672,01/07/2020,BLOOM PROCUREMENT SERVICES LTD,Consultancy,Director of Finance,-14318.00 
1900872694,02/07/2020,NPOWER LIMITED,Energy - Electric,"Director of Regen,Planning & Devlop",79018.24 
1900872695,02/07/2020,NPOWER LIMITED,Energy - Electric,"Director of Regen,Planning & Devlop",69108.75 
5201334943,02/07/2020,ENGIE REGENERATION LIMITED,Business,Director of Finance,48077.00 
1900872693,02/07/2020,NPOWER LIMITED,Energy - Electric,"Director of Regen,Planning & Devlop",46880.46 
1900872689,02/07/2020,NPOWER LIMITED,Energy - Electric,"Director of Regen,Planning & Devlop",37772.12 
1900872690,02/07/2020,NPOWER LIMITED,Energy - Electric,"Director of Regen,Planning & Devlop",36915.08 
1900872692,02/07/2020,NPOWER LIMITED,Energy - Electric,"Director of Regen,Planning & Devlop",30668.47 
1900872691,02/07/2020,NPOWER LIMITED,Energy - Electric,"Director of Regen,Planning & Devlop",27951.35 
8002822249,02/07/2020,LINK COMMUNITY CARE LTD,Prv Sctr Care Pkage,Director of Adults & Health,9401.28 
8002824156,02/07/2020,Ambient Support Limited,Prv Sctr Care Pkage,Director of Adults & Health,9032.00 
8002823754,02/07/2020,KAMINO HOMECARE LTD,Priv Sec-- LBH & CCG,Director of Adults & Health,8743.50 
5201334947,02/07/2020,CARERS FIRST,Business,Director of Adults & Health,7231.23 
5201334952,02/07/2020,ADAM HTT LTD T/A ADAM,Business,Director of Children's Services,6670.00 
1900872677,02/07/2020,NPOWER LIMITED,Energy - Electric,"Director of Regen,Planning & Devlop",6195.73 
1900872678,02/07/2020,NPOWER LIMITED,Energy - Electric,"Director of Regen,Planning & Devlop",5817.79 
8002823732,02/07/2020,KAMINO HOMECARE LTD,Prv Sctr Care Pkage,Director of Adults & Health,5278.96 
5201334913,02/07/2020,KEITH IBBETSON CONSULTING LTD,Business,Director of Children's Services,5000.00 
5201334948,02/07/2020,PLM OFFICE SOLUTION,Business,Director of Finance,4605.49 
8002818113,02/07/2020,SPRINGDENE NURSING & CARE HOMES LTD,Priv - Res Long,Director of Adults & Health,4408.00 
8002824445,02/07/2020,LONDON CARE PLC,Prv Sctr Care Pkage,Director of Adults & Health,4262.60 
8002823758,02/07/2020,KAMINO HOMECARE LTD,Prv Sctr Care Pkage,Director of Adults & Health,4228.00 
8002818058,02/07/2020,SPRINGDENE NURSING & CARE HOMES LTD,Priv - Res Long,Director of Adults & Health,4020.00 
8002818168,02/07/2020,SPRINGDENE NURSING & CARE HOMES LTD,Priv - Res Long,Director of Adults & Health,4020.00 
8002824172,02/07/2020,Ambient Support Limited,Prv Sctr Care Pkage,Director of Adults & Health,3986.40 
8002818151,02/07/2020,SPRINGDENE NURSING & CARE HOMES LTD,Priv - Res Long,Director of Adults & Health,3900.00 
8002818171,02/07/2020,SPRINGDENE NURSING & CARE HOMES LTD,Priv - Res Long,Director of Adults & Health,3900.00 
8002818146,02/07/2020,SPRINGDENE NURSING & CARE HOMES LTD,Priv - Res Long,Director of Adults & Health,3720.00 
1900872674,02/07/2020,Redacted Personal Data,Fees Legal External,Assistant Dir Corporate Governance,3500.00 
8002824152,02/07/2020,OASIS CARE & TRAINING AGENCY,Prv Sctr Care Pkage,Director of Children's Services,3496.80 
5201334951,02/07/2020,JOHN ROWAN AND PARTNERS LLP,Business,Director of Finance,3208.00 
8002818102,02/07/2020,SPRINGDENE NURSING & CARE HOMES LTD,Priv - Res Long,Director of Adults & Health,3000.00 
8002818156,02/07/2020,SPRINGDENE NURSING & CARE HOMES LTD,Priv - Res Long,Director of Adults & Health,3000.00 
8002815053,02/07/2020,NORTH LONDON ASIAN CARE,Prv Sctr Care Pkage,Director of Adults & Health,2983.65 
8002824415,02/07/2020,LONDON CARE PLC,Prv Sctr Care Pkage,Director of Adults & Health,2908.20 
8002824416,02/07/2020,LONDON CARE PLC,Prv Sctr Care Pkage,Director of Adults & Health,2834.72 
8002824234,02/07/2020,CARTER BROWN - THE EXPERT SERVICE L,SS Child-Assessments,Director of Children's Services,2800.00 
8002824200,02/07/2020,Redacted Personal Data,Empl&Train-SS Client,Director of Children's Services,2457.00 
8002824273,02/07/2020,Resources for Autism,Prv Sctr Care Pkage,Director of Adults & Health,2400.00 
8002823720,02/07/2020,KAMINO HOMECARE LTD,Prv Sctr Care Pkage,Director of Adults & Health,2352.00 
8002824293,02/07/2020,Resources for Autism,Prv Sctr Care Pkage,Director of Adults & Health,2280.00 
8002823553,02/07/2020,NORTH LONDON ASIAN CARE,Prv Sctr Care Pkage,Director of Adults & Health,2253.32 
5201334944,02/07/2020,RIDGE AND PARTNERS LLP,Business,Director of Finance,2250.00 
8002824235,02/07/2020,CARTER BROWN - THE EXPERT SERVICE L,SS Child-Assessments,Director of Children's Services,2240.00 
8002824376,02/07/2020,ONE HOUSING GROUP LTD,Prv Sctr Care Pkage,Director of Adults & Health,2208.32 
5201334945,02/07/2020,RIDGE AND PARTNERS LLP,Business,Director of Finance,2090.00 
8002824402,02/07/2020,LONDON CARE PLC,Prv Sctr Care Pkage,Director of Adults & Health,2079.40 
8002824436,02/07/2020,LONDON CARE PLC,Prv Sctr Care Pkage,Director of Adults & Health,2072.00 
8002824394,02/07/2020,LONDON CARE PLC,Prv Sctr Care Pkage,Director of Adults & Health,2064.60 
8002823718,02/07/2020,KAMINO HOMECARE LTD,Prv Sctr Care Pkage,Director of Adults & Health,2016.00 
8002823738,02/07/2020,KAMINO HOMECARE LTD,Prv Sctr Care Pkage,Director of Adults & Health,1960.00 
8002823756,02/07/2020,KAMINO HOMECARE LTD,Prv Sctr Care Pkage,Director of Adults & Health,1960.00 
8002824463,02/07/2020,CONNIFERS CARE LIMITED,Prv Sctr Care Pkage,Director of Adults & Health,1900.00 
8002824434,02/07/2020,LONDON CARE PLC,Prv Sctr Care Pkage,Director of Adults & Health,1809.15 
8002823740,02/07/2020,KAMINO HOMECARE LTD,Prv Sctr Care Pkage,Director of Adults & Health,1764.00 
5201334925,02/07/2020,Redacted Personal Data,Prem - Leasing,"Director of Regen,Planning & Devlop",1681.33 
5201334919,02/07/2020,Redacted Personal Data,Prem - Leasing,"Director of Regen,Planning & Devlop",1560.00 
8002823733,02/07/2020,KAMINO HOMECARE LTD,Prv Sctr Care Pkage,Director of Adults & Health,1530.00 
8002824173,02/07/2020,OASIS CARE & TRAINING AGENCY,Prv Sctr Care Pkage,Director of Children's Services,1522.80 
5201334954,02/07/2020,GC FIRE PROTECTION LIMITED,Maintenance,Director of Children's Services,1511.82 
5201334958,02/07/2020,NAPCLAN RETAIL LIMITED T/A PHARMOCA,Drugs & Pharmacy,Director of Adults & Health,1509.60 
8002824427,02/07/2020,LONDON CARE PLC,Priv Sec-- LBH & CCG,Director of Adults & Health,1491.00 
8002824097,02/07/2020,ST GEORGES HOME CARE LTD,Prv Sctr Care Pkage,Director of Adults & Health,1449.00 
8002824452,02/07/2020,NORTH LONDON ASIAN CARE,Prv Sctr Care Pkage,Director of Adults & Health,1428.00 
8002824437,02/07/2020,LONDON CARE PLC,Prv Sctr Care Pkage,Director of Adults & Health,1420.80 
5201334937,02/07/2020,Redacted Personal Data,Prem - Leasing,"Director of Regen,Planning & Devlop",1404.00 
5201334933,02/07/2020,Redacted Personal Data,Prem - Leasing,"Director of Regen,Planning & Devlop",1400.01 
5201334930,02/07/2020,MAGIC HOMES LTD,Prem - Leasing,"Director of Regen,Planning & Devlop",1399.66 
5201334921,02/07/2020,CLASS ESTATES LIMITED,Prem - Leasing,"Director of Regen,Planning & Devlop",1365.52 
5201334917,02/07/2020,Redacted Personal Data,Prem - Leasing,"Director of Regen,Planning & Devlop",1365.00 
5201334920,02/07/2020,Redacted Personal Data,Prem - Leasing,"Director of Regen,Planning & Devlop",1365.00 
5201334924,02/07/2020,Redacted Personal Data,Prem - Leasing,"Director of Regen,Planning & Devlop",1365.00 
5201334929,02/07/2020,Redacted Personal Data,Prem - Leasing,"Director of Regen,Planning & Devlop",1365.00 
5201334931,02/07/2020,Redacted Personal Data,Prem - Leasing,"Director of Regen,Planning & Devlop",1365.00 
5201334938,02/07/2020,Redacted Personal Data,Prem - Leasing,"Director of Regen,Planning & Devlop",1365.00 
5201334914,02/07/2020,ADAMS & STYLES,Prem - Leasing,"Director of Regen,Planning & Devlop",1310.09 
5201334927,02/07/2020,Redacted Personal Data,Prem - Leasing,"Director of Regen,Planning & Devlop",1300.00 
8002824149,02/07/2020,Alpha Care Specialists Ltd,Prv Sctr Care Pkage,Director of Adults & Health,1299.16 
8002824417,02/07/2020,LONDON CARE PLC,Prv Sctr Care Pkage,Director of Adults & Health,1243.20 
5201334912,02/07/2020,IG9 LTD,Repair & Maintenance,Director of Finance,1201.60 
8002824237,02/07/2020,Resources for Autism,Prv Sctr Care Pkage,Director of Adults & Health,1200.00 
8002824240,02/07/2020,Resources for Autism,Prv Sctr Care Pkage,Director of Adults & Health,1200.00 
5201334918,02/07/2020,STATEBOND LTD T/A HORNSEY AGENCIES,Prem - Leasing,"Director of Regen,Planning & Devlop",1191.66 
8002824428,02/07/2020,LONDON CARE PLC,Prv Sctr Care Pkage,Director of Adults & Health,1176.00 
5201334923,02/07/2020,Redacted Personal Data,Prem - Leasing,"Director of Regen,Planning & Devlop",1148.33 
5201334936,02/07/2020,Redacted Personal Data,Prem - Leasing,"Director of Regen,Planning & Devlop",1139.66 
8002824447,02/07/2020,LONDON CARE PLC,Prv Sctr Care Pkage,Director of Adults & Health,1139.60 
8002815033,02/07/2020,NORTH LONDON ASIAN CARE,Prv Sctr Care Pkage,Director of Adults & Health,1135.96 
8002824441,02/07/2020,LONDON CARE PLC,Prv Sctr Care Pkage,Director of Adults & Health,1124.80 
5201334922,02/07/2020,CLASS ESTATES LIMITED,Prem - Leasing,"Director of Regen,Planning & Devlop",1105.00 
5201334926,02/07/2020,MEERA DEVELOPMENTS LTD,Prem - Leasing,"Director of Regen,Planning & Devlop",1105.00 
5201334932,02/07/2020,Redacted Personal Data,Prem - Leasing,"Director of Regen,Planning & Devlop",1105.00 
5201334934,02/07/2020,Redacted Personal Data,Prem - Leasing,"Director of Regen,Planning & Devlop",1105.00 
5201334935,02/07/2020,Redacted Personal Data,Prem - Leasing,"Director of Regen,Planning & Devlop",1105.00 
8002824433,02/07/2020,LONDON CARE PLC,Prv Sctr Care Pkage,Director of Adults & Health,1036.00 
1900872676,02/07/2020,ONE TIME,Fees Legal External,Assistant Dir Corporate Governance,1000.00 
8002824238,02/07/2020,Resources for Autism,Prv Sctr Care Pkage,Director of Adults & Health,1000.00 
8002822239,02/07/2020,LINK COMMUNITY CARE LTD,Prv Sctr Care Pkage,Director of Adults & Health,980.00 
8002823750,02/07/2020,KAMINO HOMECARE LTD,Prv Sctr Care Pkage,Director of Adults & Health,980.00 
8002824424,02/07/2020,LONDON CARE PLC,Prv Sctr Care Pkage,Director of Adults & Health,980.00 
8002824401,02/07/2020,LONDON CARE PLC,Prv Sctr Care Pkage,Director of Adults & Health,932.40 
5201334928,02/07/2020,Redacted Personal Data,Prem - Leasing,"Director of Regen,Planning & Devlop",897.00 
5201334916,02/07/2020,Redacted Personal Data,Prem - Leasing,"Director of Regen,Planning & Devlop",888.33 
8002823713,02/07/2020,KAMINO HOMECARE LTD,Prv Sctr Care Pkage,Director of Adults & Health,882.00 
8002824448,02/07/2020,LONDON CARE PLC,Prv Sctr Care Pkage,Director of Adults & Health,880.88 
8002824396,02/07/2020,LONDON CARE PLC,Prv Sctr Care Pkage,Director of Adults & Health,880.34 
8002823556,02/07/2020,NORTH LONDON ASIAN CARE,Prv Sctr Care Pkage,Director of Adults & Health,861.88 
8002823753,02/07/2020,KAMINO HOMECARE LTD,Prv Sctr Care Pkage,Director of Adults & Health,840.00 
8002824396,02/07/2020,LONDON CARE PLC,Priv Sec-- LBH & CCG,Director of Adults & Health,832.76 
8002824409,02/07/2020,LONDON CARE PLC,Prv Sctr Care Pkage,Director of Adults & Health,828.80 
8002824431,02/07/2020,LONDON CARE PLC,Prv Sctr Care Pkage,Director of Adults & Health,828.80 
5201334915,02/07/2020,Redacted Personal Data,Prem - Leasing,"Director of Regen,Planning & Devlop",823.33 
8002824460,02/07/2020,CONNIFERS CARE LIMITED,Prv Sctr Care Pkage,Director of Adults & Health,816.00 
8002824462,02/07/2020,CONNIFERS CARE LIMITED,Prv Sctr Care Pkage,Director of Adults & Health,816.00 
8002823757,02/07/2020,KAMINO HOMECARE LTD,Prv Sctr Care Pkage,Director of Adults & Health,812.00 
8002824153,02/07/2020,SPRINGCARE SUPPORT SERVICES,Prv Sctr Care Pkage,Director of Adults & Health,812.00 
8002824432,02/07/2020,LONDON CARE PLC,Prv Sctr Care Pkage,Director of Adults & Health,810.30 
5201334946,02/07/2020,KEEGANS LTD,Business,Director of Finance,797.00 
8002823726,02/07/2020,KAMINO HOMECARE LTD,Prv Sctr Care Pkage,Director of Adults & Health,784.00 
8002824107,02/07/2020,ST GEORGES HOME CARE LTD,Prv Sctr Care Pkage,Director of Adults & Health,770.00 
8002824406,02/07/2020,LONDON CARE PLC,Prv Sctr Care Pkage,Director of Adults & Health,751.10 
8002824407,02/07/2020,LONDON CARE PLC,Prv Sctr Care Pkage,Director of Adults & Health,742.50 
8002822241,02/07/2020,LINK COMMUNITY CARE LTD,Prv Sctr Care Pkage,Director of Adults & Health,742.24 
8002824454,02/07/2020,OAKMONT SOCIAL EDUCATION,SS Child - Out of Sc,Director of Children's Services,740.00 
8002823730,02/07/2020,KAMINO HOMECARE LTD,Prv Sctr Care Pkage,Director of Adults & Health,735.00 
8002823721,02/07/2020,KAMINO HOMECARE LTD,Prv Sctr Care Pkage,Director of Adults & Health,726.00 
8002824400,02/07/2020,LONDON CARE PLC,Prv Sctr Care Pkage,Director of Adults & Health,725.20 
8002824443,02/07/2020,LONDON CARE PLC,Prv Sctr Care Pkage,Director of Adults & Health,725.20 
8002824100,02/07/2020,ST GEORGES HOME CARE LTD,Prv Sctr Care Pkage,Director of Adults & Health,710.50 
8002824119,02/07/2020,THE CAMPHILL VILLAGE TRUST,Vol Sect - Care Pk,Director of Adults & Health,692.84 
8002824120,02/07/2020,THE CAMPHILL VILLAGE TRUST,Vol Sect - Care Pk,Director of Adults & Health,692.84 
8002824121,02/07/2020,THE CAMPHILL VILLAGE TRUST,Vol Sect - Care Pk,Director of Adults & Health,692.84 
8002823716,02/07/2020,KAMINO HOMECARE LTD,Prv Sctr Care Pkage,Director of Adults & Health,686.00 
8002823722,02/07/2020,KAMINO HOMECARE LTD,Prv Sctr Care Pkage,Director of Adults & Health,686.00 
8002823759,02/07/2020,KAMINO HOMECARE LTD,Prv Sctr Care Pkage,Director of Adults & Health,686.00 
8002824096,02/07/2020,ST GEORGES HOME CARE LTD,Prv Sctr Care Pkage,Director of Adults & Health,685.50 
8002823719,02/07/2020,KAMINO HOMECARE LTD,Priv Sec-- LBH & CCG,Director of Adults & Health,645.00 
8002823735,02/07/2020,KAMINO HOMECARE LTD,Prv Sctr Care Pkage,Director of Adults & Health,644.00 
8002824414,02/07/2020,LONDON CARE PLC,Prv Sctr Care Pkage,Director of Adults & Health,643.80 
8002824377,02/07/2020,ONE HOUSING GROUP LTD,Prv Sctr Care Pkage,Director of Adults & Health,640.68 
8002823731,02/07/2020,KAMINO HOMECARE LTD,Prv Sctr Care Pkage,Director of Adults & Health,630.00 
8002824440,02/07/2020,LONDON CARE PLC,Prv Sctr Care Pkage,Director of Adults & Health,621.60 
8002822245,02/07/2020,LINK COMMUNITY CARE LTD,Prv Sctr Care Pkage,Director of Adults & Health,602.00 
8002824450,02/07/2020,LONDON CARE PLC,Prv Sctr Care Pkage,Director of Adults & Health,592.00 
5201334953,02/07/2020,Redacted Personal Data,Business,Director of Children's Services,591.16 
8002823739,02/07/2020,KAMINO HOMECARE LTD,Prv Sctr Care Pkage,Director of Adults & Health,588.00 
8002824380,02/07/2020,UNITED CARE UK LTD,Prv Sctr Care Pkage,Director of Adults & Health,588.00 
8002824390,02/07/2020,LONDON CARE PLC,Prv Sctr Care Pkage,Director of Adults & Health,577.20 
1900872675,02/07/2020,LOVATT CONSULTING (LONDON) LTD,Disbursements,Assistant Dir Corporate Governance,557.50 
8002824095,02/07/2020,ST GEORGES HOME CARE LTD,Prv Sctr Care Pkage,Director of Adults & Health,555.42 
8002824391,02/07/2020,LONDON CARE PLC,Prv Sctr Care Pkage,Director of Adults & Health,532.80 
8002823715,02/07/2020,KAMINO HOMECARE LTD,Prv Sctr Care Pkage,Director of Adults & Health,532.00 
8002823749,02/07/2020,KAMINO HOMECARE LTD,Prv Sctr Care Pkage,Director of Adults & Health,525.00 
8002824412,02/07/2020,LONDON CARE PLC,Prv Sctr Care Pkage,Director of Adults & Health,518.00 
8002824438,02/07/2020,LONDON CARE PLC,Prv Sctr Care Pkage,Director of Adults & Health,518.00 
5201334950,02/07/2020,PLAYLE & PARTNERS LLP,Business,"Director of Regen,Planning & Devlop",516.00 
8002823965,02/07/2020,THE A TEAM SMALL JOBS PROJECT LTD,Removal Exp - Tenant,Director of Adults & Health,500.00 
5201334942,02/07/2020,NCFE,Business,"Director of Regen,Planning & Devlop",494.00 
8002822243,02/07/2020,LINK COMMUNITY CARE LTD,Prv Sctr Care Pkage,Director of Adults & Health,490.00 
8002823741,02/07/2020,KAMINO HOMECARE LTD,Prv Sctr Care Pkage,Director of Adults & Health,490.00 
8002824385,02/07/2020,UNITED CARE UK LTD,Prv Sctr Care Pkage,Director of Adults & Health,490.00 
8002824411,02/07/2020,LONDON CARE PLC,Prv Sctr Care Pkage,Director of Adults & Health,489.44 
8002824403,02/07/2020,LONDON CARE PLC,Prv Sctr Care Pkage,Director of Adults & Health,488.40 
8002824410,02/07/2020,LONDON CARE PLC,Prv Sctr Care Pkage,Director of Adults & Health,488.40 
8002824435,02/07/2020,LONDON CARE PLC,Prv Sctr Care Pkage,Director of Adults & Health,488.40 
8002824098,02/07/2020,ST GEORGES HOME CARE LTD,Priv Sec-- LBH & CCG,Director of Adults & Health,483.00 
8002824101,02/07/2020,ST GEORGES HOME CARE LTD,Prv Sctr Care Pkage,Director of Adults & Health,483.00 
8002823729,02/07/2020,KAMINO HOMECARE LTD,Prv Sctr Care Pkage,Director of Adults & Health,481.04 
8002824449,02/07/2020,LONDON CARE PLC,Prv Sctr Care Pkage,Director of Adults & Health,481.00 
8002824459,02/07/2020,CONNIFERS CARE LIMITED,Prv Sctr Care Pkage,Director of Adults & Health,480.00 
8002824458,02/07/2020,THE REGARD PARTNERSHIP LIMITED,Prv Sctr Care Pkage,Director of Adults & Health,476.40 
8002823762,02/07/2020,KAMINO HOMECARE LTD,Prv Sctr Care Pkage,Director of Adults & Health,476.00 
8002824103,02/07/2020,ST GEORGES HOME CARE LTD,Prv Sctr Care Pkage,Director of Adults & Health,462.00 
8002824456,02/07/2020,STUDIO UPSTAIRS,Prv Sctr Care Pkage,Director of Adults & Health,456.00 
1900872673,02/07/2020,ONE TIME,Fees Legal External,Assistant Dir Corporate Governance,450.00 
8002824393,02/07/2020,LONDON CARE PLC,Prv Sctr Care Pkage,Director of Adults & Health,447.36 
8002824397,02/07/2020,LONDON CARE PLC,Prv Sctr Care Pkage,Director of Adults & Health,425.50 
8002823737,02/07/2020,KAMINO HOMECARE LTD,Prv Sctr Care Pkage,Director of Adults & Health,420.00 
8002824398,02/07/2020,LONDON CARE PLC,Prv Sctr Care Pkage,Director of Adults & Health,414.40 
8002824408,02/07/2020,LONDON CARE PLC,Prv Sctr Care Pkage,Director of Adults & Health,414.40 
5201334939,02/07/2020,NORTH LONDON CATERING EQUIPMENT LTD,Business,Director of Children's Services,409.26 
8002822247,02/07/2020,LINK COMMUNITY CARE LTD,Prv Sctr Care Pkage,Director of Adults & Health,392.00 
8002823742,02/07/2020,KAMINO HOMECARE LTD,Prv Sctr Care Pkage,Director of Adults & Health,392.00 
1900872672,02/07/2020,KBW LTD (PROFESSIONAL FEES),Fees Legal External,Assistant Dir Corporate Governance,390.00 
8002824444,02/07/2020,LONDON CARE PLC,Prv Sctr Care Pkage,Director of Adults & Health,384.80 
8002824422,02/07/2020,LONDON CARE PLC,Prv Sctr Care Pkage,Director of Adults & Health,384.45 
8002824467,02/07/2020,THE REGARD PARTNERSHIP LIMITED,Prv Sctr Care Pkage,Director of Adults & Health,381.12 
8002824378,02/07/2020,PATIENT TRANSPORT (UK) LTD,Priv Sec-- LBH & CCG,Director of Adults & Health,380.00 
8002822242,02/07/2020,LINK COMMUNITY CARE LTD,Prv Sctr Care Pkage,Director of Adults & Health,377.88 
8002824114,02/07/2020,ST GEORGES HOME CARE LTD,Prv Sctr Care Pkage,Director of Adults & Health,367.50 
8002823755,02/07/2020,KAMINO HOMECARE LTD,Prv Sctr Care Pkage,Director of Adults & Health,336.00 
8002824117,02/07/2020,ST GEORGES HOME CARE LTD,Prv Sctr Care Pkage,Director of Adults & Health,329.97 
8002824421,02/07/2020,LONDON CARE PLC,Prv Sctr Care Pkage,Director of Adults & Health,325.60 
8002824423,02/07/2020,LONDON CARE PLC,Prv Sctr Care Pkage,Director of Adults & Health,325.60 
8002824392,02/07/2020,LONDON CARE PLC,Prv Sctr Care Pkage,Director of Adults & Health,310.80 
8002824413,02/07/2020,LONDON CARE PLC,Prv Sctr Care Pkage,Director of Adults & Health,310.80 
8002824425,02/07/2020,LONDON CARE PLC,Prv Sctr Care Pkage,Director of Adults & Health,310.80 
8002824439,02/07/2020,LONDON CARE PLC,Prv Sctr Care Pkage,Director of Adults & Health,310.80 
8002824468,02/07/2020,STUDIO UPSTAIRS,Prv Sctr Care Pkage,Director of Adults & Health,303.20 
5201334941,02/07/2020,KELTIC LIMITED,Business,Director of Environment & Neighbourhoods,301.75 
8002823736,02/07/2020,KAMINO HOMECARE LTD,Priv Sec-- LBH & CCG,Director of Adults & Health,300.00 
8002824386,02/07/2020,TEAM MEDIC LONDON LTD,Travel Exp - Client,Director of Adults & Health,300.00 
8002824419,02/07/2020,LONDON CARE PLC,Prv Sctr Care Pkage,Director of Adults & Health,296.00 
8002824383,02/07/2020,UNITED CARE UK LTD,Prv Sctr Care Pkage,Director of Adults & Health,295.50 
8002822240,02/07/2020,LINK COMMUNITY CARE LTD,Prv Sctr Care Pkage,Director of Adults & Health,294.00 
8002823725,02/07/2020,KAMINO HOMECARE LTD,Prv Sctr Care Pkage,Director of Adults & Health,294.00 
8002823743,02/07/2020,KAMINO HOMECARE LTD,Prv Sctr Care Pkage,Director of Adults & Health,294.00 
8002823761,02/07/2020,KAMINO HOMECARE LTD,Prv Sctr Care Pkage,Director of Adults & Health,294.00 
8002824461,02/07/2020,THE REGARD PARTNERSHIP LIMITED,Prv Sctr Care Pkage,Director of Adults & Health,285.84 
8002824429,02/07/2020,LONDON CARE PLC,Prv Sctr Care Pkage,Director of Adults & Health,277.50 
5201334955,02/07/2020,CAPITA RESOURCING LTD,Promotional & Recrui,Director of Transformation & Resources,273.00 
8002824395,02/07/2020,LONDON CARE PLC,Prv Sctr Care Pkage,Director of Adults & Health,266.40 
8002824418,02/07/2020,LONDON CARE PLC,Prv Sctr Care Pkage,Director of Adults & Health,266.40 
8002824426,02/07/2020,LONDON CARE PLC,Prv Sctr Care Pkage,Director of Adults & Health,266.40 
8002824451,02/07/2020,LONDON CARE PLC,Prv Sctr Care Pkage,Director of Adults & Health,266.40 
8002824174,02/07/2020,OASIS CARE & TRAINING AGENCY,Prv Sctr Care Pkage,Director of Children's Services,253.80 
8002824112,02/07/2020,ST GEORGES HOME CARE LTD,Prv Sctr Care Pkage,Director of Adults & Health,253.76 
8002824102,02/07/2020,ST GEORGES HOME CARE LTD,Prv Sctr Care Pkage,Director of Adults & Health,248.70 
8002823554,02/07/2020,NORTH LONDON ASIAN CARE,Prv Sctr Care Pkage,Director of Adults & Health,248.22 
8002824104,02/07/2020,ST GEORGES HOME CARE LTD,Prv Sctr Care Pkage,Director of Adults & Health,245.00 
8002818837,02/07/2020,STORE BOX SELF STORAGE LIMITED,Fees - Storage,Director of Adults & Health,240.00 
8002823764,02/07/2020,KAMINO HOMECARE LTD,Prv Sctr Care Pkage,Director of Adults & Health,238.00 
8002824098,02/07/2020,ST GEORGES HOME CARE LTD,Prv Sctr Care Pkage,Director of Adults & Health,234.50 
5201334949,02/07/2020,PLAYLE & PARTNERS LLP,Business,"Director of Regen,Planning & Devlop",233.60 
8002824446,02/07/2020,LONDON CARE PLC,Prv Sctr Care Pkage,Director of Adults & Health,230.46 
8002818838,02/07/2020,STORE BOX SELF STORAGE LIMITED,Fees - Storage,Director of Adults & Health,220.00 
8002822244,02/07/2020,LINK COMMUNITY CARE LTD,Prv Sctr Care Pkage,Director of Adults & Health,216.00 
8002822250,02/07/2020,LINK COMMUNITY CARE LTD,Prv Sctr Care Pkage,Director of Adults & Health,216.00 
8002822246,02/07/2020,LINK COMMUNITY CARE LTD,Prv Sctr Care Pkage,Director of Adults & Health,210.00 
8002823711,02/07/2020,KAMINO HOMECARE LTD,Prv Sctr Care Pkage,Director of Adults & Health,210.00 
8002824405,02/07/2020,LONDON CARE PLC,Prv Sctr Care Pkage,Director of Adults & Health,207.20 
8002824430,02/07/2020,LONDON CARE PLC,Prv Sctr Care Pkage,Director of Adults & Health,207.20 
8002818046,02/07/2020,NORTH LONDON BIKUR CHOLIM LTD,Prv Sctr Care Pkage,Director of Children's Services,201.92 
8002824455,02/07/2020,STUDIO UPSTAIRS,Prv Sctr Care Pkage,Director of Adults & Health,200.00 
5201334957,02/07/2020,GLS EDUCATIONAL SUPPLIES LIMITED,Products,Director of Children's Services,199.99 
8002823717,02/07/2020,KAMINO HOMECARE LTD,Prv Sctr Care Pkage,Director of Adults & Health,196.00 
8002823724,02/07/2020,KAMINO HOMECARE LTD,Prv Sctr Care Pkage,Director of Adults & Health,196.00 
8002823728,02/07/2020,KAMINO HOMECARE LTD,Prv Sctr Care Pkage,Director of Adults & Health,196.00 
8002823745,02/07/2020,KAMINO HOMECARE LTD,Prv Sctr Care Pkage,Director of Adults & Health,196.00 
8002824118,02/07/2020,NORTH LONDON ASIAN CARE,Prv Sctr Care Pkage,Director of Adults & Health,188.50 
8002824353,02/07/2020,Resources for Autism,Prv Sctr Care Pkage,Director of Adults & Health,171.00 
8002824354,02/07/2020,Resources for Autism,Prv Sctr Care Pkage,Director of Adults & Health,171.00 
8002824442,02/07/2020,LONDON CARE PLC,Priv Sec-- LBH & CCG,Director of Adults & Health,162.80 
8002823734,02/07/2020,KAMINO HOMECARE LTD,Prv Sctr Care Pkage,Director of Adults & Health,147.00 
8002823555,02/07/2020,NORTH LONDON ASIAN CARE,Prv Sctr Care Pkage,Director of Adults & Health,132.76 
8002824446,02/07/2020,LONDON CARE PLC,Priv Sec-- LBH & CCG,Director of Adults & Health,132.14 
8002824355,02/07/2020,Resources for Autism,Prv Sctr Care Pkage,Director of Adults & Health,126.00 
5201334890,02/07/2020,CYPRIOT COMMUNITY CENTRE,Room Hire,Director of Children's Services,121.66 
5201334892,02/07/2020,CYPRIOT COMMUNITY CENTRE,Room Hire,Director of Children's Services,121.66 
5201334893,02/07/2020,CYPRIOT COMMUNITY CENTRE,Room Hire,Director of Children's Services,121.66 
5201334908,02/07/2020,CYPRIOT COMMUNITY CENTRE,Room Hire,Director of Children's Services,121.66 
5201334909,02/07/2020,CYPRIOT COMMUNITY CENTRE,Room Hire,Director of Children's Services,121.66 
8002824379,02/07/2020,UNITED CARE UK LTD,Prv Sctr Care Pkage,Director of Adults & Health,115.50 
5201334959,02/07/2020,J.A. STEEL AND SON LTD,Removals,"Director of Regen,Planning & Devlop",96.00 
8002824243,02/07/2020,Resources for Autism,Prv Sctr Care Pkage,Director of Adults & Health,90.00 
8002824399,02/07/2020,LONDON CARE PLC,Prv Sctr Care Pkage,Director of Adults & Health,88.80 
5201334956,02/07/2020,GLS EDUCATIONAL SUPPLIES LIMITED,Products,Director of Children's Services,87.50 
8002824242,02/07/2020,Resources for Autism,Prv Sctr Care Pkage,Director of Adults & Health,82.50 
8002824244,02/07/2020,Resources for Autism,Prv Sctr Care Pkage,Director of Adults & Health,82.50 
8002824116,02/07/2020,ST GEORGES HOME CARE LTD,Prv Sctr Care Pkage,Director of Adults & Health,81.07 
5201334910,02/07/2020,CYPRIOT COMMUNITY CENTRE,Room Hire,Director of Children's Services,80.00 
5201334911,02/07/2020,CYPRIOT COMMUNITY CENTRE,Room Hire,Director of Children's Services,80.00 
8002824457,02/07/2020,THE REGARD PARTNERSHIP LIMITED,Prv Sctr Care Pkage,Director of Adults & Health,79.40 
8002824374,02/07/2020,EAST LONDON CLEANERS,Priv Sec-- LBH & CCG,Director of Adults & Health,75.00 
5201334940,02/07/2020,MACH 1 COURIERS LTD,Business,Assistant Dir Corporate Governance,66.92 
1900872671,02/07/2020,E.ON,Energy - Electric,"Director of Regen,Planning & Devlop",54.24 
1900872670,02/07/2020,SOUTHERN ELECTRIC,Energy - Electric,"Director of Regen,Planning & Devlop",52.42 
8002824404,02/07/2020,LONDON CARE PLC,Prv Sctr Care Pkage,Director of Adults & Health,51.80 
8002824313,02/07/2020,Resources for Autism,Prv Sctr Care Pkage,Director of Adults & Health,45.00 
1900872668,02/07/2020,SOUTHERN ELECTRIC,Energy - Electric,"Director of Regen,Planning & Devlop",44.75 
1900872669,02/07/2020,SOUTHERN ELECTRIC,Energy - Electric,"Director of Regen,Planning & Devlop",42.74 
1900872666,02/07/2020,SOUTHERN ELECTRIC,Energy - Electric,"Director of Regen,Planning & Devlop",38.90 
1900872667,02/07/2020,SOUTHERN ELECTRIC,Energy - Electric,"Director of Regen,Planning & Devlop",34.37 
8002824333,02/07/2020,Resources for Autism,Prv Sctr Care Pkage,Director of Adults & Health,18.00 
1900872680,02/07/2020,BRITISH GAS BUSINESS,Energy - Electric,Director of Adults & Health,15.89 
1900872682,02/07/2020,BRITISH GAS BUSINESS,Energy - Electric,Director of Adults & Health,14.94 
1900872681,02/07/2020,BRITISH GAS BUSINESS,Energy - Electric,Director of Adults & Health,13.53 
1900872684,02/07/2020,BRITISH GAS BUSINESS,Energy - Electric,Director of Adults & Health,12.60 
1900872685,02/07/2020,BRITISH GAS BUSINESS,Energy - Electric,Director of Adults & Health,11.52 
1900872687,02/07/2020,BRITISH GAS BUSINESS,Energy - Electric,Director of Adults & Health,8.07 
1900872679,02/07/2020,BRITISH GAS BUSINESS,Energy - Electric,Director of Adults & Health,7.93 
1900872686,02/07/2020,BRITISH GAS BUSINESS,Energy - Electric,Director of Adults & Health,7.81 
5201334398,02/07/2020,BLOOM PROCUREMENT SERVICES LTD,Consultancy,Director of Finance,-460.00 
5201334399,02/07/2020,BLOOM PROCUREMENT SERVICES LTD,Consultancy,Director of Finance,-460.00 
8002818171,02/07/2020,SPRINGDENE NURSING & CARE HOMES LTD,Client Cont Care Pkg,Director of Adults & Health,-569.40 
8002818146,02/07/2020,SPRINGDENE NURSING & CARE HOMES LTD,Client Cont Care Pkg,Director of Adults & Health,-572.96 
8002818113,02/07/2020,SPRINGDENE NURSING & CARE HOMES LTD,Client Cont Care Pkg,Director of Adults & Health,-595.40 
8002818102,02/07/2020,SPRINGDENE NURSING & CARE HOMES LTD,Client Cont Care Pkg,Director of Adults & Health,-673.76 
8002818058,02/07/2020,SPRINGDENE NURSING & CARE HOMES LTD,Client Cont Care Pkg,Director of Adults & Health,-1260.04 
8002818168,02/07/2020,SPRINGDENE NURSING & CARE HOMES LTD,Client Cont Care Pkg,Director of Adults & Health,-1360.36 
5201335011,03/07/2020,HOMES FOR HARINGEY LIMITED,Arms Length Mgmt Org,"Director of Regen,Planning & Devlop",3263832.11 
5201335055,03/07/2020,HOMES FOR HARINGEY LIMITED,Arms Length Mgmt Org,"Director of Regen,Planning & Devlop",351295.94 
1900872697,03/07/2020,HAYS SPECIALIST RECRUITMENT,SalAgen-Est Post,Director of Environment & Neighbourhoods,222850.61 
1900872697,03/07/2020,HAYS SPECIALIST RECRUITMENT,SalAgen-Est Post,Director of Children's Services,221017.93 
5201335013,03/07/2020,HUMANKIND,Arms Length Mgmt Org,Director of Adults & Health,220610.22 
1900872697,03/07/2020,HAYS SPECIALIST RECRUITMENT,SalAgen-Est Post,Director of Transformation & Resources,192547.88 
5201335058,03/07/2020,HOMES FOR HARINGEY LIMITED,Arms Length Mgmt Org,Director of Adults & Health,160000.00 
1900872697,03/07/2020,HAYS SPECIALIST RECRUITMENT,SalAgen-Est Post,"Director of Regen,Planning & Devlop",155928.29 
1900872697,03/07/2020,HAYS SPECIALIST RECRUITMENT,SalAgen-Est Post,Director of Adults & Health,145363.99 
1900872696,03/07/2020,HAYS SPECIALIST RECRUITMENT,SalAgen-Est Post,Director of Children's Services,99478.32 
5201335043,03/07/2020,Policy in Practice,Arms Length Mgmt Org,Director of Adults & Health,97408.00 
5201335056,03/07/2020,HOMES FOR HARINGEY LIMITED,Arms Length Mgmt Org,"Director of Regen,Planning & Devlop",87200.00 
1900872696,03/07/2020,HAYS SPECIALIST RECRUITMENT,SalAgen-Est Post,Director of Environment & Neighbourhoods,82610.89 
5201335059,03/07/2020,HOMES FOR HARINGEY LIMITED,Buildings,Director of Finance,77579.58 
1900872696,03/07/2020,HAYS SPECIALIST RECRUITMENT,SalAgen-Est Post,"Director of Regen,Planning & Devlop",75315.20 
1900872696,03/07/2020,HAYS SPECIALIST RECRUITMENT,SalAgen-Est Post,Director of Transformation & Resources,62047.90 
1900872696,03/07/2020,HAYS SPECIALIST RECRUITMENT,SalAgen-Est Post,Director of Adults & Health,45073.97 
5201335041,03/07/2020,ADAM HTT LTD T/A ADAM,Arms Length Mgmt Org,Director of Children's Services,39576.50 
1900872698,03/07/2020,HAYS SPECIALIST RECRUITMENT,Recruit-Resource Hub,Director of Adults & Health,35221.85 
1900872697,03/07/2020,HAYS SPECIALIST RECRUITMENT,SalAgen-Est Post,Director of Finance,24150.80 
1900872697,03/07/2020,HAYS SPECIALIST RECRUITMENT,SalAgen-Est Post,Assistant Dir Corporate Governance,14411.17 
8002824951,03/07/2020,THE REGARD PARTNERSHIP LIMITED,Prv Sctr Care Pkage,Director of Adults & Health,13009.70 
1900872698,03/07/2020,HAYS SPECIALIST RECRUITMENT,Recruit-Resource Hub,Director of Children's Services,12976.25 
5201335045,03/07/2020,DSI BILLING SERVICES,Printing,Director of Transformation & Resources,10357.08 
5201335019,03/07/2020,VIGILANT SECURITY SERVICES UK LTD,Arms Length Mgmt Org,"Director of Regen,Planning & Devlop",10326.72 
5201335012,03/07/2020,PROJECT CENTRE LTD,Arms Length Mgmt Org,"Director of Regen,Planning & Devlop",10000.00 
5201335014,03/07/2020,VIGILANT SECURITY SERVICES UK LTD,Arms Length Mgmt Org,"Director of Regen,Planning & Devlop",9588.48 
1900872696,03/07/2020,HAYS SPECIALIST RECRUITMENT,SalAgen-Est Post,Director of Finance,9017.55 
5201335020,03/07/2020,VIGILANT SECURITY SERVICES UK LTD,Arms Length Mgmt Org,"Director of Regen,Planning & Devlop",7293.44 
5201335015,03/07/2020,VIGILANT SECURITY SERVICES UK LTD,Arms Length Mgmt Org,"Director of Regen,Planning & Devlop",7208.96 
5201335061,03/07/2020,ENHANCE EHC LTD,Care Services,Director of Children's Services,7184.00 
5201334979,03/07/2020,L B OF HAMMERSMITH & FULHAM,Public Health,Director of Finance,6704.00 
1900872696,03/07/2020,HAYS SPECIALIST RECRUITMENT,SalAgen-Est Post,Assistant Dir Corporate Governance,6246.00 
5201335046,03/07/2020,CAPITA PROPERTY & INFRASTRUCTURE LT,Access Control,Director of Environment & Neighbourhoods,6175.00 
5201335017,03/07/2020,VIGILANT SECURITY SERVICES UK LTD,Arms Length Mgmt Org,"Director of Regen,Planning & Devlop",6040.32 
5201335018,03/07/2020,VIGILANT SECURITY SERVICES UK LTD,Arms Length Mgmt Org,"Director of Regen,Planning & Devlop",5871.36 
5201335016,03/07/2020,VIGILANT SECURITY SERVICES UK LTD,Arms Length Mgmt Org,"Director of Regen,Planning & Devlop",5829.12 
5201335009,03/07/2020,Philip Pank Partnership,Buildings,Director of Finance,5400.00 
5201335024,03/07/2020,CROWN PROMOTIONS & REMOVALS LTD,Arms Length Mgmt Org,"Director of Regen,Planning & Devlop",4277.07 
8002824537,03/07/2020,LONDON CARE PLC,Prv Sctr Care Pkage,Director of Adults & Health,4262.60 
1900872698,03/07/2020,HAYS SPECIALIST RECRUITMENT,Recruit-Resource Hub,Director of Environment & Neighbourhoods,3642.62 
1900872698,03/07/2020,HAYS SPECIALIST RECRUITMENT,Recruit-Resource Hub,Director of Transformation & Resources,3604.77 
5201335057,03/07/2020,DATA CENTRE RESPONSE LIMITED,Maint & Support,Director of Transformation & Resources,3253.25 
8002824962,03/07/2020,NEXT STEP SUPPORT LTD,Prv Sctr Care Pkage,Director of Adults & Health,3164.00 
8002824878,03/07/2020,KAAMIL EDUCATION LTD,Prv Sctr Care Pkage,Director of Adults & Health,3136.00 
5201334992,03/07/2020,FALCON PROPERTIES LTD,Prem - Leasing,"Director of Regen,Planning & Devlop",2946.66 
5201334993,03/07/2020,FALCON PROPERTIES LTD,Prem - Leasing,"Director of Regen,Planning & Devlop",2946.66 
8002824519,03/07/2020,LONDON CARE PLC,Priv Sec-- LBH & CCG,Director of Adults & Health,2919.00 
5201335021,03/07/2020,Kiran Curtis Limited,Arms Length Mgmt Org,Director of Finance,2850.00 
5201335022,03/07/2020,Kiran Curtis Limited,Arms Length Mgmt Org,Director of Finance,2850.00 
8002824508,03/07/2020,LONDON CARE PLC,Prv Sctr Care Pkage,Director of Adults & Health,2803.27 
8002824943,03/07/2020,KARTEROS LTD T/A ST MARKS DAY SERVI,Prv Sctr Care Pkage,Director of Adults & Health,2735.60 
2500021559,03/07/2020,GRANT PAYMENTS,R&M - Day to Day Ext,Director of Environment & Neighbourhoods,2703.00 
8002824944,03/07/2020,KARTEROS LTD T/A ST MARKS DAY SERVI,Prv Sctr Care Pkage,Director of Adults & Health,2600.00 
8002824924,03/07/2020,GOLDEN CARE ESTATES LTD,Priv - Contractor,Director of Children's Services,2551.43 
8002824966,03/07/2020,SHINE PARTNERSHIPS LTD,Prv Sctr Care Pkage,Director of Adults & Health,2442.86 
8002824877,03/07/2020,KAAMIL EDUCATION LTD,Prv Sctr Care Pkage,Director of Adults & Health,2292.72 
1900872700,03/07/2020,LYRECO UK LTD,Stationery,Director of Environment & Neighbourhoods,2252.90 
8002824493,03/07/2020,LONDON CARE PLC,Prv Sctr Care Pkage,Director of Adults & Health,2101.60 
8002824528,03/07/2020,LONDON CARE PLC,Prv Sctr Care Pkage,Director of Adults & Health,2072.00 
8002824486,03/07/2020,LONDON CARE PLC,Prv Sctr Care Pkage,Director of Adults & Health,2042.40 
8002824904,03/07/2020,KAAMIL EDUCATION LTD,Prv Sctr Care Pkage,Director of Adults & Health,1988.00 
1900872698,03/07/2020,HAYS SPECIALIST RECRUITMENT,Recruit-Resource Hub,"Director of Regen,Planning & Devlop",1980.00 
5201335025,03/07/2020,CROWN PROMOTIONS & REMOVALS LTD,Arms Length Mgmt Org,"Director of Regen,Planning & Devlop",1977.57 
1900872700,03/07/2020,LYRECO UK LTD,Stationery,Director of Adults & Health,1948.93 
8002824959,03/07/2020,PHILOMENA OKORON T/A 4ACRES DOMICIL,Prv Sctr Care Pkage,Director of Adults & Health,1900.00 
8002824901,03/07/2020,KAAMIL EDUCATION LTD,Prv Sctr Care Pkage,Director of Adults & Health,1874.20 
8002824856,03/07/2020,KAAMIL EDUCATION LTD,Priv Sec-- LBH & CCG,Director of Adults & Health,1844.00 
8002824526,03/07/2020,LONDON CARE PLC,Prv Sctr Care Pkage,Director of Adults & Health,1809.15 
8002824930,03/07/2020,ELLIOT LEIGH TLC LTD,Priv - Contractor,Director of Children's Services,1796.37 
8002824899,03/07/2020,KAAMIL EDUCATION LTD,Prv Sctr Care Pkage,Director of Adults & Health,1764.00 
8002824900,03/07/2020,KAAMIL EDUCATION LTD,Prv Sctr Care Pkage,Director of Adults & Health,1764.00 
8002824906,03/07/2020,KAAMIL EDUCATION LTD,Prv Sctr Care Pkage,Director of Adults & Health,1711.50 
5201334980,03/07/2020,ADAMS & STYLES,Prem - Leasing,"Director of Regen,Planning & Devlop",1684.15 
5201334983,03/07/2020,STATEBOND LTD T/A HORNSEY AGENCIES,Prem - Leasing,"Director of Regen,Planning & Devlop",1681.33 
5201334989,03/07/2020,Redacted Personal Data,Prem - Leasing,"Director of Regen,Planning & Devlop",1681.33 
5201334994,03/07/2020,Redacted Personal Data,Prem - Leasing,"Director of Regen,Planning & Devlop",1681.33 
5201334995,03/07/2020,Redacted Personal Data,Prem - Leasing,"Director of Regen,Planning & Devlop",1681.33 
5201334998,03/07/2020,Redacted Personal Data,Prem - Leasing,"Director of Regen,Planning & Devlop",1681.33 
5201335005,03/07/2020,Redacted Personal Data,Prem - Leasing,"Director of Regen,Planning & Devlop",1681.33 
8002824889,03/07/2020,KAAMIL EDUCATION LTD,Prv Sctr Care Pkage,Director of Adults & Health,1666.00 
5201335036,03/07/2020,J.A. STEEL AND SON LTD,Arms Length Mgmt Org,"Director of Regen,Planning & Devlop",1660.00 
1900872700,03/07/2020,LYRECO UK LTD,Stationery,Director of Transformation & Resources,1618.12 
8002824488,03/07/2020,LONDON CARE PLC,Prv Sctr Care Pkage,Director of Adults & Health,1551.64 
5201335027,03/07/2020,LATCHAM DIRECT LIMITED,Arms Length Mgmt Org,Director of Transformation & Resources,1542.50 
5201335026,03/07/2020,CROWN PROMOTIONS & REMOVALS LTD,Arms Length Mgmt Org,"Director of Regen,Planning & Devlop",1540.00 
8002824912,03/07/2020,KAAMIL EDUCATION LTD,Prv Sctr Care Pkage,Director of Adults & Health,1498.00 
5201335060,03/07/2020,Currie & Brown UK Limited,Demolition&Asbestos,Director of Finance,1487.02 
8002824529,03/07/2020,LONDON CARE PLC,Prv Sctr Care Pkage,Director of Adults & Health,1420.80 
5201334981,03/07/2020,Redacted Personal Data,Prem - Leasing,"Director of Regen,Planning & Devlop",1365.00 
5201334985,03/07/2020,Redacted Personal Data,Prem - Leasing,"Director of Regen,Planning & Devlop",1365.00 
5201334986,03/07/2020,Redacted Personal Data,Prem - Leasing,"Director of Regen,Planning & Devlop",1365.00 
5201334990,03/07/2020,VMG CONSTRUCTION LTD,Prem - Leasing,"Director of Regen,Planning & Devlop",1365.00 
5201334996,03/07/2020,Redacted Personal Data,Prem - Leasing,"Director of Regen,Planning & Devlop",1365.00 
5201334997,03/07/2020,Redacted Personal Data,Prem - Leasing,"Director of Regen,Planning & Devlop",1365.00 
5201335001,03/07/2020,Redacted Personal Data,Prem - Leasing,"Director of Regen,Planning & Devlop",1365.00 
5201335002,03/07/2020,Redacted Personal Data,Prem - Leasing,"Director of Regen,Planning & Devlop",1365.00 
5201335003,03/07/2020,Redacted Personal Data,Prem - Leasing,"Director of Regen,Planning & Devlop",1365.00 
5201335004,03/07/2020,Redacted Personal Data,Prem - Leasing,"Director of Regen,Planning & Devlop",1365.00 
5201335006,03/07/2020,Redacted Personal Data,Prem - Leasing,"Director of Regen,Planning & Devlop",1365.00 
5201335010,03/07/2020,NAPCLAN RETAIL LIMITED T/A PHARMOCA,Drugs & Pharmacy Services,Director of Adults & Health,1320.40 
5201335031,03/07/2020,ADAM HTT LTD T/A ADAM,Arms Length Mgmt Org,Director of Children's Services,1286.82 
5201335008,03/07/2020,Philip Pank Partnership,Buildings,Director of Finance,1258.00 
5201334984,03/07/2020,Redacted Personal Data,Prem - Leasing,"Director of Regen,Planning & Devlop",1256.66 
8002824509,03/07/2020,LONDON CARE PLC,Prv Sctr Care Pkage,Director of Adults & Health,1243.20 
8002824939,03/07/2020,RESIDENTIAL CARE SERVICES LTD,Priv - Contractor,Director of Adults & Health,1205.60 
8002824940,03/07/2020,RESIDENTIAL CARE SERVICES LTD,Priv - Contractor,Director of Adults & Health,1205.60 
8002824941,03/07/2020,RESIDENTIAL CARE SERVICES LTD,Priv - Contractor,Director of Adults & Health,1205.60 
8002824914,03/07/2020,KAAMIL EDUCATION LTD,Priv Sec-- LBH & CCG,Director of Adults & Health,1204.00 
8002824507,03/07/2020,LONDON CARE PLC,Prv Sctr Care Pkage,Director of Adults & Health,1198.80 
8002824520,03/07/2020,LONDON CARE PLC,Prv Sctr Care Pkage,Director of Adults & Health,1176.00 
8002824516,03/07/2020,LONDON CARE PLC,Prv Sctr Care Pkage,Director of Adults & Health,1165.50 
8002824539,03/07/2020,LONDON CARE PLC,Prv Sctr Care Pkage,Director of Adults & Health,1139.60 
8002824533,03/07/2020,LONDON CARE PLC,Prv Sctr Care Pkage,Director of Adults & Health,1124.80 
8002824898,03/07/2020,KAAMIL EDUCATION LTD,Prv Sctr Care Pkage,Director of Adults & Health,1120.00 
6000010347,03/07/2020,BETA DISTRIB (SOUTH) LTD T/A,Printing - Internal,Director of Transformation & Resources,1116.90 
5201334987,03/07/2020,CLASS ESTATES LIMITED,Prem - Leasing,"Director of Regen,Planning & Devlop",1105.00 
5201334991,03/07/2020,Redacted Personal Data,Prem - Leasing,"Director of Regen,Planning & Devlop",1105.00 
5201334999,03/07/2020,Redacted Personal Data,Prem - Leasing,"Director of Regen,Planning & Devlop",1105.00 
5201335000,03/07/2020,Redacted Personal Data,Prem - Leasing,"Director of Regen,Planning & Devlop",1105.00 
8002824874,03/07/2020,KAAMIL EDUCATION LTD,Prv Sctr Care Pkage,Director of Adults & Health,1090.80 
8002824931,03/07/2020,ARTHUR MORRISON LTD,Priv - Supp Lodging,Director of Children's Services,1050.00 
5201334988,03/07/2020,Redacted Personal Data,Prem - Leasing,"Director of Regen,Planning & Devlop",1040.00 
8002824525,03/07/2020,LONDON CARE PLC,Prv Sctr Care Pkage,Director of Adults & Health,1036.00 
8002824919,03/07/2020,KAAMIL EDUCATION LTD,Prv Sctr Care Pkage,Director of Adults & Health,1012.50 
8002824883,03/07/2020,KAAMIL EDUCATION LTD,Prv Sctr Care Pkage,Director of Adults & Health,1006.56 
8002824917,03/07/2020,KAAMIL EDUCATION LTD,Priv Sec-- LBH & CCG,Director of Adults & Health,980.00 
8002824918,03/07/2020,KAAMIL EDUCATION LTD,Prv Sctr Care Pkage,Director of Adults & Health,980.00 
5201335047,03/07/2020,PLEXUS LAW (OFFICE ACCOUNT),Specialist Support,Assistant Dir Corporate Governance,967.00 
8002824893,03/07/2020,KAAMIL EDUCATION LTD,Prv Sctr Care Pkage,Director of Adults & Health,951.44 
1900872702,03/07/2020,CAPITA TRAVEL AND EVENTS LIMITED,Travel Exp Employee,Director of Children's Services,950.96 
8002824513,03/07/2020,LONDON CARE PLC,Prv Sctr Care Pkage,Director of Adults & Health,947.20 
8002824880,03/07/2020,KAAMIL EDUCATION LTD,Prv Sctr Care Pkage,Director of Adults & Health,945.00 
8002824492,03/07/2020,LONDON CARE PLC,Prv Sctr Care Pkage,Director of Adults & Health,932.40 
5201334982,03/07/2020,Redacted Personal Data,Prem - Leasing,"Director of Regen,Planning & Devlop",891.24 
8002824920,03/07/2020,KAAMIL EDUCATION LTD,Priv Sec-- LBH & CCG,Director of Adults & Health,882.00 
8002824890,03/07/2020,KAAMIL EDUCATION LTD,Prv Sctr Care Pkage,Director of Adults & Health,882.00 
8002824540,03/07/2020,LONDON CARE PLC,Prv Sctr Care Pkage,Director of Adults & Health,880.88 
8002824913,03/07/2020,KAAMIL EDUCATION LTD,Prv Sctr Care Pkage,Director of Adults & Health,880.00 
5201335048,03/07/2020,PLEXUS LAW (OFFICE ACCOUNT),Specialist Support,Assistant Dir Corporate Governance,840.00 
5201335049,03/07/2020,PLEXUS LAW (OFFICE ACCOUNT),Specialist Support,Assistant Dir Corporate Governance,840.00 
5201335050,03/07/2020,PLEXUS LAW (OFFICE ACCOUNT),Specialist Support,Assistant Dir Corporate Governance,840.00 
5201335051,03/07/2020,PLEXUS LAW (OFFICE ACCOUNT),Specialist Support,Assistant Dir Corporate Governance,840.00 
5201335052,03/07/2020,PLEXUS LAW (OFFICE ACCOUNT),Specialist Support,Assistant Dir Corporate Governance,840.00 
8002824500,03/07/2020,LONDON CARE PLC,Prv Sctr Care Pkage,Director of Adults & Health,828.80 
8002824523,03/07/2020,LONDON CARE PLC,Prv Sctr Care Pkage,Director of Adults & Health,828.80 
8002824619,03/07/2020,MARIAMA CARE LTD TA KANGAROO HEALTH,Priv Sec-- LBH & CCG,Director of Adults & Health,825.00 
8002824948,03/07/2020,MARIAMA CARE LTD TA KANGAROO HEALTH,Priv Sec-- LBH & CCG,Director of Adults & Health,825.00 
8002824524,03/07/2020,LONDON CARE PLC,Prv Sctr Care Pkage,Director of Adults & Health,814.00 
8002824888,03/07/2020,KAAMIL EDUCATION LTD,Prv Sctr Care Pkage,Director of Adults & Health,811.44 
8002824497,03/07/2020,LONDON CARE PLC,Prv Sctr Care Pkage,Director of Adults & Health,784.40 
8002824615,03/07/2020,HEADWAY EAST LONDON,Prv Sctr Care Pkage,Director of Adults & Health,760.00 
8002824498,03/07/2020,LONDON CARE PLC,Prv Sctr Care Pkage,Director of Adults & Health,742.50 
5201335062,03/07/2020,Currie & Brown UK Limited,Demolition&Asbestos,Director of Finance,740.00 
8002824538,03/07/2020,LONDON CARE PLC,Priv Sec-- LBH & CCG,Director of Adults & Health,740.00 
8002824618,03/07/2020,HEADWAY EAST LONDON,Prv Sctr Care Pkage,Director of Adults & Health,738.00 
8002824491,03/07/2020,LONDON CARE PLC,Prv Sctr Care Pkage,Director of Adults & Health,725.20 
8002824535,03/07/2020,LONDON CARE PLC,Prv Sctr Care Pkage,Director of Adults & Health,725.20 
8002824884,03/07/2020,KAAMIL EDUCATION LTD,Prv Sctr Care Pkage,Director of Adults & Health,714.00 
8002824611,03/07/2020,HEADWAY EAST LONDON,Prv Sctr Care Pkage,Director of Adults & Health,708.88 
8002824928,03/07/2020,PREFERRED LIVING LTD,Priv - Contractor,Director of Children's Services,691.43 
8002824905,03/07/2020,KAAMIL EDUCATION LTD,Prv Sctr Care Pkage,Director of Adults & Health,686.00 
8002824605,03/07/2020,HEADWAY EAST LONDON,Prv Sctr Care Pkage,Director of Adults & Health,680.00 
8002824613,03/07/2020,HEADWAY EAST LONDON,Prv Sctr Care Pkage,Director of Adults & Health,680.00 
8002824896,03/07/2020,KAAMIL EDUCATION LTD,Prv Sctr Care Pkage,Director of Adults & Health,664.00 
8002824506,03/07/2020,LONDON CARE PLC,Prv Sctr Care Pkage,Director of Adults & Health,651.20 
5201335064,03/07/2020,INCLUSION ME LTD,Occupational Therapy,Director of Adults & Health,650.00 
8002824933,03/07/2020,ARTHUR MORRISON LTD,Priv - Contractor,Director of Children's Services,646.93 
8002824532,03/07/2020,LONDON CARE PLC,Prv Sctr Care Pkage,Director of Adults & Health,621.60 
8002824881,03/07/2020,KAAMIL EDUCATION LTD,Prv Sctr Care Pkage,Director of Adults & Health,603.44 
8002824494,03/07/2020,LONDON CARE PLC,Prv Sctr Care Pkage,Director of Adults & Health,592.00 
8002824542,03/07/2020,LONDON CARE PLC,Prv Sctr Care Pkage,Director of Adults & Health,592.00 
8002824482,03/07/2020,LONDON CARE PLC,Prv Sctr Care Pkage,Director of Adults & Health,577.20 
8002824483,03/07/2020,LONDON CARE PLC,Prv Sctr Care Pkage,Director of Adults & Health,532.80 
6000010346,03/07/2020,BETA DISTRIB (SOUTH) LTD T/A,Printing - Internal,Director of Transformation & Resources,527.25 
8002824504,03/07/2020,LONDON CARE PLC,Prv Sctr Care Pkage,Director of Adults & Health,518.00 
8002824530,03/07/2020,LONDON CARE PLC,Prv Sctr Care Pkage,Director of Adults & Health,518.00 
8002824892,03/07/2020,KAAMIL EDUCATION LTD,Prv Sctr Care Pkage,Director of Adults & Health,504.00 
8002824541,03/07/2020,LONDON CARE PLC,Prv Sctr Care Pkage,Director of Adults & Health,499.50 
8002824891,03/07/2020,KAAMIL EDUCATION LTD,Prv Sctr Care Pkage,Director of Adults & Health,490.00 
8002824910,03/07/2020,KAAMIL EDUCATION LTD,Prv Sctr Care Pkage,Director of Adults & Health,490.00 
8002824921,03/07/2020,KAAMIL EDUCATION LTD,Prv Sctr Care Pkage,Director of Adults & Health,490.00 
1900872698,03/07/2020,HAYS SPECIALIST RECRUITMENT,Recruit-Resource Hub,Director of Finance,490.00 
8002824503,03/07/2020,LONDON CARE PLC,Prv Sctr Care Pkage,Director of Adults & Health,489.44 
8002824527,03/07/2020,LONDON CARE PLC,Prv Sctr Care Pkage,Director of Adults & Health,488.40 
8002824604,03/07/2020,HEADWAY EAST LONDON,Prv Sctr Care Pkage,Director of Adults & Health,480.00 
8002824501,03/07/2020,LONDON CARE PLC,Prv Sctr Care Pkage,Director of Adults & Health,469.90 
8002824932,03/07/2020,JORDAN XAVIER LTD,Priv - Contractor,Director of Children's Services,462.85 
8002824485,03/07/2020,LONDON CARE PLC,Prv Sctr Care Pkage,Director of Adults & Health,447.36 
8002824603,03/07/2020,HEADWAY EAST LONDON,Prv Sctr Care Pkage,Director of Adults & Health,438.21 
8002824382,03/07/2020,WESTMINSTER HOMECARE LTD,Prv Sctr Care Pkage,Director of Adults & Health,420.00 
8002824489,03/07/2020,LONDON CARE PLC,Prv Sctr Care Pkage,Director of Adults & Health,414.40 
8002824499,03/07/2020,LONDON CARE PLC,Prv Sctr Care Pkage,Director of Adults & Health,414.40 
8002824879,03/07/2020,KAAMIL EDUCATION LTD,Prv Sctr Care Pkage,Director of Adults & Health,392.00 
8002824885,03/07/2020,KAAMIL EDUCATION LTD,Prv Sctr Care Pkage,Director of Adults & Health,392.00 
8002824902,03/07/2020,KAAMIL EDUCATION LTD,Prv Sctr Care Pkage,Director of Adults & Health,392.00 
8002824514,03/07/2020,LONDON CARE PLC,Prv Sctr Care Pkage,Director of Adults & Health,391.44 
8002824536,03/07/2020,LONDON CARE PLC,Prv Sctr Care Pkage,Director of Adults & Health,384.80 
5201335042,03/07/2020,CRYSTAL SERVICES PLC,Arms Length Mgmt Org,Director of Children's Services,376.50 
8002824876,03/07/2020,KAAMIL EDUCATION LTD,Prv Sctr Care Pkage,Director of Adults & Health,360.00 
8002824887,03/07/2020,KAAMIL EDUCATION LTD,Prv Sctr Care Pkage,Director of Adults & Health,360.00 
8002824606,03/07/2020,HEADWAY EAST LONDON,Prv Sctr Care Pkage,Director of Adults & Health,348.00 
8002824616,03/07/2020,HEADWAY EAST LONDON,Prv Sctr Care Pkage,Director of Adults & Health,346.80 
8002824607,03/07/2020,HEADWAY EAST LONDON,Prv Sctr Care Pkage,Director of Adults & Health,340.00 
8002824608,03/07/2020,HEADWAY EAST LONDON,Prv Sctr Care Pkage,Director of Adults & Health,340.00 
8002824614,03/07/2020,HEADWAY EAST LONDON,Prv Sctr Care Pkage,Director of Adults & Health,340.00 
8002824617,03/07/2020,HEADWAY EAST LONDON,Prv Sctr Care Pkage,Director of Adults & Health,340.00 
8002824617,03/07/2020,HEADWAY EAST LONDON,Travel Exp - Client,Director of Adults & Health,340.00 
8002824610,03/07/2020,HEADWAY EAST LONDON,Prv Sctr Care Pkage,Director of Adults & Health,331.20 
8002824515,03/07/2020,LONDON CARE PLC,Prv Sctr Care Pkage,Director of Adults & Health,325.60 
1900872699,03/07/2020,WILKIN CHAPMAN LLP,Fees Legal External,Director of Transformation & Resources,323.00 
8002824609,03/07/2020,HEADWAY EAST LONDON,Prv Sctr Care Pkage,Director of Adults & Health,320.00 
8002824612,03/07/2020,HEADWAY EAST LONDON,Prv Sctr Care Pkage,Director of Adults & Health,320.00 
8002824484,03/07/2020,LONDON CARE PLC,Prv Sctr Care Pkage,Director of Adults & Health,310.80 
8002824505,03/07/2020,LONDON CARE PLC,Prv Sctr Care Pkage,Director of Adults & Health,310.80 
8002824517,03/07/2020,LONDON CARE PLC,Prv Sctr Care Pkage,Director of Adults & Health,310.80 
8002824531,03/07/2020,LONDON CARE PLC,Prv Sctr Care Pkage,Director of Adults & Health,310.80 
5201335063,03/07/2020,COLLABORATE & INNOVATE LTD T/A COSY,Toys,Director of Children's Services,300.39 
8002824511,03/07/2020,LONDON CARE PLC,Prv Sctr Care Pkage,Director of Adults & Health,296.00 
8002824873,03/07/2020,KAAMIL EDUCATION LTD,Prv Sctr Care Pkage,Director of Adults & Health,294.00 
8002824894,03/07/2020,KAAMIL EDUCATION LTD,Prv Sctr Care Pkage,Director of Adults & Health,294.00 
8002824916,03/07/2020,KAAMIL EDUCATION LTD,Prv Sctr Care Pkage,Director of Adults & Health,280.00 
5201335065,03/07/2020,COLLABORATE & INNOVATE LTD T/A COSY,Toys,Director of Children's Services,279.00 
8002824487,03/07/2020,LONDON CARE PLC,Prv Sctr Care Pkage,Director of Adults & Health,266.40 
8002824510,03/07/2020,LONDON CARE PLC,Prv Sctr Care Pkage,Director of Adults & Health,266.40 
8002824518,03/07/2020,LONDON CARE PLC,Prv Sctr Care Pkage,Director of Adults & Health,266.40 
8002824543,03/07/2020,LONDON CARE PLC,Prv Sctr Care Pkage,Director of Adults & Health,266.40 
8002824488,03/07/2020,LONDON CARE PLC,Priv Sec-- LBH & CCG,Director of Adults & Health,250.26 
8002824603,03/07/2020,HEADWAY EAST LONDON,Travel Exp - Client,Director of Adults & Health,241.79 
8002824911,03/07/2020,KAAMIL EDUCATION LTD,Prv Sctr Care Pkage,Director of Adults & Health,239.96 
8002824895,03/07/2020,KAAMIL EDUCATION LTD,Prv Sctr Care Pkage,Director of Adults & Health,225.00 
8002824875,03/07/2020,KAAMIL EDUCATION LTD,Prv Sctr Care Pkage,Director of Adults & Health,224.00 
5201335023,03/07/2020,GLS EDUCATIONAL SUPPLIES LIMITED,Arms Length Mgmt Org,Director of Children's Services,223.20 
8002824521,03/07/2020,LONDON CARE PLC,Prv Sctr Care Pkage,Director of Adults & Health,222.00 
1900872700,03/07/2020,LYRECO UK LTD,Stationery,Director of Children's Services,215.73 
8002824496,03/07/2020,LONDON CARE PLC,Prv Sctr Care Pkage,Director of Adults & Health,207.20 
8002824522,03/07/2020,LONDON CARE PLC,Prv Sctr Care Pkage,Director of Adults & Health,207.20 
8002824907,03/07/2020,KAAMIL EDUCATION LTD,Priv Sec-- LBH & CCG,Director of Adults & Health,203.00 
8002824907,03/07/2020,KAAMIL EDUCATION LTD,Prv Sctr Care Pkage,Director of Adults & Health,203.00 
8002824865,03/07/2020,ALL PAY LTD (LBH FUNDING ACCOUNT),Subsist - SS Clients,Director of Children's Services,202.65 
5201335068,03/07/2020,INCLUSION ME LTD,Occupational Therapy,Director of Adults & Health,200.00 
8002824863,03/07/2020,ALL PAY LTD (LBH FUNDING ACCOUNT),Subsist - SS Clients,Director of Children's Services,200.00 
8002802158,03/07/2020,RSM TOPJOBS LTD,Prv Sctr Care Pkage,Director of Adults & Health,196.00 
5201335066,03/07/2020,COLLABORATE & INNOVATE LTD T/A COSY,Toys,Director of Children's Services,193.06 
1900872700,03/07/2020,LYRECO UK LTD,Stationery,Director of Finance,189.00 
8002824534,03/07/2020,LONDON CARE PLC,Priv Sec-- LBH & CCG,Director of Adults & Health,177.60 
8002824864,03/07/2020,ALL PAY LTD (LBH FUNDING ACCOUNT),Subsist - SS Clients,Director of Children's Services,173.70 
8002824502,03/07/2020,LONDON CARE PLC,Prv Sctr Care Pkage,Director of Adults & Health,155.40 
8002824915,03/07/2020,KAAMIL EDUCATION LTD,Prv Sctr Care Pkage,Director of Adults & Health,139.80 
8002824909,03/07/2020,KAAMIL EDUCATION LTD,Prv Sctr Care Pkage,Director of Adults & Health,136.50 
5201334962,03/07/2020,J.A. STEEL AND SON LTD,Removals,"Director of Regen,Planning & Devlop",120.00 
8002824860,03/07/2020,ALL PAY LTD (LBH FUNDING ACCOUNT),Subsist - SS Clients,Director of Children's Services,115.80 
8002824544,03/07/2020,LONDON CARE PLC,Prv Sctr Care Pkage,Director of Adults & Health,99.90 
8002824817,03/07/2020,Redacted Personal Data,Prv Sctr Care Pkage,Director of Adults & Health,99.00 
5201334975,03/07/2020,J.A. STEEL AND SON LTD,Removals,"Director of Regen,Planning & Devlop",96.00 
5201334976,03/07/2020,J.A. STEEL AND SON LTD,Removals,"Director of Regen,Planning & Devlop",96.00 
8002824490,03/07/2020,LONDON CARE PLC,Prv Sctr Care Pkage,Director of Adults & Health,88.80 
1900872702,03/07/2020,CAPITA TRAVEL AND EVENTS LIMITED,Travel Exp Employee,Director of Adults & Health,87.52 
8002824381,03/07/2020,WESTMINSTER HOMECARE LTD,Prv Sctr Care Pkage,Director of Adults & Health,84.00 
8002824886,03/07/2020,KAAMIL EDUCATION LTD,Prv Sctr Care Pkage,Director of Adults & Health,84.00 
5201335053,03/07/2020,I2 GROUP LIMITED,Maint & Support,Director of Transformation & Resources,74.95 
5201334967,03/07/2020,J.A. STEEL AND SON LTD,Removals,"Director of Regen,Planning & Devlop",72.00 
5201334970,03/07/2020,J.A. STEEL AND SON LTD,Removals,"Director of Regen,Planning & Devlop",72.00 
5201334971,03/07/2020,J.A. STEEL AND SON LTD,Removals,"Director of Regen,Planning & Devlop",72.00 
1900872700,03/07/2020,LYRECO UK LTD,Stationery,Assistant Dir Corporate Governance,69.58 
5201335044,03/07/2020,DSI BILLING SERVICES,Printing,Director of Transformation & Resources,68.88 
8002824857,03/07/2020,ALL PAY LTD (LBH FUNDING ACCOUNT),Subsist - SS Clients,Director of Children's Services,60.00 
8002824866,03/07/2020,ALL PAY LTD (LBH FUNDING ACCOUNT),Subsist - SS Clients,Director of Children's Services,57.90 
8002824908,03/07/2020,KAAMIL EDUCATION LTD,Prv Sctr Care Pkage,Director of Adults & Health,56.00 
5201335037,03/07/2020,J.A. STEEL AND SON LTD,Arms Length Mgmt Org,"Director of Regen,Planning & Devlop",48.00 
5201334960,03/07/2020,J.A. STEEL AND SON LTD,Removals,"Director of Regen,Planning & Devlop",48.00 
5201334961,03/07/2020,J.A. STEEL AND SON LTD,Removals,"Director of Regen,Planning & Devlop",48.00 
5201334963,03/07/2020,J.A. STEEL AND SON LTD,Removals,"Director of Regen,Planning & Devlop",48.00 
5201334964,03/07/2020,J.A. STEEL AND SON LTD,Removals,"Director of Regen,Planning & Devlop",48.00 
5201334968,03/07/2020,J.A. STEEL AND SON LTD,Removals,"Director of Regen,Planning & Devlop",48.00 
5201334969,03/07/2020,J.A. STEEL AND SON LTD,Removals,"Director of Regen,Planning & Devlop",48.00 
8002824856,03/07/2020,KAAMIL EDUCATION LTD,Prv Sctr Care Pkage,Director of Adults & Health,46.00 
8002824859,03/07/2020,ALL PAY LTD (LBH FUNDING ACCOUNT),Subsist - SS Clients,Director of Children's Services,40.00 
8002824495,03/07/2020,LONDON CARE PLC,Prv Sctr Care Pkage,Director of Adults & Health,37.00 
5201335054,03/07/2020,NEWLYN PLC,Agencies,Director of Transformation & Resources,31.65 
5201335028,03/07/2020,J.A. STEEL AND SON LTD,Arms Length Mgmt Org,"Director of Regen,Planning & Devlop",24.00 
5201335029,03/07/2020,J.A. STEEL AND SON LTD,Arms Length Mgmt Org,"Director of Regen,Planning & Devlop",24.00 
5201335030,03/07/2020,J.A. STEEL AND SON LTD,Arms Length Mgmt Org,"Director of Regen,Planning & Devlop",24.00 
5201335032,03/07/2020,J.A. STEEL AND SON LTD,Arms Length Mgmt Org,"Director of Regen,Planning & Devlop",24.00 
5201335033,03/07/2020,J.A. STEEL AND SON LTD,Arms Length Mgmt Org,"Director of Regen,Planning & Devlop",24.00 
5201335034,03/07/2020,J.A. STEEL AND SON LTD,Arms Length Mgmt Org,"Director of Regen,Planning & Devlop",24.00 
5201335035,03/07/2020,J.A. STEEL AND SON LTD,Arms Length Mgmt Org,"Director of Regen,Planning & Devlop",24.00 
5201335038,03/07/2020,J.A. STEEL AND SON LTD,Arms Length Mgmt Org,"Director of Regen,Planning & Devlop",24.00 
5201335039,03/07/2020,J.A. STEEL AND SON LTD,Arms Length Mgmt Org,"Director of Regen,Planning & Devlop",24.00 
5201335040,03/07/2020,J.A. STEEL AND SON LTD,Arms Length Mgmt Org,"Director of Regen,Planning & Devlop",24.00 
5201334965,03/07/2020,J.A. STEEL AND SON LTD,Removals,"Director of Regen,Planning & Devlop",24.00 
5201334966,03/07/2020,J.A. STEEL AND SON LTD,Removals,"Director of Regen,Planning & Devlop",24.00 
5201334972,03/07/2020,J.A. STEEL AND SON LTD,Removals,"Director of Regen,Planning & Devlop",24.00 
5201334973,03/07/2020,J.A. STEEL AND SON LTD,Removals,"Director of Regen,Planning & Devlop",24.00 
5201334974,03/07/2020,J.A. STEEL AND SON LTD,Removals,"Director of Regen,Planning & Devlop",24.00 
5201334977,03/07/2020,J.A. STEEL AND SON LTD,Removals,"Director of Regen,Planning & Devlop",24.00 
5201334978,03/07/2020,J.A. STEEL AND SON LTD,Removals,"Director of Regen,Planning & Devlop",24.00 
5201335067,03/07/2020,COLLABORATE & INNOVATE LTD T/A COSY,Toys,Director of Children's Services,14.29 
5201335027,03/07/2020,LATCHAM DIRECT LIMITED,Fees - Storage,Director of Transformation & Resources,0.45 
5201335019,03/07/2020,VIGILANT SECURITY SERVICES UK LTD,Prem - Security,"Director of Regen,Planning & Devlop",-69.40 
1700022303,03/07/2020,HAYS SPECIALIST RECRUITMENT,SalAgen-Est Post,Director of Children's Services,-344.82 
1700022306,03/07/2020,CAPITA TRAVEL AND EVENTS LIMITED,Travel Exp Employee,Director of Children's Services,-427.40 
8012824927,03/07/2020,ELLIOT LEIGH TLC LTD,Priv - Contractor,Director of Children's Services,-475.71 
1700022303,03/07/2020,HAYS SPECIALIST RECRUITMENT,SalAgen-Est Post,Director of Environment & Neighbourhoods,-697.92 
1700022304,03/07/2020,HAYS SPECIALIST RECRUITMENT,SalAgen-Est Post,Director of Transformation & Resources,-1201.50 
1700022303,03/07/2020,HAYS SPECIALIST RECRUITMENT,SalAgen-Est Post,Director of Transformation & Resources,-4812.72 
1700022303,03/07/2020,HAYS SPECIALIST RECRUITMENT,SalAgen-Est Post,Director of Adults & Health,-7367.16 
SI14046,03/07/2020,Redacted Personal Data,Music Teachers,Director of Children's Services,567.00 
SI14046,03/07/2020,Redacted Personal Data,Music Teachers,Director of Children's Services,202.50 
SI14046,03/07/2020,Redacted Personal Data,Music Teachers,Director of Children's Services,189.00 
SI14046,03/07/2020,Redacted Personal Data,Music Teachers,Director of Children's Services,162.00 
SI14046,03/07/2020,Redacted Personal Data,Music Teachers,Director of Children's Services,108.00 
SI14046,03/07/2020,Redacted Personal Data,Music Teachers,Director of Children's Services,103.41 
SI14046,03/07/2020,Redacted Personal Data,Music Teachers,Director of Children's Services,94.50 
SI14046,03/07/2020,Redacted Personal Data,Music Teachers,Director of Children's Services,54.00 
SI13929,05/07/2020,Turnrest Ltd,Passenger Transport Services 2019,Director of Children's Services,1865.00 
SI13929,05/07/2020,B & L Coaches,Passenger Transport Services 2019,Director of Children's Services,790.00 
SI13929,05/07/2020,network cars (tottenham) ltd,Passenger Transport Services 2019,Director of Children's Services,475.00 
SI13928,05/07/2020,Sam's Cars Limited ,Passenger Transport Services 2019,Director of Children's Services,375.00 
SI13928,05/07/2020,Miniways Car Service,Passenger Transport Services 2019,Director of Children's Services,253.00 
SI13928,05/07/2020,network cars (tottenham) ltd,Passenger Transport Services 2019,Director of Children's Services,215.00 
SI13928,05/07/2020,Airport Transfer Cars Ltd,Passenger Transport Services 2019,Director of Children's Services,119.00 
BI13230,05/07/2020,Turney Landscapes Limited ,Maintenance,Director of Environment & Neighbourhoods,40500.00 
BI13230,05/07/2020,CSG Usher's Ltd,Maintenance,Director of Environment & Neighbourhoods,8504.45 
BI13231,06/07/2020,Hawkins\Brown,"Construction, Estates and Property Professional Services","Director of Regen,Planning & Devlop",149332.66 
5201335166,06/07/2020,PUBLIC VOICE CIC,Social Community Care Supplies & Services - Adult,Director of Adults & Health,109167.50 
5201335167,06/07/2020,TFL SURFACE TRANSPORT,Roads,Director of Environment & Neighbourhoods,82584.22 
5201335172,06/07/2020,Signway Supplies (Datchet) Ltd,Technical & Feasibility,Director of Environment & Neighbourhoods,51000.00 
BI13231,06/07/2020,McBains Ltd,"Construction, Estates and Property Professional Services","Director of Regen,Planning & Devlop",47868.36 
5201335145,06/07/2020,ADAM HTT LTD T/A ADAM,Organised Activities,Director of Environment & Neighbourhoods,25760.00 
5201335168,06/07/2020,PUBLIC VOICE CIC,Business,Director of Adults & Health,20833.33 
5201335178,06/07/2020,CARTER JONAS LLP,Property,"Director of Regen,Planning & Devlop",15500.00 
5201335215,06/07/2020,EE LIMITED,Mobile,Director of Transformation & Resources,13639.66 
5201335165,06/07/2020,MONTAGU EVANS LLP,Efficiency,"Director of Regen,Planning & Devlop",6820.00 
5201335221,06/07/2020,VEOLIA ES (UK) LTD,Waste Coll Recycling,"Director of Regen,Planning & Devlop",5386.60 
5201335211,06/07/2020,VEOLIA ES (UK) LTD,Waste Coll Recycling,"Director of Regen,Planning & Devlop",5332.12 
5201335203,06/07/2020,SIEMENS PLC,Energy Efficiency,"Director of Regen,Planning & Devlop",5193.36 
5201335156,06/07/2020,THAMES REACH CHARITY !! THAMES REAC,Temporary & Agency Staff,Director of Adults & Health,4276.94 
8002824958,06/07/2020,MAISON MOTI LTD,Prv Sctr Care Pkage,Director of Adults & Health,4230.00 
5201335146,06/07/2020,ADAM HTT LTD T/A ADAM,Organised Activities,Director of Environment & Neighbourhoods,3442.00 
1900872711,06/07/2020,BRITISH GAS BUSINESS,Energy - Gas,Director of Children's Services,3202.88 
8002824946,06/07/2020,KARTEROS LTD T/A ST MARKS DAY SERVI,Prv Sctr Care Pkage,Director of Adults & Health,3200.00 
8002824947,06/07/2020,KARTEROS LTD T/A ST MARKS DAY SERVI,Prv Sctr Care Pkage,Director of Adults & Health,3200.00 
1900872714,06/07/2020,BRITISH GAS BUSINESS,Energy - Gas,Director of Children's Services,3037.26 
5201335209,06/07/2020,ASKEWS & HOLTS LIBRARY SERVICES LTD,Library Books,Director of Adults & Health,2972.94 
5201335220,06/07/2020,STACE LLP,Consultancy,Director of Finance,2868.20 
8002824985,06/07/2020,NORWOOD SCHOOLS LTD,Prv Sctr Care Pkage,Director of Adults & Health,2660.72 
8002824942,06/07/2020,KARTEROS LTD T/A ST MARKS DAY SERVI,Prv Sctr Care Pkage,Director of Adults & Health,2600.00 
5201335175,06/07/2020,ALLEN LANE LTD,Accountancy,Director of Finance,2590.00 
5201335077,06/07/2020,Global Guardians Facilities Mgnt,"Works - Construction, Repair & Maintenance",Director of Finance,2550.00 
1900872715,06/07/2020,BRITISH GAS BUSINESS,Energy - Gas,Director of Children's Services,2481.27 
1900872707,06/07/2020,BRITISH GAS BUSINESS,Energy - Gas,Director of Children's Services,2469.88 
5201335148,06/07/2020,ALLEN LANE LTD,Social Community Care Supplies & Services - Children,Director of Finance,2461.60 
1900872709,06/07/2020,BRITISH GAS BUSINESS,Energy - Gas,Director of Children's Services,2437.22 
1900872708,06/07/2020,BRITISH GAS BUSINESS,Energy - Gas,Director of Children's Services,2322.28 
5201335213,06/07/2020,TECHSQUAD SOLUTIONS LIMITED,Customised & Bespoke,Director of Children's Services,2000.00 
8002824986,06/07/2020,NORWOOD SCHOOLS LTD,Prv Sctr Care Pkage,Director of Adults & Health,1998.72 
1900872705,06/07/2020,BRITISH GAS BUSINESS,Energy - Gas,Director of Children's Services,1995.08 
1900872719,06/07/2020,BRITISH GAS BUSINESS,Energy - Gas,Director of Children's Services,1936.71 
8002825044,06/07/2020,NORWOOD SCHOOLS LTD,Priv - Contractor,Director of Adults & Health,1880.96 
1900872712,06/07/2020,BRITISH GAS BUSINESS,Energy - Gas,Director of Children's Services,1875.90 
5201335086,06/07/2020,CLONIS PROPERTY SERVICES LTD,Prem - Leasing,"Director of Regen,Planning & Devlop",1807.00 
5201335176,06/07/2020,ALLEN LANE LTD,Professional,Director of Finance,1759.28 
5201335106,06/07/2020,PROPERTYNET (UK) LIMITED,Prem - Leasing,"Director of Regen,Planning & Devlop",1711.66 
8002825046,06/07/2020,AREA 51 EDUCATION LTD,Prv Sctr Care Pkage,Director of Adults & Health,1707.40 
1900872718,06/07/2020,BRITISH GAS BUSINESS,Energy - Gas,Director of Children's Services,1690.33 
5201335083,06/07/2020,Redacted Personal Data,Prem - Leasing,"Director of Regen,Planning & Devlop",1681.33 
5201335088,06/07/2020,Redacted Personal Data,Prem - Leasing,"Director of Regen,Planning & Devlop",1681.33 
5201335098,06/07/2020,Redacted Personal Data,Prem - Leasing,"Director of Regen,Planning & Devlop",1681.33 
5201335110,06/07/2020,Redacted Personal Data,Prem - Leasing,"Director of Regen,Planning & Devlop",1681.33 
5201335126,06/07/2020,MILLENIUM INVESTMENT 2000 LTD,Prem - Leasing,"Director of Regen,Planning & Devlop",1681.33 
8002824113,06/07/2020,ST GEORGES HOME CARE LTD,Prv Sctr Care Pkage,Director of Adults & Health,1638.00 
5201335216,06/07/2020,Unit One Architects Ltd,Architect,Director of Finance,1500.00 
5201335217,06/07/2020,Unit One Architects Ltd,Architect,Director of Finance,1500.00 
5201335218,06/07/2020,Unit One Architects Ltd,Architect,Director of Finance,1500.00 
5201335109,06/07/2020,OLIVEGROVE INVESTMENTS LTD,Prem - Leasing,"Director of Regen,Planning & Devlop",1473.33 
5201335119,06/07/2020,FALCON PROPERTIES LTD,Prem - Leasing,"Director of Regen,Planning & Devlop",1473.33 
5201335095,06/07/2020,FALCON PROPERTIES LTD,Prem - Leasing,"Director of Regen,Planning & Devlop",1404.00 
5201335120,06/07/2020,Redacted Personal Data,Prem - Leasing,"Director of Regen,Planning & Devlop",1404.00 
5201335104,06/07/2020,KEEL HOMES LTD,Prem - Leasing,"Director of Regen,Planning & Devlop",1400.53 
5201335142,06/07/2020,Redacted Personal Data,Prem - Leasing,"Director of Regen,Planning & Devlop",1389.87 
5201335089,06/07/2020,Redacted Personal Data,Prem - Leasing,"Director of Regen,Planning & Devlop",1386.66 
5201335103,06/07/2020,Redacted Personal Data,Prem - Leasing,"Director of Regen,Planning & Devlop",1365.52 
5201335079,06/07/2020,ADAMS & STYLES,Prem - Leasing,"Director of Regen,Planning & Devlop",1365.00 
5201335080,06/07/2020,ADAMS & STYLES,Prem - Leasing,"Director of Regen,Planning & Devlop",1365.00 
5201335092,06/07/2020,Redacted Personal Data,Prem - Leasing,"Director of Regen,Planning & Devlop",1365.00 
5201335093,06/07/2020,1ST CLASS LETTINGS LTD,Prem - Leasing,"Director of Regen,Planning & Devlop",1365.00 
5201335094,06/07/2020,Redacted Personal Data,Prem - Leasing,"Director of Regen,Planning & Devlop",1365.00 
5201335096,06/07/2020,Redacted Personal Data,Prem - Leasing,"Director of Regen,Planning & Devlop",1365.00 
5201335097,06/07/2020,Redacted Personal Data,Prem - Leasing,"Director of Regen,Planning & Devlop",1365.00 
5201335102,06/07/2020,Redacted Personal Data,Prem - Leasing,"Director of Regen,Planning & Devlop",1365.00 
5201335113,06/07/2020,CLASS ESTATES LIMITED,Prem - Leasing,"Director of Regen,Planning & Devlop",1365.00 
5201335114,06/07/2020,CLASS ESTATES LIMITED,Prem - Leasing,"Director of Regen,Planning & Devlop",1365.00 
5201335115,06/07/2020,Redacted Personal Data,Prem - Leasing,"Director of Regen,Planning & Devlop",1365.00 
5201335116,06/07/2020,Redacted Personal Data,Prem - Leasing,"Director of Regen,Planning & Devlop",1365.00 
5201335124,06/07/2020,Redacted Personal Data,Prem - Leasing,"Director of Regen,Planning & Devlop",1365.00 
5201335127,06/07/2020,Redacted Personal Data,Prem - Leasing,"Director of Regen,Planning & Devlop",1365.00 
5201335139,06/07/2020,Redacted Personal Data,Prem - Leasing,"Director of Regen,Planning & Devlop",1365.00 
5201335143,06/07/2020,Redacted Personal Data,Prem - Leasing,"Director of Regen,Planning & Devlop",1365.00 
5201335140,06/07/2020,NEOPHYTOU PROPERTY INVESTMENTS LIMI,Prem - Leasing,"Director of Regen,Planning & Devlop",1349.40 
1900872717,06/07/2020,BRITISH GAS BUSINESS,Energy - Gas,Director of Children's Services,1345.94 
5201335137,06/07/2020,Redacted Personal Data,Prem - Leasing,"Director of Regen,Planning & Devlop",1339.00 
5201335133,06/07/2020,CLASS ESTATES LIMITED,Prem - Leasing,"Director of Regen,Planning & Devlop",1334.66 
5201335207,06/07/2020,BE FUELCARDS LIMITED,Fuel,Director of Environment & Neighbourhoods,1317.45 
5201335134,06/07/2020,Redacted Personal Data,Prem - Leasing,"Director of Regen,Planning & Devlop",1317.33 
5201335125,06/07/2020,Redacted Personal Data,Prem - Leasing,"Director of Regen,Planning & Devlop",1308.66 
5201335177,06/07/2020,ALLEN LANE LTD,Professional,Director of Finance,1305.00 
5201335118,06/07/2020,Redacted Personal Data,Prem - Leasing,"Director of Regen,Planning & Devlop",1300.00 
5201335206,06/07/2020,BADGER COMPUTER SERVICES LTD,Hardware,Director of Children's Services,1265.00 
5201335121,06/07/2020,GOLDSTAGE LTD,Prem - Leasing,"Director of Regen,Planning & Devlop",1250.00 
5201335149,06/07/2020,ALLIED PUBLICITY SERVICES MANCHESTE,Debt Collection & Recovery,Director of Environment & Neighbourhoods,1190.97 
5201335129,06/07/2020,ADAMS & STYLES,Prem - Leasing,"Director of Regen,Planning & Devlop",1148.33 
5201335174,06/07/2020,WAX DIGITAL LTD,Procurement,Director of Environment & Neighbourhoods,1125.00 
5201335087,06/07/2020,Redacted Personal Data,Prem - Leasing,"Director of Regen,Planning & Devlop",1106.47 
5201335130,06/07/2020,Redacted Personal Data,Prem - Leasing,"Director of Regen,Planning & Devlop",1106.47 
5201335078,06/07/2020,Redacted Personal Data,Prem - Leasing,"Director of Regen,Planning & Devlop",1105.00 
5201335081,06/07/2020,Redacted Personal Data,Prem - Leasing,"Director of Regen,Planning & Devlop",1105.00 
5201335082,06/07/2020,Redacted Personal Data,Prem - Leasing,"Director of Regen,Planning & Devlop",1105.00 
5201335084,06/07/2020,Redacted Personal Data,Prem - Leasing,"Director of Regen,Planning & Devlop",1105.00 
5201335090,06/07/2020,Redacted Personal Data,Prem - Leasing,"Director of Regen,Planning & Devlop",1105.00 
5201335099,06/07/2020,Redacted Personal Data,Prem - Leasing,"Director of Regen,Planning & Devlop",1105.00 
5201335100,06/07/2020,Redacted Personal Data,Prem - Leasing,"Director of Regen,Planning & Devlop",1105.00 
5201335101,06/07/2020,Redacted Personal Data,Prem - Leasing,"Director of Regen,Planning & Devlop",1105.00 
5201335105,06/07/2020,Redacted Personal Data,Prem - Leasing,"Director of Regen,Planning & Devlop",1105.00 
5201335122,06/07/2020,LITTLE ACORN LTD,Prem - Leasing,"Director of Regen,Planning & Devlop",1105.00 
5201335123,06/07/2020,Redacted Personal Data,Prem - Leasing,"Director of Regen,Planning & Devlop",1105.00 
5201335128,06/07/2020,ADAMS & STYLES,Prem - Leasing,"Director of Regen,Planning & Devlop",1105.00 
5201335131,06/07/2020,Redacted Personal Data,Prem - Leasing,"Director of Regen,Planning & Devlop",1105.00 
5201335132,06/07/2020,STATEBOND LTD T/A HORNSEY AGENCIES,Prem - Leasing,"Director of Regen,Planning & Devlop",1105.00 
5201335141,06/07/2020,Redacted Personal Data,Prem - Leasing,"Director of Regen,Planning & Devlop",1105.00 
5201335138,06/07/2020,LANGFORD CHASE ESTATE AGENTS LTD,Prem - Leasing,"Director of Regen,Planning & Devlop",1100.00 
5201335091,06/07/2020,Redacted Personal Data,Prem - Leasing,"Director of Regen,Planning & Devlop",1061.66 
5201335136,06/07/2020,PATTICHIS PROPERTIES,Prem - Leasing,"Director of Regen,Planning & Devlop",1061.66 
5201335150,06/07/2020,ADAM HTT LTD T/A ADAM,Passenger Transport,Director of Children's Services,1048.50 
5201335112,06/07/2020,Redacted Personal Data,Prem - Leasing,"Director of Regen,Planning & Devlop",1001.00 
1900872716,06/07/2020,BRITISH GAS BUSINESS,Energy - Gas,Director of Children's Services,1000.32 
SI13957,06/07/2020,Redacted Personal Data,Passenger Transport Services 2019,Director of Children's Services,1000.00 
5201335117,06/07/2020,Redacted Personal Data,Prem - Leasing,"Director of Regen,Planning & Devlop",999.96 
5201335111,06/07/2020,Redacted Personal Data,Prem - Leasing,"Director of Regen,Planning & Devlop",975.00 
SI13957,06/07/2020,Redacted Personal Data,Passenger Transport Services 2019,Director of Children's Services,950.00 
SI13957,06/07/2020,Redacted Personal Data,Passenger Transport Services 2019,Director of Children's Services,950.00 
SI13957,06/07/2020,Redacted Personal Data,Passenger Transport Services 2019,Director of Children's Services,950.00 
SI13957,06/07/2020,Redacted Personal Data,Passenger Transport Services 2019,Director of Children's Services,950.00 
SI13957,06/07/2020,Redacted Personal Data,Passenger Transport Services 2019,Director of Children's Services,950.00 
SI13957,06/07/2020,Redacted Personal Data,Passenger Transport Services 2019,Director of Children's Services,950.00 
2500021561,06/07/2020,GRANT PAYMENTS,Grant - Vol Org Run,Director of Environment & Neighbourhoods,931.00 
5201335085,06/07/2020,Redacted Personal Data,Prem - Leasing,"Director of Regen,Planning & Devlop",891.24 
5201335107,06/07/2020,Redacted Personal Data,Prem - Leasing,"Director of Regen,Planning & Devlop",888.33 
1900872713,06/07/2020,BRITISH GAS BUSINESS,Energy - Gas,Director of Children's Services,863.08 
1900872703,06/07/2020,THAMES WATER UTILITIES LTD,Prem - Water Rates,"Director of Regen,Planning & Devlop",858.00 
SI13957,06/07/2020,Redacted Personal Data,Passenger Transport Services 2019,Director of Children's Services,850.00 
SI13957,06/07/2020,Redacted Personal Data,Passenger Transport Services 2019,Director of Children's Services,850.00 
SI13957,06/07/2020,Redacted Personal Data,Passenger Transport Services 2019,Director of Children's Services,850.00 
SI13957,06/07/2020,Redacted Personal Data,Passenger Transport Services 2019,Director of Children's Services,850.00 
SI13957,06/07/2020,Redacted Personal Data,Passenger Transport Services 2019,Director of Children's Services,850.00 
SI13957,06/07/2020,Redacted Personal Data,Passenger Transport Services 2019,Director of Children's Services,850.00 
SI13957,06/07/2020,Redacted Personal Data,Passenger Transport Services 2019,Director of Children's Services,850.00 
SI13957,06/07/2020,Redacted Personal Data,Passenger Transport Services 2019,Director of Children's Services,850.00 
SI13957,06/07/2020,Redacted Personal Data,Passenger Transport Services 2019,Director of Children's Services,850.00 
SI13957,06/07/2020,Redacted Personal Data,Passenger Transport Services 2019,Director of Children's Services,850.00 
SI13957,06/07/2020,Redacted Personal Data,Passenger Transport Services 2019,Director of Children's Services,850.00 
SI13957,06/07/2020,Redacted Personal Data,Passenger Transport Services 2019,Director of Children's Services,850.00 
SI13957,06/07/2020,Redacted Personal Data,Passenger Transport Services 2019,Director of Children's Services,850.00 
SI13957,06/07/2020,Redacted Personal Data,Passenger Transport Services 2019,Director of Children's Services,850.00 
SI13957,06/07/2020,Redacted Personal Data,Passenger Transport Services 2019,Director of Children's Services,850.00 
SI13957,06/07/2020,Redacted Personal Data,Passenger Transport Services 2019,Director of Children's Services,850.00 
SI13957,06/07/2020,Redacted Personal Data,Passenger Transport Services 2019,Director of Children's Services,850.00 
SI13957,06/07/2020,Redacted Personal Data,Passenger Transport Services 2019,Director of Children's Services,850.00 
SI13957,06/07/2020,Redacted Personal Data,Passenger Transport Services 2019,Director of Children's Services,850.00 
SI13957,06/07/2020,Redacted Personal Data,Passenger Transport Services 2019,Director of Children's Services,850.00 
SI13957,06/07/2020,Redacted Personal Data,Passenger Transport Services 2019,Director of Children's Services,850.00 
SI13957,06/07/2020,Redacted Personal Data,Passenger Transport Services 2019,Director of Children's Services,850.00 
SI13957,06/07/2020,Redacted Personal Data,Passenger Transport Services 2019,Director of Children's Services,850.00 
SI13957,06/07/2020,Redacted Personal Data,Passenger Transport Services 2019,Director of Children's Services,850.00 
SI13957,06/07/2020,Redacted Personal Data,Passenger Transport Services 2019,Director of Children's Services,850.00 
SI13957,06/07/2020,Redacted Personal Data,Passenger Transport Services 2019,Director of Children's Services,850.00 
SI13957,06/07/2020,Redacted Personal Data,Passenger Transport Services 2019,Director of Children's Services,850.00 
SI13957,06/07/2020,Redacted Personal Data,Passenger Transport Services 2019,Director of Children's Services,850.00 
SI13957,06/07/2020,Redacted Personal Data,Passenger Transport Services 2019,Director of Children's Services,850.00 
SI13957,06/07/2020,Redacted Personal Data,Passenger Transport Services 2019,Director of Children's Services,850.00 
SI13957,06/07/2020,Redacted Personal Data,Passenger Transport Services 2019,Director of Children's Services,850.00 
SI13957,06/07/2020,Redacted Personal Data,Passenger Transport Services 2019,Director of Children's Services,850.00 
SI13957,06/07/2020,Redacted Personal Data,Passenger Transport Services 2019,Director of Children's Services,850.00 
SI13957,06/07/2020,Redacted Personal Data,Passenger Transport Services 2019,Director of Children's Services,850.00 
SI13957,06/07/2020,Redacted Personal Data,Passenger Transport Services 2019,Director of Children's Services,850.00 
SI13957,06/07/2020,Redacted Personal Data,Passenger Transport Services 2019,Director of Children's Services,850.00 
5201335108,06/07/2020,Redacted Personal Data,Prem - Leasing,"Director of Regen,Planning & Devlop",824.98 
SI13957,06/07/2020,Redacted Personal Data,Passenger Transport Services 2019,Director of Children's Services,750.00 
SI13957,06/07/2020,Redacted Personal Data,Passenger Transport Services 2019,Director of Children's Services,750.00 
5201335147,06/07/2020,ATTENTI LIMITED,Temporary & Agency Staff,Director of Children's Services,683.73 
SI13957,06/07/2020,Redacted Personal Data,Passenger Transport Services 2019,Director of Children's Services,680.00 
5201335144,06/07/2020,BERRYMANS LACE MAWER,Specialist Support,Assistant Dir Corporate Governance,653.50 
5201335071,06/07/2020,INCLUSION ME LTD,Occupational Therapy,Director of Adults & Health,650.00 
5201335073,06/07/2020,INCLUSION ME LTD,Occupational Therapy,Director of Adults & Health,650.00 
5201335076,06/07/2020,INCLUSION ME LTD,Occupational Therapy,Director of Adults & Health,650.00 
1900872706,06/07/2020,BRITISH GAS BUSINESS,Energy - Gas,Director of Children's Services,629.30 
5201335173,06/07/2020,SG PATH LIMITED,Fees,Director of Environment & Neighbourhoods,595.90 
5201335171,06/07/2020,THE COPYRIGHT LICENSING AGENCY LTD,Subscriptions,"Director of Regen,Planning & Devlop",525.14 
8002824105,06/07/2020,ST GEORGES HOME CARE LTD,Prv Sctr Care Pkage,Director of Adults & Health,503.60 
5201335199,06/07/2020,ZENITH MOTORCYCLES LIMITED,Commercial,Director of Environment & Neighbourhoods,466.79 
1900872704,06/07/2020,BRITISH GAS BUSINESS,Energy - Gas,Director of Children's Services,456.13 
5201335070,06/07/2020,INCLUSION ME LTD,Occupational Therapy,Director of Adults & Health,450.00 
5201335154,06/07/2020,Avison Young (UK) Limited,Business,"Director of Regen,Planning & Devlop",431.25 
5201335198,06/07/2020,BT PAYMENT SERVICES LTD,Fixed,Director of Children's Services,377.88 
5201335194,06/07/2020,THOMAS RIDLEY & SON  LTD,Corporate Services,Director of Children's Services,353.70 
5201335212,06/07/2020,OG SPORT LTD,Sports Equipment,Director of Adults & Health,325.90 
8002824105,06/07/2020,ST GEORGES HOME CARE LTD,Priv Sec-- LBH & CCG,Director of Adults & Health,322.00 
5201335152,06/07/2020,ADAM HTT LTD T/A ADAM,Technical & Feasibility,Director of Environment & Neighbourhoods,273.50 
1900872710,06/07/2020,BRITISH GAS BUSINESS,Energy - Gas,Director of Children's Services,236.30 
5201335205,06/07/2020,SOLACE,Conferences,Director of Environment & Neighbourhoods,200.00 
5201335069,06/07/2020,INCLUSION ME LTD,Occupational Therapy,Director of Adults & Health,200.00 
5201335072,06/07/2020,INCLUSION ME LTD,Occupational Therapy,Director of Adults & Health,200.00 
5201335074,06/07/2020,INCLUSION ME LTD,Occupational Therapy,Director of Adults & Health,200.00 
5201335075,06/07/2020,INCLUSION ME LTD,Occupational Therapy,Director of Adults & Health,200.00 
5201335153,06/07/2020,ASHFORDS LLP,Specialist Support,Assistant Dir Corporate Governance,200.00 
SI13957,06/07/2020,Redacted Personal Data,Passenger Transport Services 2019,Director of Children's Services,190.00 
8002824108,06/07/2020,ST GEORGES HOME CARE LTD,Prv Sctr Care Pkage,Director of Adults & Health,175.00 
5201335210,06/07/2020,ASKEWS & HOLTS LIBRARY SERVICES LTD,Library Books,Director of Adults & Health,172.74 
SI13957,06/07/2020,Redacted Personal Data,Passenger Transport Services 2019,Director of Children's Services,170.00 
SI13957,06/07/2020,Redacted Personal Data,Passenger Transport Services 2019,Director of Children's Services,150.00 
SI13957,06/07/2020,Redacted Personal Data,Passenger Transport Services 2019,Director of Children's Services,150.00 
5201335170,06/07/2020,M3 HOUSING LTD,Subscriptions,Director of Adults & Health,140.00 
8002824115,06/07/2020,ST GEORGES HOME CARE LTD,Priv Sec-- LBH & CCG,Director of Adults & Health,136.50 
5201335197,06/07/2020,THOMAS RIDLEY & SON  LTD,Corporate Services,Director of Children's Services,112.13 
2500021564,06/07/2020,COMPENSATION CLAIMS & LEGAL COSTS,Fees - Court Costs,Assistant Dir Corporate Governance,100.00 
8002825026,06/07/2020,ALLPAY LTD CHILDREN AND FAMILY,Prem - Rents,Director of Children's Services,100.00 
8002825027,06/07/2020,ALLPAY LTD CHILDREN AND FAMILY,Prem - Rents,Director of Children's Services,100.00 
5201335158,06/07/2020,PRESCOTT THOMAS LTD,Corporate Services  Catering,Director of Children's Services,98.91 
5201335160,06/07/2020,PRESCOTT THOMAS LTD,Corporate Services  Catering,Director of Children's Services,98.37 
5201335159,06/07/2020,PRESCOTT THOMAS LTD,Corporate Services  Catering,Director of Children's Services,93.61 
5201335201,06/07/2020,THE G.I.S. GROUP,General Support,Assistant Dir Corporate Governance,90.00 
8002825033,06/07/2020,ALLPAY LTD CHILDREN AND FAMILY,Subsist - SS Clients,Director of Children's Services,77.90 
5201335155,06/07/2020,PRESCOTT THOMAS LTD,Corporate Services  Catering,Director of Children's Services,60.34 
8002825011,06/07/2020,ALLPAY LTD CHILDREN AND FAMILY,SSChild-PersonalItem,Director of Children's Services,60.00 
8002825040,06/07/2020,ALLPAY LTD CHILDREN AND FAMILY,SSChild-PersonalItem,Director of Children's Services,60.00 
8002825003,06/07/2020,ALLPAY LTD CHILDREN AND FAMILY,Subsist - SS Clients,Director of Children's Services,58.90 
8002825004,06/07/2020,ALLPAY LTD CHILDREN AND FAMILY,Subsist - SS Clients,Director of Children's Services,58.90 
8002825005,06/07/2020,ALLPAY LTD CHILDREN AND FAMILY,Subsist - SS Clients,Director of Children's Services,58.90 
8002825009,06/07/2020,ALLPAY LTD CHILDREN AND FAMILY,Subsist - SS Clients,Director of Children's Services,58.90 
8002825014,06/07/2020,ALLPAY LTD CHILDREN AND FAMILY,Subsist - SS Clients,Director of Children's Services,58.90 
8002825020,06/07/2020,ALLPAY LTD CHILDREN AND FAMILY,Subsist - SS Clients,Director of Children's Services,58.90 
8002825025,06/07/2020,ALLPAY LTD CHILDREN AND FAMILY,Subsist - SS Clients,Director of Children's Services,58.90 
8002825028,06/07/2020,ALLPAY LTD CHILDREN AND FAMILY,Subsist - SS Clients,Director of Children's Services,58.90 
8002825031,06/07/2020,ALLPAY LTD CHILDREN AND FAMILY,Subsist - SS Clients,Director of Children's Services,58.90 
8002825043,06/07/2020,ALLPAY LTD CHILDREN AND FAMILY,Subsist - SS Clients,Director of Children's Services,58.90 
8002824988,06/07/2020,ALLPAY LTD CHILDREN AND FAMILY,Subsist - SS Clients,Director of Children's Services,57.90 
8002824989,06/07/2020,ALLPAY LTD CHILDREN AND FAMILY,Subsist - SS Clients,Director of Children's Services,57.90 
8002824992,06/07/2020,ALLPAY LTD CHILDREN AND FAMILY,Subsist - SS Clients,Director of Children's Services,57.90 
8002824995,06/07/2020,ALLPAY LTD CHILDREN AND FAMILY,Subsist - SS Clients,Director of Children's Services,57.90 
8002824996,06/07/2020,ALLPAY LTD CHILDREN AND FAMILY,Subsist - SS Clients,Director of Children's Services,57.90 
8002824998,06/07/2020,ALLPAY LTD CHILDREN AND FAMILY,Subsist - SS Clients,Director of Children's Services,57.90 
8002824999,06/07/2020,ALLPAY LTD CHILDREN AND FAMILY,Subsist - SS Clients,Director of Children's Services,57.90 
8002825000,06/07/2020,ALLPAY LTD CHILDREN AND FAMILY,Subsist - SS Clients,Director of Children's Services,57.90 
8002825001,06/07/2020,ALLPAY LTD CHILDREN AND FAMILY,Subsist - SS Clients,Director of Children's Services,57.90 
8002825002,06/07/2020,ALLPAY LTD CHILDREN AND FAMILY,Subsist - SS Clients,Director of Children's Services,57.90 
8002825007,06/07/2020,ALLPAY LTD CHILDREN AND FAMILY,Subsist - SS Clients,Director of Children's Services,57.90 
8002825008,06/07/2020,ALLPAY LTD CHILDREN AND FAMILY,Subsist - SS Clients,Director of Children's Services,57.90 
8002825011,06/07/2020,ALLPAY LTD CHILDREN AND FAMILY,Subsist - SS Clients,Director of Children's Services,57.90 
8002825012,06/07/2020,ALLPAY LTD CHILDREN AND FAMILY,Subsist - SS Clients,Director of Children's Services,57.90 
8002825013,06/07/2020,ALLPAY LTD CHILDREN AND FAMILY,Subsist - SS Clients,Director of Children's Services,57.90 
8002825016,06/07/2020,ALLPAY LTD CHILDREN AND FAMILY,Subsist - SS Clients,Director of Children's Services,57.90 
8002825017,06/07/2020,ALLPAY LTD CHILDREN AND FAMILY,Subsist - SS Clients,Director of Children's Services,57.90 
8002825022,06/07/2020,ALLPAY LTD CHILDREN AND FAMILY,Subsist - SS Clients,Director of Children's Services,57.90 
8002825023,06/07/2020,ALLPAY LTD CHILDREN AND FAMILY,Subsist - SS Clients,Director of Children's Services,57.90 
8002825024,06/07/2020,ALLPAY LTD CHILDREN AND FAMILY,Subsist - SS Clients,Director of Children's Services,57.90 
8002825032,06/07/2020,ALLPAY LTD CHILDREN AND FAMILY,Subsist - SS Clients,Director of Children's Services,57.90 
8002825034,06/07/2020,ALLPAY LTD CHILDREN AND FAMILY,Subsist - SS Clients,Director of Children's Services,57.90 
8002825035,06/07/2020,ALLPAY LTD CHILDREN AND FAMILY,Subsist - SS Clients,Director of Children's Services,57.90 
8002825039,06/07/2020,ALLPAY LTD CHILDREN AND FAMILY,Subsist - SS Clients,Director of Children's Services,57.90 
8002825041,06/07/2020,ALLPAY LTD CHILDREN AND FAMILY,Subsist - SS Clients,Director of Children's Services,57.90 
8002825042,06/07/2020,ALLPAY LTD CHILDREN AND FAMILY,Subsist - SS Clients,Director of Children's Services,57.90 
8002824978,06/07/2020,Redacted Personal Data,LAC - Regular Pay,Director of Children's Services,53.14 
5201335219,06/07/2020,LOCAL GOVERNMENT FUTURES LTD,Subscriptions,Director of Finance,50.00 
5201335202,06/07/2020,OG SPORT LTD,Sports Equipment,Director of Adults & Health,48.28 
1900872720,06/07/2020,E.ON,Energy - Electric,"Director of Regen,Planning & Devlop",44.32 
5201335164,06/07/2020,WILLIAM WHITE MEATS LTD,Meat & Frozen food,Director of Children's Services,40.80 
5201335204,06/07/2020,Redacted Personal Data,Interpretation & Tra,"Director of Regen,Planning & Devlop",40.00 
1900872721,06/07/2020,E.ON,Energy - Electric,"Director of Regen,Planning & Devlop",35.89 
1900872722,06/07/2020,E.ON,Energy - Electric,"Director of Regen,Planning & Devlop",35.11 
5201335161,06/07/2020,PRESCOTT THOMAS LTD,Corporate Services  Catering,Director of Children's Services,30.16 
5201335169,06/07/2020,Redacted Personal Data,Interpretation & Translation,"Director of Regen,Planning & Devlop",30.00 
1900872723,06/07/2020,E.ON,Energy - Electric,"Director of Regen,Planning & Devlop",29.24 
5201335163,06/07/2020,PRESCOTT THOMAS LTD,Corporate Services  Catering,Director of Children's Services,18.22 
8002824991,06/07/2020,ALLPAY LTD CHILDREN AND FAMILY,Travel Exp - Client,Director of Children's Services,15.00 
8002824999,06/07/2020,ALLPAY LTD CHILDREN AND FAMILY,Travel Exp - Client,Director of Children's Services,15.00 
5201335162,06/07/2020,WILLIAM WHITE MEATS LTD,School Meals Service,Director of Children's Services,12.01 
8002825038,06/07/2020,ALLPAY LTD CHILDREN AND FAMILY,Travel Exp - Client,Director of Children's Services,8.50 
5201335208,06/07/2020,ASKEWS & HOLTS LIBRARY SERVICES LTD,Library Books,Director of Adults & Health,5.93 
5201335151,06/07/2020,PRESCOTT THOMAS LTD,Corporate Services  Catering,Director of Children's Services,5.52 
5201335157,06/07/2020,PRESCOTT THOMAS LTD,Corporate Services  Catering,Director of Children's Services,5.44 
5201335147,06/07/2020,ATTENTI LIMITED,SalAgen-TrainCover,Director of Children's Services,0.27 
5201335203,06/07/2020,SIEMENS PLC,Energy - Electric,"Director of Regen,Planning & Devlop",0.03 
5201335215,06/07/2020,EE LIMITED,Telephones - Mobiles,Director of Transformation & Resources,-2243.64 
5201333670,06/07/2020,BEVERIDGE ASSOCIATES PARTNERSHIP LI,"Works - Construction, Repair & Maintenance",Director of Finance,-3225.00 
5201335172,06/07/2020,Signway Supplies (Datchet) Ltd,Equip - Repair,Director of Environment & Neighbourhoods,-50205.00 
5201335311,07/07/2020,HARINGEY SCHOOLS SERVICES LIMITED,School Services,Director of Finance,356349.77 
5201335284,07/07/2020,Marston Holdings Ltd,Property,Director of Environment & Neighbourhoods,77813.60 
5201335308,07/07/2020,LONDON COUNCILS,Subscriptions,Director of Finance,50643.00 
5201335287,07/07/2020,CIVICA UK LTD,Property,Director of Finance,50066.58 
5201335321,07/07/2020,VIRGIN MEDIA PAYMENTS LIMITED,Fixed,Director of Transformation & Resources,46962.19 
5201335277,07/07/2020,AXON SOLUTIONS LTD T/A HCL AXON,Property,Director of Transformation & Resources,29105.25 
1900872739,07/07/2020,ANGLIAN WATER BUSINESS NATIONAL,Prem - Water Rates,"Director of Regen,Planning & Devlop",18004.41 
5201335294,07/07/2020,AXON SOLUTIONS LTD T/A HCL AXON,Property,Director of Finance,17669.39 
5201335250,07/07/2020,Redacted Personal Data,Prem - Leasing,"Director of Regen,Planning & Devlop",12870.00 
2500021565,07/07/2020,GRANT PAYMENTS,Gen Cap Disburs-NCCR,Director of Finance,10000.00 
5201335222,07/07/2020,KEYSTREAM HEALTHCARE RESOURCES LTD,Consultancy,Director of Finance,9051.79 
5201335290,07/07/2020,SONOVA UK LIMITED,Property,Director of Children's Services,8118.00 
5201335332,07/07/2020,CROWN HOSTING DATA CENTRES LIMITED,Appl Serv Prov,Director of Transformation & Resources,7787.80 
5201335314,07/07/2020,Land Science Ltd,Geotechnical/Geochem,Director of Finance,7193.00 
5201335285,07/07/2020,BAKER MALLETT LLP,Property,"Director of Regen,Planning & Devlop",6757.50 
5201335295,07/07/2020,AXON SOLUTIONS LTD T/A HCL AXON,Property,Director of Finance,6632.14 
5201335320,07/07/2020,Unit One Architects Ltd,Architect,Director of Finance,6545.00 
5201335223,07/07/2020,LATCHAM DIRECT LIMITED,Storage,Director of Transformation & Resources,6213.32 
5201335334,07/07/2020,CUTTLE CONSTRUCTION LTD,Construction,"Director of Regen,Planning & Devlop",6148.00 
8002825916,07/07/2020,THE SOUTHOVER PARTNERSHIP,Vol Sec - Add Supp,Director of Children's Services,6094.00 
6000010351,07/07/2020,DIRECT SIGNS UK LIMITED,Printing - Internal,Director of Transformation & Resources,5629.34 
5201335278,07/07/2020,AXON SOLUTIONS LTD T/A HCL AXON,Property,Director of Transformation & Resources,5459.74 
5201335214,07/07/2020,TECHSQUAD SOLUTIONS LIMITED,Appl Serv Prov,Director of Children's Services,5000.00 
5201335230,07/07/2020,Source facilities maintenance LTD,Glazing/Doors,Director of Finance,5000.00 
5201335231,07/07/2020,Source facilities maintenance LTD,"Works - Construction, Repair & Maintenance",Director of Finance,5000.00 
5201335232,07/07/2020,Source facilities maintenance LTD,"Works - Construction, Repair & Maintenance",Director of Finance,5000.00 
5201335319,07/07/2020,Valuation Office Agency,Strategic Planning,"Director of Regen,Planning & Devlop",4691.00 
5201335293,07/07/2020,VIRGIN MEDIA PAYMENTS LIMITED,Property,Director of Transformation & Resources,4560.41 
8002825913,07/07/2020,FRIENDS OF BOBOVER  FOUNDATION,Vol Sec - Add Supp,Director of Children's Services,4517.34 
8002825914,07/07/2020,FRIENDS OF BOBOVER  FOUNDATION,Vol Sec - Add Supp,Director of Children's Services,4517.34 
5201335315,07/07/2020,Frame Projects Limited,Property,Director of Finance,4500.00 
5201335224,07/07/2020,Frame Projects Limited,Strategic Planning,Director of Finance,4500.00 
1900872740,07/07/2020,Redacted Personal Data,Fees Legal External,Assistant Dir Corporate Governance,4459.59 
8002825060,07/07/2020,ROCKSOLID 247,Priv - Contractor,Director of Children's Services,4284.00 
8002824075,07/07/2020,OURRIS PROPERTIES LIMITED,Priv - Res Long,Director of Adults & Health,4100.00 
8002824076,07/07/2020,OURRIS PROPERTIES LIMITED,Priv - Res Long,Director of Adults & Health,4100.00 
8002824077,07/07/2020,OURRIS PROPERTIES LIMITED,Priv - Res Long,Director of Adults & Health,4100.00 
8002824078,07/07/2020,OURRIS PROPERTIES LIMITED,Priv - Res Long,Director of Adults & Health,4100.00 
8002824079,07/07/2020,OURRIS PROPERTIES LIMITED,Priv - Res Long,Director of Adults & Health,4100.00 
8002824080,07/07/2020,OURRIS PROPERTIES LIMITED,Priv - Res Long,Director of Adults & Health,4100.00 
8002824082,07/07/2020,OURRIS PROPERTIES LIMITED,Priv - Res Long,Director of Adults & Health,4100.00 
8002824083,07/07/2020,OURRIS PROPERTIES LIMITED,Priv - Res Long,Director of Adults & Health,4100.00 
8002824084,07/07/2020,OURRIS PROPERTIES LIMITED,Priv - Res Long,Director of Adults & Health,4100.00 
8002824086,07/07/2020,OURRIS PROPERTIES LIMITED,Priv - Res Long,Director of Adults & Health,4100.00 
8002824087,07/07/2020,OURRIS PROPERTIES LIMITED,Priv - Res Long,Director of Adults & Health,4100.00 
8002824088,07/07/2020,OURRIS PROPERTIES LIMITED,Priv - Res Long,Director of Adults & Health,4100.00 
8002824089,07/07/2020,OURRIS PROPERTIES LIMITED,Priv - Res Long,Director of Adults & Health,4100.00 
8002824090,07/07/2020,OURRIS PROPERTIES LIMITED,Priv - Res Long,Director of Adults & Health,4100.00 
8002824091,07/07/2020,OURRIS PROPERTIES LIMITED,Priv - Res Long,Director of Adults & Health,4100.00 
8002824092,07/07/2020,OURRIS PROPERTIES LIMITED,Priv - Res Long,Director of Adults & Health,4100.00 
8002825907,07/07/2020,FRIENDS OF BOBOVER  FOUNDATION,Vol Sec - Add Supp,Director of Children's Services,3534.62 
8002825908,07/07/2020,FRIENDS OF BOBOVER  FOUNDATION,Vol Sec - Add Supp,Director of Children's Services,3534.62 
8002825909,07/07/2020,FRIENDS OF BOBOVER  FOUNDATION,Vol Sec - Add Supp,Director of Children's Services,3534.62 
5201335280,07/07/2020,AD CONSTRUCTION GROUP,Property,Director of Finance,3346.49 
5201335291,07/07/2020,VIRGIN MEDIA PAYMENTS LIMITED,Property,Director of Transformation & Resources,3322.67 
5201335313,07/07/2020,Land Science Ltd,Property,Director of Finance,3272.50 
8002825063,07/07/2020,ROCKSOLID 247,Priv - Contractor,Director of Children's Services,3043.00 
8002825920,07/07/2020,OURRIS PROPERTIES LIMITED,Priv - Res Long,Director of Adults & Health,2984.00 
8002825921,07/07/2020,OURRIS PROPERTIES LIMITED,Priv - Res Long,Director of Adults & Health,2984.00 
8002825925,07/07/2020,OURRIS RESIDENTIAL HOMES LTD,Priv - Res Long,Director of Adults & Health,2984.00 
8002825926,07/07/2020,OURRIS RESIDENTIAL HOMES LTD,Priv - Res Long,Director of Adults & Health,2984.00 
8002825927,07/07/2020,OURRIS RESIDENTIAL HOMES LTD,Priv - Res Long,Director of Adults & Health,2984.00 
8002825928,07/07/2020,OURRIS RESIDENTIAL HOMES LTD,Priv - Res Long,Director of Adults & Health,2984.00 
8002825929,07/07/2020,OURRIS PROPERTIES LIMITED,Priv - Res Long,Director of Adults & Health,2984.00 
8002825932,07/07/2020,OURRIS PROPERTIES LIMITED,Priv - Res Long,Director of Adults & Health,2984.00 
8002825934,07/07/2020,OURRIS RESIDENTIAL HOMES LTD,Priv - Res Long,Director of Adults & Health,2984.00 
8002825936,07/07/2020,OURRIS PROPERTIES LIMITED,Priv - Res Long,Director of Adults & Health,2984.00 
5201335286,07/07/2020,SAGE GREEN SAFETY LTD,Property,"Director of Regen,Planning & Devlop",2800.00 
2500021566,07/07/2020,GRANT PAYMENTS,Gen Cap Disburs-NCCR,Director of Finance,2694.87 
5201335323,07/07/2020,TYCO FIRE & INTEGRATED SOLUTIONS (U,Access Control,Director of Environment & Neighbourhoods,2588.50 
6000010353,07/07/2020,DIRECT SIGNS UK LIMITED,Printing - Internal,Director of Transformation & Resources,2576.00 
8002825933,07/07/2020,OURRIS RESIDENTIAL HOMES LTD,Priv - Res Long,Director of Adults & Health,2557.71 
5201335225,07/07/2020,TEAM (ENERGY AUDITING AGENCY LTD),Energy Efficiency,"Director of Regen,Planning & Devlop",2519.23 
8002825064,07/07/2020,ROCKSOLID 247,Priv - Contractor,Director of Children's Services,2482.00 
8002825885,07/07/2020,LIONHEART DOMICILIARY CARE SERVICES,Prv Sctr Care Pkage,Director of Adults & Health,2436.00 
8002825917,07/07/2020,THE SOUTHOVER PARTNERSHIP,Vol Sec - Add Supp,Director of Children's Services,2434.00 
8002825856,07/07/2020,WEST LODGE LIMITED,Subsist - SS Clients,Director of Adults & Health,2345.00 
8002825853,07/07/2020,OAKMONT SOCIAL EDUCATION,Vol Sec - Add Supp,Director of Children's Services,2240.00 
8002825919,07/07/2020,OURRIS RESIDENTIAL HOMES LTD,Priv - Res Long,Director of Adults & Health,2238.00 
8002825923,07/07/2020,OURRIS RESIDENTIAL HOMES LTD,Priv - Res Long,Director of Adults & Health,2238.00 
5201335233,07/07/2020,Civic Engineers Ltd,Property,Director of Finance,2115.00 
5201335251,07/07/2020,Redacted Personal Data,Prem - Leasing,"Director of Regen,Planning & Devlop",1950.00 
5201335328,07/07/2020,CROWN HOSTING DATA CENTRES LIMITED,Appl Serv Prov,Director of Transformation & Resources,1790.87 
5201335245,07/07/2020,STATEBOND LTD T/A HORNSEY AGENCIES,Prem - Leasing,"Director of Regen,Planning & Devlop",1681.33 
5201335247,07/07/2020,Redacted Personal Data,Prem - Leasing,"Director of Regen,Planning & Devlop",1681.33 
5201335263,07/07/2020,Redacted Personal Data,Prem - Leasing,"Director of Regen,Planning & Devlop",1681.33 
5201335275,07/07/2020,Redacted Personal Data,Prem - Leasing,"Director of Regen,Planning & Devlop",1681.33 
8002824081,07/07/2020,OURRIS PROPERTIES LIMITED,Priv - Res Long,Director of Adults & Health,1610.71 
5201335271,07/07/2020,Redacted Personal Data,Prem - Leasing,"Director of Regen,Planning & Devlop",1600.00 
8002825904,07/07/2020,LIONHEART DOMICILIARY CARE SERVICES,Prv Sctr Care Pkage,Director of Adults & Health,1500.00 
5201335265,07/07/2020,FALCON PROPERTIES LTD,Prem - Leasing,"Director of Regen,Planning & Devlop",1473.33 
5201335248,07/07/2020,Redacted Personal Data,Prem - Leasing,"Director of Regen,Planning & Devlop",1430.00 
8002825049,07/07/2020,ROCKSOLID 247,Priv - Contractor,Director of Children's Services,1428.00 
8002825050,07/07/2020,ROCKSOLID 247,Priv - Contractor,Director of Children's Services,1428.00 
5201335269,07/07/2020,Redacted Personal Data,Prem - Leasing,"Director of Regen,Planning & Devlop",1406.47 
5201335258,07/07/2020,Redacted Personal Data,Prem - Leasing,"Director of Regen,Planning & Devlop",1404.00 
5201335261,07/07/2020,Redacted Personal Data,Prem - Leasing,"Director of Regen,Planning & Devlop",1365.52 
5201335236,07/07/2020,ADAMS & STYLES,Prem - Leasing,"Director of Regen,Planning & Devlop",1365.00 
5201335246,07/07/2020,Redacted Personal Data,Prem - Leasing,"Director of Regen,Planning & Devlop",1365.00 
5201335253,07/07/2020,APPLEACRE INVESTMENTS LTD,Prem - Leasing,"Director of Regen,Planning & Devlop",1365.00 
5201335254,07/07/2020,CLASS ESTATES LIMITED,Prem - Leasing,"Director of Regen,Planning & Devlop",1365.00 
5201335256,07/07/2020,CLASS ESTATES LIMITED,Prem - Leasing,"Director of Regen,Planning & Devlop",1365.00 
5201335260,07/07/2020,Redacted Personal Data,Prem - Leasing,"Director of Regen,Planning & Devlop",1365.00 
5201335270,07/07/2020,LIGHTHOUSE LETTINGS LTD,Prem - Leasing,"Director of Regen,Planning & Devlop",1365.00 
5201335272,07/07/2020,MILLENIUM INVESTMENT 2000 LTD,Prem - Leasing,"Director of Regen,Planning & Devlop",1365.00 
5201335241,07/07/2020,Redacted Personal Data,Prem - Leasing,"Director of Regen,Planning & Devlop",1350.00 
5201335240,07/07/2020,Redacted Personal Data,Prem - Leasing,"Director of Regen,Planning & Devlop",1334.67 
8002825906,07/07/2020,VIBE TEACHER RECRUITMENT LTD,Vol Sec - Add Supp,Director of Children's Services,1300.00 
5201335292,07/07/2020,VIRGIN MEDIA PAYMENTS LIMITED,Property,Director of Transformation & Resources,1299.85 
5201335326,07/07/2020,INSPIRING BUSINESS PERFORMANCE LTD,Audit,Assistant Dir Corporate Governance,1250.00 
5201335239,07/07/2020,Redacted Personal Data,Prem - Leasing,"Director of Regen,Planning & Devlop",1235.00 
5201335276,07/07/2020,ARLINGTON BUILDERS LTD,Property,"Director of Regen,Planning & Devlop",1132.40 
5201335242,07/07/2020,Redacted Personal Data,Prem - Leasing,"Director of Regen,Planning & Devlop",1126.66 
5201335252,07/07/2020,Redacted Personal Data,Prem - Leasing,"Director of Regen,Planning & Devlop",1105.00 
5201335259,07/07/2020,Redacted Personal Data,Prem - Leasing,"Director of Regen,Planning & Devlop",1105.00 
5201335264,07/07/2020,FALCON PROPERTIES LTD,Prem - Leasing,"Director of Regen,Planning & Devlop",1105.00 
5201335266,07/07/2020,Redacted Personal Data,Prem - Leasing,"Director of Regen,Planning & Devlop",1105.00 
5201335268,07/07/2020,Redacted Personal Data,Prem - Leasing,"Director of Regen,Planning & Devlop",1105.00 
5201335274,07/07/2020,ORANGE STONE MANAGEMENT LIMITED,Prem - Leasing,"Director of Regen,Planning & Devlop",1105.00 
5201335331,07/07/2020,CROWN HOSTING DATA CENTRES LIMITED,Appl Serv Prov,Director of Transformation & Resources,1104.17 
5201335244,07/07/2020,Redacted Personal Data,Prem - Leasing,"Director of Regen,Planning & Devlop",1083.33 
8002825878,07/07/2020,LIONHEART DOMICILIARY CARE SERVICES,Prv Sctr Care Pkage,Director of Adults & Health,1078.00 
5201335262,07/07/2020,Redacted Personal Data,Prem - Leasing,"Director of Regen,Planning & Devlop",975.00 
8002825896,07/07/2020,LIONHEART DOMICILIARY CARE SERVICES,Prv Sctr Care Pkage,Director of Adults & Health,945.00 
8002825893,07/07/2020,LIONHEART DOMICILIARY CARE SERVICES,Prv Sctr Care Pkage,Director of Adults & Health,928.00 
8002825890,07/07/2020,LIONHEART DOMICILIARY CARE SERVICES,Prv Sctr Care Pkage,Director of Adults & Health,915.00 
6000010350,07/07/2020,BOLDENS SIGNAGE SOLUTIONS,Printing - Internal,Director of Transformation & Resources,903.00 
5201335234,07/07/2020,Civic Engineers Ltd,Property,Director of Finance,899.99 
5201335235,07/07/2020,ADAMS & STYLES,Prem - Leasing,"Director of Regen,Planning & Devlop",888.33 
5201335255,07/07/2020,CLASS ESTATES LIMITED,Prem - Leasing,"Director of Regen,Planning & Devlop",888.33 
5201335257,07/07/2020,CLASS ESTATES LIMITED,Prem - Leasing,"Director of Regen,Planning & Devlop",888.33 
8002825879,07/07/2020,LIONHEART DOMICILIARY CARE SERVICES,Prv Sctr Care Pkage,Director of Adults & Health,882.00 
8002825880,07/07/2020,LIONHEART DOMICILIARY CARE SERVICES,Prv Sctr Care Pkage,Director of Adults & Health,882.00 
5201335305,07/07/2020,Martin Arnold Limited,Construction,Director of Finance,875.00 
5201335267,07/07/2020,Redacted Personal Data,Prem - Leasing,"Director of Regen,Planning & Devlop",865.28 
1900872737,07/07/2020,BRITISH GAS BUSINESS,Energy - Electric,Director of Adults & Health,857.43 
8002825125,07/07/2020,LIKA FAMILY FOSTERING LTD,Priv - Contractor,Director of Children's Services,850.00 
5201335243,07/07/2020,Redacted Personal Data,Prem - Leasing,"Director of Regen,Planning & Devlop",823.33 
8002825052,07/07/2020,ROCKSOLID 247,Priv - Contractor,Director of Children's Services,816.00 
8002825884,07/07/2020,LIONHEART DOMICILIARY CARE SERVICES,Priv Sec-- LBH & CCG,Director of Adults & Health,815.55 
8002825887,07/07/2020,LIONHEART DOMICILIARY CARE SERVICES,Prv Sctr Care Pkage,Director of Adults & Health,812.00 
8002825055,07/07/2020,ROCKSOLID 247,Prv Sctr Care Pkage,Director of Children's Services,748.00 
8002825056,07/07/2020,ROCKSOLID 247,Prv Sctr Care Pkage,Director of Children's Services,748.00 
8002825057,07/07/2020,ROCKSOLID 247,Prv Sctr Care Pkage,Director of Children's Services,748.00 
8002825899,07/07/2020,LIONHEART DOMICILIARY CARE SERVICES,Priv Sec-- LBH & CCG,Director of Adults & Health,735.00 
8002825048,07/07/2020,ROCKSOLID 247,Priv - Contractor,Director of Children's Services,714.00 
8002825894,07/07/2020,LIONHEART DOMICILIARY CARE SERVICES,Priv Sec-- LBH & CCG,Director of Adults & Health,702.90 
5201335179,07/07/2020,ATTENTI LIMITED,Professional,Director of Children's Services,686.28 
5201335180,07/07/2020,ATTENTI LIMITED,Professional,Director of Children's Services,686.28 
5201335181,07/07/2020,ATTENTI LIMITED,Professional,Director of Children's Services,686.28 
5201335182,07/07/2020,ATTENTI LIMITED,Professional,Director of Children's Services,686.28 
5201335183,07/07/2020,ATTENTI LIMITED,Professional,Director of Children's Services,686.28 
5201335184,07/07/2020,ATTENTI LIMITED,Professional,Director of Children's Services,686.28 
5201335193,07/07/2020,ATTENTI LIMITED,Professional,Director of Children's Services,686.28 
5201335185,07/07/2020,ATTENTI LIMITED,Professional,Director of Children's Services,683.73 
5201335186,07/07/2020,ATTENTI LIMITED,Professional,Director of Children's Services,683.73 
5201335187,07/07/2020,ATTENTI LIMITED,Professional,Director of Children's Services,683.73 
5201335188,07/07/2020,ATTENTI LIMITED,Professional,Director of Children's Services,683.73 
5201335195,07/07/2020,ATTENTI LIMITED,Professional,Director of Children's Services,683.73 
5201335273,07/07/2020,ORANGE STONE MANAGEMENT LIMITED,Prem - Leasing,"Director of Regen,Planning & Devlop",682.50 
5201335297,07/07/2020,Your World Recruitment,Property,Director of Environment & Neighbourhoods,654.16 
5201335296,07/07/2020,Your World Recruitment,Property,Director of Environment & Neighbourhoods,618.80 
5201335298,07/07/2020,Your World Recruitment,Property,Director of Environment & Neighbourhoods,618.80 
5201335301,07/07/2020,Your World Recruitment,Property,Director of Environment & Neighbourhoods,618.80 
5201335189,07/07/2020,ATTENTI LIMITED,Professional,Director of Children's Services,606.48 
6000010352,07/07/2020,DIRECT SIGNS UK LIMITED,Printing - Internal,Director of Transformation & Resources,584.55 
5201335300,07/07/2020,Your World Recruitment,Property,Director of Environment & Neighbourhoods,565.76 
8002825901,07/07/2020,LIONHEART DOMICILIARY CARE SERVICES,Priv Sec-- LBH & CCG,Director of Adults & Health,563.50 
5201335190,07/07/2020,ATTENTI LIMITED,Professional,Director of Children's Services,546.03 
5201335226,07/07/2020,BUNZL UK LTD t/a GREENHAM,Chemical,Director of Environment & Neighbourhoods,546.00 
8002825059,07/07/2020,ROCKSOLID 247,Priv - Contractor,Director of Children's Services,544.00 
8002825924,07/07/2020,OURRIS PROPERTIES LIMITED,Priv - Res Long,Director of Adults & Health,532.86 
6000010348,07/07/2020,ARCHANT COMMUNITY MEDIA LIMITED,Advert - Non Staff,Director of Transformation & Resources,530.88 
8002825903,07/07/2020,LIONHEART DOMICILIARY CARE SERVICES,Priv Sec-- LBH & CCG,Director of Adults & Health,525.00 
8002825889,07/07/2020,LIONHEART DOMICILIARY CARE SERVICES,Prv Sctr Care Pkage,Director of Adults & Health,525.00 
8002825061,07/07/2020,ROCKSOLID 247,Priv - Contractor,Director of Children's Services,510.00 
8002825062,07/07/2020,ROCKSOLID 247,Priv - Contractor,Director of Children's Services,510.00 
8002825898,07/07/2020,LIONHEART DOMICILIARY CARE SERVICES,Prv Sctr Care Pkage,Director of Adults & Health,507.00 
5201335299,07/07/2020,Your World Recruitment,Property,Director of Environment & Neighbourhoods,495.04 
5201335302,07/07/2020,Your World Recruitment,Property,Director of Environment & Neighbourhoods,495.04 
5201335289,07/07/2020,Micks Furniture Discount,Property,Director of Adults & Health,475.00 
8002825578,07/07/2020,Redacted Personal Data,LAC - Regular Pay,Director of Children's Services,457.00 
8002825205,07/07/2020,HOUSING ACTION MANAGEMENT LTD,Prem - Rents,Director of Children's Services,455.00 
5201335191,07/07/2020,ATTENTI LIMITED,Professional,Director of Children's Services,414.96 
5201335192,07/07/2020,ATTENTI LIMITED,Professional,Director of Children's Services,414.96 
5201335196,07/07/2020,ATTENTI LIMITED,Professional,Director of Children's Services,414.96 
8002825065,07/07/2020,ROCKSOLID 247,Priv - Contractor,Director of Children's Services,408.00 
8002825143,07/07/2020,HOUSING ACTION MANAGEMENT LTD,Prem - Rents,Director of Children's Services,406.00 
8002825590,07/07/2020,Redacted Personal Data,LAC - Regular Pay,Director of Children's Services,377.00 
8002825670,07/07/2020,Redacted Personal Data,LAC - Regular Pay,Director of Children's Services,377.00 
5201335237,07/07/2020,ADAMS & STYLES,Prem - Leasing,"Director of Regen,Planning & Devlop",368.06 
5201335238,07/07/2020,ADAMS & STYLES,Prem - Leasing,"Director of Regen,Planning & Devlop",368.06 
6000010349,07/07/2020,ARCHANT COMMUNITY MEDIA LIMITED,Printing - Internal,Director of Transformation & Resources,364.98 
1900872730,07/07/2020,BRITISH GAS BUSINESS,Energy - Electric,"Director of Regen,Planning & Devlop",364.61 
8002825047,07/07/2020,ROCKSOLID 247,Priv - Contractor,Director of Children's Services,340.00 
8002825209,07/07/2020,HOUSING ACTION MANAGEMENT LTD,Priv - Lodgings,Director of Children's Services,322.00 
8002825930,07/07/2020,OURRIS RESIDENTIAL HOMES LTD,Priv - Res Long,Director of Adults & Health,319.71 
8002825935,07/07/2020,OURRIS RESIDENTIAL HOMES LTD,Priv - Res Long,Director of Adults & Health,319.71 
8002825150,07/07/2020,HOUSING ACTION MANAGEMENT LTD,Prem - Rents,Director of Children's Services,315.00 
8002825168,07/07/2020,HOUSING ACTION MANAGEMENT LTD,Prem - Rents,Director of Children's Services,308.00 
8002825897,07/07/2020,LIONHEART DOMICILIARY CARE SERVICES,Prv Sctr Care Pkage,Director of Adults & Health,304.52 
8002825877,07/07/2020,LIONHEART DOMICILIARY CARE SERVICES,Prv Sctr Care Pkage,Director of Adults & Health,304.48 
5201335282,07/07/2020,PLAYLE & PARTNERS LLP,Property,"Director of Regen,Planning & Devlop",302.40 
8002825892,07/07/2020,LIONHEART DOMICILIARY CARE SERVICES,Prv Sctr Care Pkage,Director of Adults & Health,299.24 
5201335316,07/07/2020,G.O. DRAINAGE SERVICES LIMITED,Surveys,"Director of Regen,Planning & Devlop",295.00 
5201335317,07/07/2020,G.O. DRAINAGE SERVICES LIMITED,Surveys,"Director of Regen,Planning & Devlop",295.00 
5201335318,07/07/2020,G.O. DRAINAGE SERVICES LIMITED,Surveys,"Director of Regen,Planning & Devlop",295.00 
5201335329,07/07/2020,Redacted Personal Data,Organised Activities,Director of Adults & Health,279.95 
8002825337,07/07/2020,Redacted Personal Data,LAC - Sp Guardianshi,Director of Children's Services,252.00 
5201335303,07/07/2020,MUSIC FOR PEOPLE,Organised Activities,Director of Adults & Health,240.00 
8002825900,07/07/2020,LIONHEART DOMICILIARY CARE SERVICES,Prv Sctr Care Pkage,Director of Adults & Health,236.25 
8002825405,07/07/2020,Redacted Personal Data,LAC - Sp Guardianshi,Director of Children's Services,232.00 
5201335322,07/07/2020,SOLUTIONS 4 HEALTH LTD,Specialist Services,Director of Adults & Health,224.70 
1900872726,07/07/2020,BRITISH GAS BUSINESS,Energy - Electric,"Director of Regen,Planning & Devlop",217.72 
5201335281,07/07/2020,PLAYLE & PARTNERS LLP,Property,"Director of Regen,Planning & Devlop",217.42 
8002825891,07/07/2020,LIONHEART DOMICILIARY CARE SERVICES,Prv Sctr Care Pkage,Director of Adults & Health,196.00 
5201335249,07/07/2020,Redacted Personal Data,Prem - Leasing,"Director of Regen,Planning & Devlop",195.00 
5201335327,07/07/2020,CROWN COMMERCIAL SERVICE,Appl Serv Prov,Director of Transformation & Resources,194.69 
5201335333,07/07/2020,BUNZL UK LTD t/a GREENHAM,Chemical,Director of Environment & Neighbourhoods,192.60 
8002825883,07/07/2020,LIONHEART DOMICILIARY CARE SERVICES,Prv Sctr Care Pkage,Director of Adults & Health,180.00 
8002825693,07/07/2020,HOCREST LTD TA BLUEBIRD CARE HARING,Prv Sctr Care Pkage,Director of Children's Services,170.00 
8002825200,07/07/2020,Redacted Personal Data,SS Children- DayCare,Director of Children's Services,157.50 
5201335279,07/07/2020,PLAYLE & PARTNERS LLP,Property,"Director of Regen,Planning & Devlop",151.20 
5201335304,07/07/2020,THYSSENKRUPP ACCESS LIMITED,Repair & Maint,Director of Adults & Health,150.00 
5201335306,07/07/2020,THYSSENKRUPP ACCESS LIMITED,Repair & Maint,Director of Adults & Health,150.00 
5201335307,07/07/2020,THYSSENKRUPP ACCESS LIMITED,Repair & Maint,Director of Adults & Health,150.00 
5201335310,07/07/2020,THYSSENKRUPP ACCESS LIMITED,Repair & Maint,Director of Adults & Health,150.00 
1900872733,07/07/2020,CASTLE WATER LTD,Prem - Water Rates,Director of Environment & Neighbourhoods,143.40 
8002825895,07/07/2020,LIONHEART DOMICILIARY CARE SERVICES,Priv Sec-- LBH & CCG,Director of Adults & Health,135.00 
5201335283,07/07/2020,WILLIAM WHITE MEATS LTD,Property,Director of Children's Services,126.00 
8002825881,07/07/2020,LIONHEART DOMICILIARY CARE SERVICES,Prv Sctr Care Pkage,Director of Adults & Health,112.96 
8002825051,07/07/2020,ROCKSOLID 247,Priv - Contractor,Director of Children's Services,102.00 
8002825098,07/07/2020,SANCTUARY HOUSING ASSOCIATION,Prem - Rents,Director of Children's Services,100.00 
5201335288,07/07/2020,THE UK ASSOCIATION FOR MUSIC EDUCAT,Property,Director of Children's Services,100.00 
5201335200,07/07/2020,BT PAYMENT SERVICES LTD,Telephones,Director of Children's Services,96.64 
8002825894,07/07/2020,LIONHEART DOMICILIARY CARE SERVICES,Prv Sctr Care Pkage,Director of Adults & Health,88.75 
8002825084,07/07/2020,LORDSHIP COOKER CENTRE,SSChild-PersonalItem,Director of Children's Services,85.00 
5201335312,07/07/2020,Land Science Ltd,Property,Director of Finance,77.50 
6000010354,07/07/2020,NEWSQUEST MEDIA GROUP,Advert - Non Staff,Director of Transformation & Resources,75.60 
6000010355,07/07/2020,NEWSQUEST MEDIA GROUP,Advert - Non Staff,Director of Transformation & Resources,59.40 
8002825121,07/07/2020,EXPLORE INDEPENDENCE LTD,Subsist - SS Clients,Director of Children's Services,58.00 
5201335324,07/07/2020,GLS EDUCATIONAL SUPPLIES LIMITED,Arts & Crafts,Director of Adults & Health,54.20 
8002825147,07/07/2020,SOUTHERN HEALTH NHS FOUNDATION TRUS,SSChild-PersonalItem,Director of Children's Services,50.00 
5201335227,07/07/2020,LOCAL GOVERNMENT FUTURES LTD,Subscriptions,Director of Finance,50.00 
5201335228,07/07/2020,LOCAL GOVERNMENT FUTURES LTD,Subscriptions,Director of Finance,50.00 
5201335229,07/07/2020,LOCAL GOVERNMENT FUTURES LTD,Subscriptions,Director of Finance,50.00 
5201335325,07/07/2020,GLS EDUCATIONAL SUPPLIES LIMITED,Arts & Crafts,Director of Adults & Health,47.20 
1900872729,07/07/2020,BRITISH GAS BUSINESS,Energy - Electric,"Director of Regen,Planning & Devlop",46.55 
1900872732,07/07/2020,CASTLE WATER LTD,Prem - Sewerage,Director of Environment & Neighbourhoods,41.44 
1911-0569,07/07/2020,EDF,Energy - electricity,Carbon Management,29.07 
1900872728,07/07/2020,OPUS ENERGY LTD,Energy - Gas,"Director of Regen,Planning & Devlop",26.29 
1900872736,07/07/2020,BRITISH GAS BUSINESS,Energy - Electric,Director of Environment & Neighbourhoods,16.09 
1900872735,07/07/2020,BRITISH GAS BUSINESS,Energy - Electric,Director of Environment & Neighbourhoods,15.45 
1900872725,07/07/2020,BRITISH GAS BUSINESS,Energy - Gas,"Director of Regen,Planning & Devlop",14.34 
1900872724,07/07/2020,OPUS ENERGY LTD,Energy - Electric,"Director of Regen,Planning & Devlop",13.61 
1900872734,07/07/2020,BRITISH GAS BUSINESS,Energy - Electric,Director of Environment & Neighbourhoods,11.03 
8002825166,07/07/2020,YOUTH JUSTICE BOARD FOR ENGLAND & W,Subsist - SS Clients,Director of Children's Services,10.00 
1900872731,07/07/2020,OPUS ENERGY LTD,Energy - Gas,"Director of Regen,Planning & Devlop",8.25 
1900872732,07/07/2020,CASTLE WATER LTD,Prem - Water Rates,Director of Environment & Neighbourhoods,4.88 
5201335191,07/07/2020,ATTENTI LIMITED,SalAgen-TrainCover,Director of Children's Services,3.04 
5201335192,07/07/2020,ATTENTI LIMITED,SalAgen-TrainCover,Director of Children's Services,3.04 
5201335196,07/07/2020,ATTENTI LIMITED,SalAgen-TrainCover,Director of Children's Services,3.04 
5201335189,07/07/2020,ATTENTI LIMITED,SalAgen-TrainCover,Director of Children's Services,1.52 
5201335278,07/07/2020,AXON SOLUTIONS LTD T/A HCL AXON,IT Serv Emerge SAP,Director of Transformation & Resources,1.46 
5201335185,07/07/2020,ATTENTI LIMITED,SalAgen-TrainCover,Director of Children's Services,0.27 
5201335186,07/07/2020,ATTENTI LIMITED,SalAgen-TrainCover,Director of Children's Services,0.27 
5201335187,07/07/2020,ATTENTI LIMITED,SalAgen-TrainCover,Director of Children's Services,0.27 
5201335188,07/07/2020,ATTENTI LIMITED,SalAgen-TrainCover,Director of Children's Services,0.27 
5201335195,07/07/2020,ATTENTI LIMITED,SalAgen-TrainCover,Director of Children's Services,0.27 
5201335190,07/07/2020,ATTENTI LIMITED,SalAgen-TrainCover,Director of Children's Services,0.22 
5201335287,07/07/2020,CIVICA UK LTD,S/WareAcq-IntangAsst,Director of Finance,0.01 
5201335179,07/07/2020,ATTENTI LIMITED,SalAgen-TrainCover,Director of Children's Services,-2.28 
5201335180,07/07/2020,ATTENTI LIMITED,SalAgen-TrainCover,Director of Children's Services,-2.28 
5201335181,07/07/2020,ATTENTI LIMITED,SalAgen-TrainCover,Director of Children's Services,-2.28 
5201335182,07/07/2020,ATTENTI LIMITED,SalAgen-TrainCover,Director of Children's Services,-2.28 
5201335183,07/07/2020,ATTENTI LIMITED,SalAgen-TrainCover,Director of Children's Services,-2.28 
5201335184,07/07/2020,ATTENTI LIMITED,SalAgen-TrainCover,Director of Children's Services,-2.28 
5201335193,07/07/2020,ATTENTI LIMITED,SalAgen-TrainCover,Director of Children's Services,-2.28 
1700022308,07/07/2020,OPUS ENERGY LTD,Energy - Electric,"Director of Regen,Planning & Devlop",-2.97 
1910-0568,07/07/2020,EDF,Energy - electricity,Carbon Management,-3.75 
1700022307,07/07/2020,BRITISH GAS BUSINESS,Energy - Electric,"Director of Regen,Planning & Devlop",-83.65 
5201335402,08/07/2020,ADAM HTT LTD T/A ADAM,Letting/Estate Agent,"Director of Regen,Planning & Devlop",1742224.06 
5201335428,08/07/2020,MEDEQUIP ASSISTIVE TECH. LTD,Equipment,Director of Adults & Health,171867.68 
1900872746,08/07/2020,HAYS SPECIALIST RECRUITMENT,SalAgen-Est Post,Director of Children's Services,136866.41 
1900872746,08/07/2020,HAYS SPECIALIST RECRUITMENT,SalAgen-Est Post,Director of Transformation & Resources,94455.02 
1900872746,08/07/2020,HAYS SPECIALIST RECRUITMENT,SalAgen-Est Post,Director of Environment & Neighbourhoods,93907.61 
5201335364,08/07/2020,E-Tech Security Limited,Heating & Air Con,Director of Finance,76119.50 
5201335414,08/07/2020,WORKSPACE TECHNOLOGY LIMITED,Heating & Air Con,Director of Finance,47291.00 
1900872746,08/07/2020,HAYS SPECIALIST RECRUITMENT,SalAgen-Est Post,"Director of Regen,Planning & Devlop",42366.24 
1900872746,08/07/2020,HAYS SPECIALIST RECRUITMENT,SalAgen-Est Post,Director of Adults & Health,39587.03 
5201335365,08/07/2020,ALDERSBROOK MANAGEMENT ASSOCIATES L,Heating & Air Con,Director of Environment & Neighbourhoods,38400.00 
5201335373,08/07/2020,PROJECT CENTRE LTD,Heating & Air Con,Director of Finance,23125.00 
5201335407,08/07/2020,RINGWAY JACOBS LIMITED,Letting/Estate Agent,Director of Environment & Neighbourhoods,20656.35 
8002826103,08/07/2020,THE NATIONAL FOSTERING AGENCY LTD,PrivSec IndependFost,Director of Children's Services,19962.60 
1900872745,08/07/2020,WILKIN CHAPMAN LLP,Fees Legal External,Director of Transformation & Resources,16884.30 
5201335429,08/07/2020,PENNA PLC,Salaries,Director of Children's Services,16500.00 
5201335379,08/07/2020,MARLBOROUGH HIGHWAYS LTD,Heating & Air Con,Director of Environment & Neighbourhoods,12458.52 
1900872746,08/07/2020,HAYS SPECIALIST RECRUITMENT,SalAgen-Est Post,Director of Finance,11760.35 
5201335309,08/07/2020,Edible London CIC,Catering Consumables,Director of Transformation & Resources,11746.57 
5201335393,08/07/2020,RINGWAY JACOBS LIMITED,Heating & Air Con,Director of Finance,11128.12 
5201335397,08/07/2020,H2O NATIONWIDE LTD,Repair & Maintenance,Director of Finance,10722.20 
8002826412,08/07/2020,SAMA CARE LTD,Priv Sec-- LBH & CCG,Director of Adults & Health,10080.00 
2500021583,08/07/2020,GRANT PAYMENTS,Priv Sec-- LBH & CCG,Director of Adults & Health,10000.00 
5201335413,08/07/2020,The Fulker Consultancy Limited,Business,"Director of Regen,Planning & Devlop",8525.00 
2500021571,08/07/2020,TEMPORARY ACCOMODATION,Prem - Rents,"Director of Regen,Planning & Devlop",8450.00 
5201335357,08/07/2020,ALTAIR CONSULTANCY AND ADVISORY SER,Heating & Air Con,"Director of Regen,Planning & Devlop",8050.00 
8002826104,08/07/2020,FAMILY PLACEMENT COM,PrivSec IndependFost,Director of Children's Services,7728.00 
8002826097,08/07/2020,FAMILY PLACEMENT COM,PrivSec IndependFost,Director of Children's Services,7245.00 
5201335437,08/07/2020,ROFTEK LIMITED,Equipment,Director of Environment & Neighbourhoods,7200.00 
1900872746,08/07/2020,HAYS SPECIALIST RECRUITMENT,SalAgen-Est Post,Assistant Dir Corporate Governance,6959.71 
8002826433,08/07/2020,VERITY HEALTHCARE LTD,Prv Sctr Care Pkage,Director of Adults & Health,6930.00 
5201335387,08/07/2020,RINGWAY JACOBS LIMITED,Heating & Air Con,Director of Finance,6718.37 
8002826364,08/07/2020,SAMA CARE LTD,Prv Sctr Care Pkage,Director of Adults & Health,6487.04 
5201335426,08/07/2020,The Fulker Consultancy Limited,Business,"Director of Regen,Planning & Devlop",5959.00 
8002826331,08/07/2020,SAMA CARE LTD,Prv Sctr Care Pkage,Director of Adults & Health,5614.00 
5201335424,08/07/2020,AXON SOLUTIONS LTD T/A HCL AXON,Appl Serv Prov,Director of Finance,5461.20 
8002826426,08/07/2020,Ambient Support Limited,Priv - Res Long,Director of Adults & Health,5207.92 
5201335430,08/07/2020,The Fulker Consultancy Limited,Business,"Director of Regen,Planning & Devlop",5192.00 
8002826415,08/07/2020,Ambient Support Limited,Priv - Res Long,Director of Adults & Health,4590.24 
8002826416,08/07/2020,Ambient Support Limited,Priv - Res Long,Director of Adults & Health,4590.24 
8002826424,08/07/2020,Ambient Support Limited,Priv - Res Long,Director of Adults & Health,4469.96 
5201335388,08/07/2020,VIRGIN MEDIA LTD,Heating & Air Con,Director of Finance,4450.65 
5201335335,08/07/2020,Kelleher Utility Solutions Ltd,Heating & Air Con,Director of Finance,4400.00 
5201335409,08/07/2020,RINGWAY JACOBS LIMITED,Property,Director of Finance,4381.73 
1900872803,08/07/2020,4 PAPER BUILDINGS,Fees Legal External,Assistant Dir Corporate Governance,4200.00 
1900872738,08/07/2020,STOR-A-FILE LTD,Document Archiving,Director of Children's Services,4061.14 
5201335359,08/07/2020,BELL DECORATING AND BUILDING LTD,Heating & Air Con,Director of Finance,3860.00 
8002821084,08/07/2020,ANDERSEN CARE LIMITED,Prv Sctr Care Pkage,Director of Adults & Health,3779.00 
8002821076,08/07/2020,ANDERSEN CARE LIMITED,Prv Sctr Care Pkage,Director of Adults & Health,3769.26 
1900872738,08/07/2020,STOR-A-FILE LTD,Document Archiving,Assistant Dir Corporate Governance,3757.12 
8002826254,08/07/2020,CENTRE 404,Prv Sctr Care Pkage,Director of Adults & Health,3754.40 
8002821096,08/07/2020,ANDERSEN CARE LIMITED,Prv Sctr Care Pkage,Director of Adults & Health,3707.38 
5201335408,08/07/2020,BOWYER BRYCE,Property,"Director of Regen,Planning & Devlop",3500.00 
5201335376,08/07/2020,Global Guardians Facilities Mgnt,Heating & Air Con,Director of Finance,3400.00 
8002826396,08/07/2020,SAMA CARE LTD,Prv Sctr Care Pkage,Director of Adults & Health,3075.00 
8002826157,08/07/2020,BIKUR CHOLIM LTD,Prv Sctr Care Pkage,Director of Adults & Health,3030.00 
2500021570,08/07/2020,TEMPORARY ACCOMODATION,Prem - Rents,"Director of Regen,Planning & Devlop",3000.00 
1900872738,08/07/2020,STOR-A-FILE LTD,Document Archiving,Director of Environment & Neighbourhoods,2965.58 
5201335422,08/07/2020,Walker Management Limited,Property,Director of Finance,2877.50 
8002826095,08/07/2020,KISHARON,Prv Sctr Care Pkage,Director of Adults & Health,2800.04 
5201335395,08/07/2020,RINGWAY JACOBS LIMITED,Heating & Air Con,Director of Environment & Neighbourhoods,2677.44 
8002821081,08/07/2020,ANDERSEN CARE LIMITED,Prv Sctr Care Pkage,Director of Adults & Health,2556.50 
8002821098,08/07/2020,ANDERSEN CARE LIMITED,Prv Sctr Care Pkage,Director of Adults & Health,2556.50 
5201335377,08/07/2020,Global Guardians Facilities Mgnt,Heating & Air Con,Director of Finance,2550.00 
1900872784,08/07/2020,ONE TIME,Disbursements,Assistant Dir Corporate Governance,2473.38 
5201335366,08/07/2020,FRANKHAM CONSULTANCY GROUP LTD,Heating & Air Con,"Director of Regen,Planning & Devlop",2435.00 
6000010356,08/07/2020,BETA DISTRIB (SOUTH) LTD T/A,Printing - Internal,Director of Transformation & Resources,2390.02 
8002826136,08/07/2020,CORE OUTREACH & CARE SERVICES UK LT,Prv Sctr Care Pkage,Director of Adults & Health,2265.60 
8002823787,08/07/2020,PREMIER CAREWAITING LTD,Prv Sctr Care Pkage,Director of Adults & Health,2227.40 
8002821089,08/07/2020,ANDERSEN CARE LIMITED,Prv Sctr Care Pkage,Director of Adults & Health,2208.26 
1900872756,08/07/2020,4 PAPER BUILDINGS,Fees Legal External,Assistant Dir Corporate Governance,2200.00 
5201335368,08/07/2020,ALLEN LANE LTD,Heating & Air Con,Director of Finance,2199.10 
5201335369,08/07/2020,ALLEN LANE LTD,Heating & Air Con,Director of Finance,2175.00 
8002821082,08/07/2020,ANDERSEN CARE LIMITED,Prv Sctr Care Pkage,Director of Adults & Health,2156.00 
8002826348,08/07/2020,SAMA CARE LTD,Prv Sctr Care Pkage,Director of Adults & Health,2156.00 
8002826144,08/07/2020,CORE OUTREACH & CARE SERVICES UK LT,Prv Sctr Care Pkage,Director of Adults & Health,2155.44 
8002825946,08/07/2020,MAGICARE LTD,Priv - Res Long,Director of Adults & Health,2142.86 
8002826431,08/07/2020,VERITY HEALTHCARE LTD,Prv Sctr Care Pkage,Director of Adults & Health,2097.90 
8002826134,08/07/2020,CORE OUTREACH & CARE SERVICES UK LT,Prv Sctr Care Pkage,Director of Adults & Health,2064.16 
1900872752,08/07/2020,CORNERSTONE BARRISTERS,Fees Legal External,Assistant Dir Corporate Governance,2000.00 
1900872781,08/07/2020,4 PAPER BUILDINGS,Fees Legal External,Assistant Dir Corporate Governance,2000.00 
1900872797,08/07/2020,ONE TIME,Fees Legal External,Assistant Dir Corporate Governance,2000.00 
8002826342,08/07/2020,SAMA CARE LTD,Prv Sctr Care Pkage,Director of Adults & Health,1981.00 
8002821079,08/07/2020,ANDERSEN CARE LIMITED,Prv Sctr Care Pkage,Director of Adults & Health,1958.50 
8002821097,08/07/2020,ANDERSEN CARE LIMITED,Priv Sec-- LBH & CCG,Director of Adults & Health,1920.00 
8002826094,08/07/2020,KISHARON,Prv Sctr Care Pkage,Director of Adults & Health,1890.60 
1900872758,08/07/2020,BISBEY LTD,Disbursements,Assistant Dir Corporate Governance,1890.00 
8002821078,08/07/2020,ANDERSEN CARE LIMITED,Priv Sec-- LBH & CCG,Director of Adults & Health,1890.00 
8002826101,08/07/2020,FAMILY PLACEMENT COM,PrivSec IndependFost,Director of Children's Services,1877.59 
8002826102,08/07/2020,FAMILY PLACEMENT COM,PrivSec IndependFost,Director of Children's Services,1877.59 
8002826133,08/07/2020,CORE OUTREACH & CARE SERVICES UK LT,Prv Sctr Care Pkage,Director of Adults & Health,1848.56 
5201335432,08/07/2020,PURDY CONTRACTS LTD,Works HFH,"Director of Regen,Planning & Devlop",1831.34 
5201335436,08/07/2020,PURDY CONTRACTS LTD,Works HFH,"Director of Regen,Planning & Devlop",1831.34 
1900872810,08/07/2020,GARDEN COURT CHAMBERS LTD,Fees Legal External,Assistant Dir Corporate Governance,1825.00 
8002826137,08/07/2020,CORE OUTREACH & CARE SERVICES UK LT,Prv Sctr Care Pkage,Director of Adults & Health,1805.44 
8002826149,08/07/2020,CORE OUTREACH & CARE SERVICES UK LT,Prv Sctr Care Pkage,Director of Adults & Health,1790.75 
1900872747,08/07/2020,ONE TIME,Disbursements,Assistant Dir Corporate Governance,1788.00 
8002823766,08/07/2020,PREMIER CAREWAITING LTD,Prv Sctr Care Pkage,Director of Adults & Health,1780.24 
8002826329,08/07/2020,SAMA CARE LTD,Prv Sctr Care Pkage,Director of Adults & Health,1764.00 
8002826334,08/07/2020,SAMA CARE LTD,Prv Sctr Care Pkage,Director of Adults & Health,1764.00 
8002826385,08/07/2020,SAMA CARE LTD,Prv Sctr Care Pkage,Director of Adults & Health,1764.00 
8002826429,08/07/2020,PREMIER CAREWAITING LTD,Prv Sctr Care Pkage,Director of Adults & Health,1735.32 
8002826330,08/07/2020,SAMA CARE LTD,Prv Sctr Care Pkage,Director of Adults & Health,1725.52 
5201335435,08/07/2020,OCO LIMITED,Repair & Maintenance,Director of Finance,1717.99 
5201335336,08/07/2020,LAKEPOINT ESTATES LTD,Prem - Leasing,"Director of Regen,Planning & Devlop",1681.33 
5201335347,08/07/2020,Redacted Personal Data,Prem - Leasing,"Director of Regen,Planning & Devlop",1681.33 
8002826360,08/07/2020,SAMA CARE LTD,Prv Sctr Care Pkage,Director of Adults & Health,1666.00 
8002826394,08/07/2020,SAMA CARE LTD,Prv Sctr Care Pkage,Director of Adults & Health,1666.00 
8002823770,08/07/2020,PREMIER CAREWAITING LTD,Prv Sctr Care Pkage,Director of Adults & Health,1647.92 
1900872779,08/07/2020,Redacted Personal Data,Disbursements,Assistant Dir Corporate Governance,1642.50 
8002821087,08/07/2020,ANDERSEN CARE LIMITED,Prv Sctr Care Pkage,Director of Adults & Health,1521.88 
5201335384,08/07/2020,TRIPOD PARTNERS LIMITED,Heating & Air Con,Director of Children's Services,1520.00 
8002826403,08/07/2020,SAMA CARE LTD,Prv Sctr Care Pkage,Director of Adults & Health,1435.20 
5201335339,08/07/2020,Redacted Personal Data,Prem - Leasing,"Director of Regen,Planning & Devlop",1430.00 
5201335358,08/07/2020,MONITEYE LIMITED,Heating & Air Con,"Director of Regen,Planning & Devlop",1425.00 
8002826096,08/07/2020,KISHARON,Prv Sctr Care Pkage,Director of Adults & Health,1423.28 
8002826408,08/07/2020,SAMA CARE LTD,Prv Sctr Care Pkage,Director of Adults & Health,1400.00 
8002824625,08/07/2020,PREMIER CAREWAITING LTD,Prv Sctr Care Pkage,Director of Adults & Health,1398.16 
5201335406,08/07/2020,RINGWAY JACOBS LIMITED,Letting/Estate Agent,Director of Finance,1376.00 
8002826323,08/07/2020,SAMA CARE LTD,Prv Sctr Care Pkage,Director of Adults & Health,1372.00 
8002826372,08/07/2020,SAMA CARE LTD,Prv Sctr Care Pkage,Director of Adults & Health,1372.00 
5201335337,08/07/2020,Redacted Personal Data,Prem - Leasing,"Director of Regen,Planning & Devlop",1365.00 
5201335338,08/07/2020,Redacted Personal Data,Prem - Leasing,"Director of Regen,Planning & Devlop",1365.00 
5201335340,08/07/2020,Redacted Personal Data,Prem - Leasing,"Director of Regen,Planning & Devlop",1365.00 
5201335345,08/07/2020,Redacted Personal Data,Prem - Leasing,"Director of Regen,Planning & Devlop",1365.00 
5201335349,08/07/2020,Redacted Personal Data,Prem - Leasing,"Director of Regen,Planning & Devlop",1365.00 
5201335350,08/07/2020,HOMELINK RESIDENTIAL LIMITED,Prem - Leasing,"Director of Regen,Planning & Devlop",1365.00 
5201335353,08/07/2020,Redacted Personal Data,Prem - Leasing,"Director of Regen,Planning & Devlop",1365.00 
8002826371,08/07/2020,SAMA CARE LTD,Priv Sec-- LBH & CCG,Director of Adults & Health,1305.00 
5201335348,08/07/2020,Redacted Personal Data,Prem - Leasing,"Director of Regen,Planning & Devlop",1300.00 
8002821085,08/07/2020,ANDERSEN CARE LIMITED,Prv Sctr Care Pkage,Director of Adults & Health,1278.25 
1900872780,08/07/2020,Redacted Personal Data,Disbursements,Assistant Dir Corporate Governance,1255.20 
1900872789,08/07/2020,4 PAPER BUILDINGS,Fees Legal External,Assistant Dir Corporate Governance,1250.00 
8002823775,08/07/2020,PREMIER CAREWAITING LTD,Prv Sctr Care Pkage,Director of Adults & Health,1249.44 
8002821088,08/07/2020,ANDERSEN CARE LIMITED,Prv Sctr Care Pkage,Director of Adults & Health,1233.96 
8002826390,08/07/2020,SAMA CARE LTD,Prv Sctr Care Pkage,Director of Adults & Health,1232.00 
8002826373,08/07/2020,SAMA CARE LTD,Prv Sctr Care Pkage,Director of Adults & Health,1218.00 
5201335394,08/07/2020,RINGWAY JACOBS LIMITED,Heating & Air Con,Director of Finance,1205.06 
8002823788,08/07/2020,PREMIER CAREWAITING LTD,Prv Sctr Care Pkage,Director of Adults & Health,1190.16 
8002823769,08/07/2020,PREMIER CAREWAITING LTD,Prv Sctr Care Pkage,Director of Adults & Health,1176.00 
8002823773,08/07/2020,PREMIER CAREWAITING LTD,Prv Sctr Care Pkage,Director of Adults & Health,1176.00 
8002826383,08/07/2020,SAMA CARE LTD,Prv Sctr Care Pkage,Director of Adults & Health,1176.00 
8002826410,08/07/2020,SAMA CARE LTD,Prv Sctr Care Pkage,Director of Adults & Health,1176.00 
8002821099,08/07/2020,ANDERSEN CARE LIMITED,Prv Sctr Care Pkage,Director of Adults & Health,1169.00 
1900872749,08/07/2020,ONE TIME,Fees Legal External,Assistant Dir Corporate Governance,1150.00 
5201335400,08/07/2020,Martin Arnold Limited,Repair & Maintenance,"Director of Regen,Planning & Devlop",1130.00 
8002823767,08/07/2020,PREMIER CAREWAITING LTD,Prv Sctr Care Pkage,Director of Adults & Health,1124.76 
8002821080,08/07/2020,ANDERSEN CARE LIMITED,Prv Sctr Care Pkage,Director of Adults & Health,1118.51 
8002821093,08/07/2020,ANDERSEN CARE LIMITED,Prv Sctr Care Pkage,Director of Adults & Health,1118.51 
5201335343,08/07/2020,VASTCARE LIMITED,Prem - Leasing,"Director of Regen,Planning & Devlop",1106.47 
5201335344,08/07/2020,VASTCARE LIMITED,Prem - Leasing,"Director of Regen,Planning & Devlop",1106.47 
5201335346,08/07/2020,Redacted Personal Data,Prem - Leasing,"Director of Regen,Planning & Devlop",1105.00 
5201335351,08/07/2020,Redacted Personal Data,Prem - Leasing,"Director of Regen,Planning & Devlop",1105.00 
5201335352,08/07/2020,Redacted Personal Data,Prem - Leasing,"Director of Regen,Planning & Devlop",1105.00 
5201335355,08/07/2020,Redacted Personal Data,Prem - Leasing,"Director of Regen,Planning & Devlop",1105.00 
8002823789,08/07/2020,PREMIER CAREWAITING LTD,Prv Sctr Care Pkage,Director of Adults & Health,1087.80 
5201335404,08/07/2020,RINGWAY JACOBS LIMITED,Letting/Estate Agent,Director of Environment & Neighbourhoods,1085.54 
8002823780,08/07/2020,PREMIER CAREWAITING LTD,Priv Sec-- LBH & CCG,Director of Adults & Health,1081.08 
1900872738,08/07/2020,STOR-A-FILE LTD,Document Archiving,Director of Adults & Health,1073.47 
5201335411,08/07/2020,RINGWAY JACOBS LIMITED,Property,Director of Finance,1068.28 
8002826140,08/07/2020,CORE OUTREACH & CARE SERVICES UK LT,Prv Sctr Care Pkage,Director of Adults & Health,1056.16 
8002826257,08/07/2020,CENTRE 404,Prv Sctr Care Pkage,Director of Adults & Health,1054.00 
1900872767,08/07/2020,4 PAPER BUILDINGS,Fees Legal External,Assistant Dir Corporate Governance,1050.00 
1900872775,08/07/2020,4 PAPER BUILDINGS,Fees Legal External,Assistant Dir Corporate Governance,1050.00 
1900872802,08/07/2020,4 PAPER BUILDINGS,Fees Legal External,Assistant Dir Corporate Governance,1050.00 
8002826325,08/07/2020,SAMA CARE LTD,Prv Sctr Care Pkage,Director of Adults & Health,1050.00 
1900872738,08/07/2020,STOR-A-FILE LTD,Document Archiving,Director of Transformation & Resources,1023.10 
8002823765,08/07/2020,PREMIER CAREWAITING LTD,Prv Sctr Care Pkage,Director of Adults & Health,1003.52 
8002826428,08/07/2020,PREMIER CAREWAITING LTD,Prv Sctr Care Pkage,Director of Adults & Health,1003.52 
5201335412,08/07/2020,GABRIEL FC SERVICES LTD,"Advice, Advocacy & C",Director of Adults & Health,1000.00 
1900872791,08/07/2020,4 PAPER BUILDINGS,Fees Legal External,Assistant Dir Corporate Governance,1000.00 
2500021572,08/07/2020,TEMPORARY ACCOMODATION,Prem - Rents,"Director of Regen,Planning & Devlop",1000.00 
1900872755,08/07/2020,ONE TIME,Fees Legal External,Assistant Dir Corporate Governance,998.00 
1900872788,08/07/2020,Redacted Personal Data,Fees Legal External,Assistant Dir Corporate Governance,998.00 
1900872738,08/07/2020,STOR-A-FILE LTD,Document Archiving,"Director of Regen,Planning & Devlop",996.34 
8002823774,08/07/2020,PREMIER CAREWAITING LTD,Prv Sctr Care Pkage,Director of Adults & Health,986.84 
8002826355,08/07/2020,SAMA CARE LTD,Priv Sec-- LBH & CCG,Director of Adults & Health,980.00 
8002823791,08/07/2020,PREMIER CAREWAITING LTD,Prv Sctr Care Pkage,Director of Adults & Health,980.00 
8002826358,08/07/2020,SAMA CARE LTD,Prv Sctr Care Pkage,Director of Adults & Health,980.00 
8002826404,08/07/2020,SAMA CARE LTD,Prv Sctr Care Pkage,Director of Adults & Health,980.00 
8002821094,08/07/2020,ANDERSEN CARE LIMITED,Prv Sctr Care Pkage,Director of Adults & Health,967.94 
8002826253,08/07/2020,CENTRE 404,Prv Sctr Care Pkage,Director of Adults & Health,960.00 
8002823783,08/07/2020,PREMIER CAREWAITING LTD,Prv Sctr Care Pkage,Director of Adults & Health,950.88 
1900872771,08/07/2020,4 PAPER BUILDINGS,Fees Legal External,Assistant Dir Corporate Governance,950.00 
8002826399,08/07/2020,SAMA CARE LTD,Priv Sec-- LBH & CCG,Director of Adults & Health,945.00 
5201335396,08/07/2020,ASHFORDS LLP,Heating & Air Con,Assistant Dir Corporate Governance,944.00 
8002821091,08/07/2020,ANDERSEN CARE LIMITED,Prv Sctr Care Pkage,Director of Adults & Health,940.80 
8002826430,08/07/2020,PREMIER CAREWAITING LTD,Prv Sctr Care Pkage,Director of Adults & Health,932.40 
5201335362,08/07/2020,MYERS (IDEAL SUPPLIES) LTD,Heating & Air Con,"Director of Regen,Planning & Devlop",931.00 
8002826381,08/07/2020,SAMA CARE LTD,Prv Sctr Care Pkage,Director of Adults & Health,913.52 
8002826143,08/07/2020,CORE OUTREACH & CARE SERVICES UK LT,Prv Sctr Care Pkage,Director of Adults & Health,912.00 
1900872763,08/07/2020,4 PAPER BUILDINGS,Fees Legal External,Assistant Dir Corporate Governance,900.00 
1900872809,08/07/2020,4 PAPER BUILDINGS,Fees Legal External,Assistant Dir Corporate Governance,900.00 
8002826153,08/07/2020,BIKUR CHOLIM LTD,Prv Sctr Care Pkage,Director of Adults & Health,900.00 
5201335342,08/07/2020,Redacted Personal Data,Prem - Leasing,"Director of Regen,Planning & Devlop",891.23 
5201335354,08/07/2020,Redacted Personal Data,Prem - Leasing,"Director of Regen,Planning & Devlop",888.33 
8002826345,08/07/2020,SAMA CARE LTD,Priv Sec-- LBH & CCG,Director of Adults & Health,882.00 
8002826400,08/07/2020,SAMA CARE LTD,Priv Sec-- LBH & CCG,Director of Adults & Health,882.00 
8002826356,08/07/2020,SAMA CARE LTD,Prv Sctr Care Pkage,Director of Adults & Health,882.00 
8002826386,08/07/2020,SAMA CARE LTD,Prv Sctr Care Pkage,Director of Adults & Health,882.00 
5201335341,08/07/2020,CLASS ESTATES LIMITED,Prem - Hire,"Director of Regen,Planning & Devlop",862.33 
5201335367,08/07/2020,ADAM HTT LTD T/A ADAM,Heating & Air Con,"Director of Regen,Planning & Devlop",854.28 
1900872787,08/07/2020,4 PAPER BUILDINGS,Fees Legal External,Assistant Dir Corporate Governance,850.00 
1900872796,08/07/2020,4 PAPER BUILDINGS,Fees Legal External,Assistant Dir Corporate Governance,850.00 
5201335374,08/07/2020,PLEXUS LAW (OFFICE ACCOUNT),Heating & Air Con,Assistant Dir Corporate Governance,840.00 
5201335375,08/07/2020,PLEXUS LAW (OFFICE ACCOUNT),Heating & Air Con,Assistant Dir Corporate Governance,840.00 
8002826138,08/07/2020,CORE OUTREACH & CARE SERVICES UK LT,Prv Sctr Care Pkage,Director of Adults & Health,836.08 
8002826337,08/07/2020,SAMA CARE LTD,Prv Sctr Care Pkage,Director of Adults & Health,828.80 
1900872785,08/07/2020,4 PAPER BUILDINGS,Fees Legal External,Assistant Dir Corporate Governance,800.00 
8002826363,08/07/2020,SAMA CARE LTD,Prv Sctr Care Pkage,Director of Adults & Health,784.00 
8002826402,08/07/2020,SAMA CARE LTD,Prv Sctr Care Pkage,Director of Adults & Health,784.00 
1900872766,08/07/2020,4 PAPER BUILDINGS,Fees Legal External,Assistant Dir Corporate Governance,766.66 
8002823782,08/07/2020,PREMIER CAREWAITING LTD,Prv Sctr Care Pkage,Director of Adults & Health,757.56 
8002826411,08/07/2020,SAMA CARE LTD,Priv Sec-- LBH & CCG,Director of Adults & Health,756.00 
1900872757,08/07/2020,ONE TIME,Fees Legal External,Assistant Dir Corporate Governance,750.00 
1900872761,08/07/2020,4 PAPER BUILDINGS,Fees Legal External,Assistant Dir Corporate Governance,750.00 
1900872769,08/07/2020,4 PAPER BUILDINGS,Fees Legal External,Assistant Dir Corporate Governance,750.00 
1900872805,08/07/2020,2 DR JOHNSONS BUILDING,Fees Legal External,Assistant Dir Corporate Governance,750.00 
8002826154,08/07/2020,BIKUR CHOLIM LTD,Prv Sctr Care Pkage,Director of Adults & Health,735.00 
5201335371,08/07/2020,PHOENIX SOFTWARE LTD,Heating & Air Con,Director of Transformation & Resources,728.60 
8002823790,08/07/2020,PREMIER CAREWAITING LTD,Prv Sctr Care Pkage,Director of Adults & Health,725.20 
8002826398,08/07/2020,SAMA CARE LTD,Priv Sec-- LBH & CCG,Director of Adults & Health,724.50 
8002826146,08/07/2020,CORE OUTREACH & CARE SERVICES UK LT,Prv Sctr Care Pkage,Director of Adults & Health,720.16 
8002826322,08/07/2020,BIKUR CHOLIM LTD,Prv Sctr Care Pkage,Director of Children's Services,720.00 
8002826366,08/07/2020,SAMA CARE LTD,Prv Sctr Care Pkage,Director of Adults & Health,714.00 
8002826397,08/07/2020,SAMA CARE LTD,Prv Sctr Care Pkage,Director of Adults & Health,710.52 
8002821086,08/07/2020,ANDERSEN CARE LIMITED,Prv Sctr Care Pkage,Director of Adults & Health,690.34 
8002826352,08/07/2020,SAMA CARE LTD,Prv Sctr Care Pkage,Director of Adults & Health,686.00 
8002826389,08/07/2020,SAMA CARE LTD,Prv Sctr Care Pkage,Director of Adults & Health,686.00 
8002821092,08/07/2020,ANDERSEN CARE LIMITED,Prv Sctr Care Pkage,Director of Adults & Health,667.00 
1900872804,08/07/2020,42 BEDFORD ROW,Fees Legal External,Assistant Dir Corporate Governance,650.00 
8002823785,08/07/2020,PREMIER CAREWAITING LTD,Prv Sctr Care Pkage,Director of Adults & Health,647.36 
8002826357,08/07/2020,SAMA CARE LTD,Prv Sctr Care Pkage,Director of Adults & Health,630.00 
8002824375,08/07/2020,EAST LONDON CLEANERS,Prv Sctr Care Pkage,Director of Adults & Health,625.00 
8002826382,08/07/2020,SAMA CARE LTD,Prv Sctr Care Pkage,Director of Adults & Health,623.52 
8002826141,08/07/2020,CORE OUTREACH & CARE SERVICES UK LT,Prv Sctr Care Pkage,Director of Adults & Health,605.96 
1900872764,08/07/2020,33 BEDFORD ROW,Fees Legal External,Assistant Dir Corporate Governance,600.00 
1900872786,08/07/2020,4 PAPER BUILDINGS,Fees Legal External,Assistant Dir Corporate Governance,600.00 
1900872808,08/07/2020,4 PAPER BUILDINGS,Fees Legal External,Assistant Dir Corporate Governance,600.00 
8002826344,08/07/2020,SAMA CARE LTD,Prv Sctr Care Pkage,Director of Adults & Health,588.00 
8002826387,08/07/2020,SAMA CARE LTD,Prv Sctr Care Pkage,Director of Adults & Health,588.00 
8002826393,08/07/2020,SAMA CARE LTD,Prv Sctr Care Pkage,Director of Adults & Health,588.00 
5201335372,08/07/2020,PHOENIX SOFTWARE LTD,Heating & Air Con,Director of Transformation & Resources,570.00 
8002826327,08/07/2020,SAMA CARE LTD,Priv Sec-- LBH & CCG,Director of Adults & Health,565.52 
1900872750,08/07/2020,MEDICAL EXPERT WITNESS ALLIANCE,Disbursements,Assistant Dir Corporate Governance,554.40 
8002826139,08/07/2020,CORE OUTREACH & CARE SERVICES UK LT,Prv Sctr Care Pkage,Director of Adults & Health,553.62 
8002826135,08/07/2020,CORE OUTREACH & CARE SERVICES UK LT,Prv Sctr Care Pkage,Director of Adults & Health,553.44 
5201335370,08/07/2020,THE A TEAM SMALL JOBS PROJECT LTD,Heating & Air Con,Director of Adults & Health,550.00 
8002826391,08/07/2020,SAMA CARE LTD,Priv Sec-- LBH & CCG,Director of Adults & Health,529.12 
8002826142,08/07/2020,CORE OUTREACH & CARE SERVICES UK LT,Prv Sctr Care Pkage,Director of Adults & Health,526.72 
1900872800,08/07/2020,33 BEDFORD ROW,Fees Legal External,Assistant Dir Corporate Governance,525.00 
8002826339,08/07/2020,SAMA CARE LTD,Prv Sctr Care Pkage,Director of Adults & Health,522.00 
8002826375,08/07/2020,SAMA CARE LTD,Prv Sctr Care Pkage,Director of Adults & Health,518.00 
8002821090,08/07/2020,ANDERSEN CARE LIMITED,Prv Sctr Care Pkage,Director of Adults & Health,512.13 
8002826259,08/07/2020,CENTRE 404,Prv Sctr Care Pkage,Director of Adults & Health,512.00 
1900872777,08/07/2020,Redacted Personal Data,Fees Legal External,Assistant Dir Corporate Governance,510.00 
1900872812,08/07/2020,ONE TIME,Fees Legal External,Assistant Dir Corporate Governance,510.00 
8002826377,08/07/2020,SAMA CARE LTD,Prv Sctr Care Pkage,Director of Adults & Health,507.52 
8002826406,08/07/2020,SAMA CARE LTD,Prv Sctr Care Pkage,Director of Adults & Health,507.52 
8002826338,08/07/2020,SAMA CARE LTD,Prv Sctr Care Pkage,Director of Adults & Health,507.16 
5201335427,08/07/2020,MEDEQUIP ASSISTIVE TECH. LTD,Equipment,Director of Adults & Health,504.00 
1900872806,08/07/2020,PARSONS MARSHALL PSYCHOLOGY  LTD,Disbursements,Assistant Dir Corporate Governance,503.10 
1900872792,08/07/2020,4 PAPER BUILDINGS,Fees Legal External,Assistant Dir Corporate Governance,500.00 
8002823781,08/07/2020,PREMIER CAREWAITING LTD,Prv Sctr Care Pkage,Director of Adults & Health,498.40 
8002826147,08/07/2020,CORE OUTREACH & CARE SERVICES UK LT,Prv Sctr Care Pkage,Director of Adults & Health,494.48 
8002826324,08/07/2020,SAMA CARE LTD,Priv Sec-- LBH & CCG,Director of Adults & Health,490.00 
8002826384,08/07/2020,SAMA CARE LTD,Priv Sec-- LBH & CCG,Director of Adults & Health,490.00 
8002826349,08/07/2020,SAMA CARE LTD,Prv Sctr Care Pkage,Director of Adults & Health,490.00 
8002826350,08/07/2020,SAMA CARE LTD,Prv Sctr Care Pkage,Director of Adults & Health,490.00 
8002826368,08/07/2020,SAMA CARE LTD,Prv Sctr Care Pkage,Director of Adults & Health,490.00 
8002826370,08/07/2020,SAMA CARE LTD,Prv Sctr Care Pkage,Director of Adults & Health,490.00 
8002826407,08/07/2020,SAMA CARE LTD,Prv Sctr Care Pkage,Director of Adults & Health,490.00 
5201335356,08/07/2020,MYERS (IDEAL SUPPLIES) LTD,Heating & Air Con,"Director of Regen,Planning & Devlop",485.00 
8002826380,08/07/2020,SAMA CARE LTD,Prv Sctr Care Pkage,Director of Adults & Health,458.50 
8002821077,08/07/2020,ANDERSEN CARE LIMITED,Prv Sctr Care Pkage,Director of Adults & Health,451.50 
1900872762,08/07/2020,Redacted Personal Data,Fees Legal External,Assistant Dir Corporate Governance,450.00 
1900872768,08/07/2020,4 PAPER BUILDINGS,Fees Legal External,Assistant Dir Corporate Governance,450.00 
8002826320,08/07/2020,BIKUR CHOLIM LTD,Prv Sctr Care Pkage,Director of Children's Services,450.00 
5201335378,08/07/2020,TCR TRAINING LTD,Heating & Air Con,Director of Adults & Health,445.01 
5201335399,08/07/2020,Redacted Personal Data,Repair & Maintenance,Director of Children's Services,441.87 
8002824897,08/07/2020,KAAMIL EDUCATION LTD,Prv Sctr Care Pkage,Director of Adults & Health,441.00 
8002821083,08/07/2020,ANDERSEN CARE LIMITED,Prv Sctr Care Pkage,Director of Adults & Health,434.00 
8002826351,08/07/2020,SAMA CARE LTD,Prv Sctr Care Pkage,Director of Adults & Health,420.00 
1900872765,08/07/2020,LEXTOX,Disbursements,Assistant Dir Corporate Governance,414.00 
8002826252,08/07/2020,CENTRE 404,Prv Sctr Care Pkage,Director of Adults & Health,408.00 
8002826388,08/07/2020,SAMA CARE LTD,Prv Sctr Care Pkage,Director of Adults & Health,406.00 
5201335381,08/07/2020,FLEETDRIVE MANAGEMENT LTD,Ext  Consult-NCCA,Director of Finance,395.08 
8002826367,08/07/2020,SAMA CARE LTD,Prv Sctr Care Pkage,Director of Adults & Health,392.00 
5201335363,08/07/2020,MYERS (IDEAL SUPPLIES) LTD,Heating & Air Con,"Director of Regen,Planning & Devlop",385.00 
8002824373,08/07/2020,EAST LONDON CLEANERS,Priv Sec-- LBH & CCG,Director of Adults & Health,375.00 
1900872738,08/07/2020,STOR-A-FILE LTD,Document Archiving,Director of Finance,364.38 
5201335421,08/07/2020,Walker Management Limited,Business,Director of Finance,360.00 
8002826255,08/07/2020,CENTRE 404,Prv Sctr Care Pkage,Director of Adults & Health,354.72 
1900872793,08/07/2020,Redacted Personal Data,Disbursements,Assistant Dir Corporate Governance,351.00 
8002821074,08/07/2020,ANDERSEN CARE LIMITED,Prv Sctr Care Pkage,Director of Adults & Health,348.00 
8002823779,08/07/2020,PREMIER CAREWAITING LTD,Prv Sctr Care Pkage,Director of Adults & Health,335.72 
5201335382,08/07/2020,FLEETDRIVE MANAGEMENT LTD,Ext  Consult-NCCA,Director of Finance,317.52 
5201335383,08/07/2020,FLEETDRIVE MANAGEMENT LTD,Ext  Consult-NCCA,Director of Finance,317.52 
5201335361,08/07/2020,MYERS (IDEAL SUPPLIES) LTD,Heating & Air Con,"Director of Regen,Planning & Devlop",304.00 
8002823784,08/07/2020,PREMIER CAREWAITING LTD,Prv Sctr Care Pkage,Director of Adults & Health,302.61 
1900872794,08/07/2020,4 PAPER BUILDINGS,Fees Legal External,Assistant Dir Corporate Governance,300.00 
8002826156,08/07/2020,BIKUR CHOLIM LTD,Prv Sctr Care Pkage,Director of Adults & Health,300.00 
5201335416,08/07/2020,SERNA LONDON LTD T/A SERNA CLEANING,External,Director of Children's Services,295.00 
5201335418,08/07/2020,SERNA LONDON LTD T/A SERNA CLEANING,External,Director of Children's Services,295.00 
8002826354,08/07/2020,SAMA CARE LTD,Prv Sctr Care Pkage,Director of Adults & Health,294.00 
8002826378,08/07/2020,SAMA CARE LTD,Prv Sctr Care Pkage,Director of Adults & Health,294.00 
8002826432,08/07/2020,VERITY HEALTHCARE LTD,Prv Sctr Care Pkage,Director of Adults & Health,282.90 
8002823784,08/07/2020,PREMIER CAREWAITING LTD,Priv Sec-- LBH & CCG,Director of Adults & Health,278.46 
1900872760,08/07/2020,IBB LAW LLB,Disbursements,Assistant Dir Corporate Governance,250.00 
1900872770,08/07/2020,IBB LAW LLB,Disbursements,Assistant Dir Corporate Governance,250.00 
1900872813,08/07/2020,ONE TIME,Disbursements,Assistant Dir Corporate Governance,250.00 
8002826333,08/07/2020,SAMA CARE LTD,Prv Sctr Care Pkage,Director of Adults & Health,240.00 
8002826343,08/07/2020,SAMA CARE LTD,Prv Sctr Care Pkage,Director of Adults & Health,232.00 
8002826145,08/07/2020,CORE OUTREACH & CARE SERVICES UK LT,Prv Sctr Care Pkage,Director of Adults & Health,225.68 
8002824882,08/07/2020,KAAMIL EDUCATION LTD,Prv Sctr Care Pkage,Director of Adults & Health,217.00 
1900872783,08/07/2020,UBIQUS UK LTD,Fees - Translation,Assistant Dir Corporate Governance,215.80 
8002823777,08/07/2020,PREMIER CAREWAITING LTD,Prv Sctr Care Pkage,Director of Adults & Health,213.80 
8002826326,08/07/2020,SAMA CARE LTD,Prv Sctr Care Pkage,Director of Adults & Health,210.00 
5201335389,08/07/2020,BUSINESS STORAGE SOLUTIONS LTD,Heating & Air Con,Director of Children's Services,203.50 
1900872751,08/07/2020,CORNERSTONE BARRISTERS,Fees Legal External,Assistant Dir Corporate Governance,200.00 
1900872807,08/07/2020,4 PAPER BUILDINGS,Fees Legal External,Assistant Dir Corporate Governance,200.00 
8002826336,08/07/2020,SAMA CARE LTD,Priv Sec-- LBH & CCG,Director of Adults & Health,199.50 
8002826332,08/07/2020,SAMA CARE LTD,Prv Sctr Care Pkage,Director of Adults & Health,196.00 
8002826395,08/07/2020,SAMA CARE LTD,Prv Sctr Care Pkage,Director of Adults & Health,196.00 
8002826258,08/07/2020,CENTRE 404,Prv Sctr Care Pkage,Director of Adults & Health,192.00 
8002826359,08/07/2020,SAMA CARE LTD,Priv Sec-- LBH & CCG,Director of Adults & Health,191.25 
8002826405,08/07/2020,SAMA CARE LTD,Priv Sec-- LBH & CCG,Director of Adults & Health,189.00 
1900872753,08/07/2020,ONE TIME,Disbursements,Assistant Dir Corporate Governance,183.00 
8002826376,08/07/2020,SAMA CARE LTD,Prv Sctr Care Pkage,Director of Adults & Health,181.26 
1900872790,08/07/2020,LEXTOX,Disbursements,Assistant Dir Corporate Governance,181.25 
1900872799,08/07/2020,LEXTOX,Disbursements,Assistant Dir Corporate Governance,181.25 
5201335380,08/07/2020,Excellence Plumbing and Gas Ltd,Heating & Air Con,Director of Finance,180.00 
1900872782,08/07/2020,WOLFESTONE TRANSLATION LTD,Fees - Translation,Assistant Dir Corporate Governance,160.05 
1900872773,08/07/2020,LEXTOX,Disbursements,Assistant Dir Corporate Governance,157.65 
8002823786,08/07/2020,PREMIER CAREWAITING LTD,Prv Sctr Care Pkage,Director of Adults & Health,155.40 
1900872778,08/07/2020,LEXTOX,Disbursements,Assistant Dir Corporate Governance,154.65 
1900872772,08/07/2020,CORNERSTONE BARRISTERS,Fees Legal External,Assistant Dir Corporate Governance,150.00 
5201335385,08/07/2020,DIRECT BOOT AND SHOE SUPPLIES LTD,Priv - Contractor,Director of Environment & Neighbourhoods,142.90 
8002826392,08/07/2020,SAMA CARE LTD,Prv Sctr Care Pkage,Director of Adults & Health,130.50 
8002826256,08/07/2020,CENTRE 404,Prv Sctr Care Pkage,Director of Adults & Health,128.00 
1900872801,08/07/2020,LEXTOX,Disbursements,Assistant Dir Corporate Governance,113.32 
1900872798,08/07/2020,LEXTOX,Disbursements,Assistant Dir Corporate Governance,108.75 
1900872774,08/07/2020,11KBW LTD,Fees Legal External,Assistant Dir Corporate Governance,108.00 
8002826365,08/07/2020,SAMA CARE LTD,Prv Sctr Care Pkage,Director of Adults & Health,105.00 
1900872759,08/07/2020,WOLFESTONE TRANSLATION LTD,Fees - Translation,Assistant Dir Corporate Governance,104.40 
5201335360,08/07/2020,PRESCOTT THOMAS LTD,Heating & Air Con,Director of Children's Services,101.08 
1900872776,08/07/2020,4 PAPER BUILDINGS,Fees Legal External,Assistant Dir Corporate Governance,100.00 
1900872795,08/07/2020,WOLFESTONE TRANSLATION LTD,Fees - Translation,Assistant Dir Corporate Governance,99.00 
5201335431,08/07/2020,BLUELEAF LIMITED,Healthcare,Director of Adults & Health,89.90 
8002826369,08/07/2020,SAMA CARE LTD,Prv Sctr Care Pkage,Director of Adults & Health,84.00 
1900872811,08/07/2020,MEDICAL EXPERT WITNESS ALLIANCE,Disbursements,Assistant Dir Corporate Governance,75.60 
5201335433,08/07/2020,BLUELEAF LIMITED,Healthcare,Director of Adults & Health,68.55 
1900872748,08/07/2020,DNA LEGAL LIMITED T/A DNA WORLDWIDE,Disbursements,Assistant Dir Corporate Governance,66.00 
2500021574,08/07/2020,GRANT PAYMENTS,School - Clothing,Director of Transformation & Resources,60.00 
2500021575,08/07/2020,GRANT PAYMENTS,School - Clothing,Director of Transformation & Resources,60.00 
2500021576,08/07/2020,GRANT PAYMENTS,School - Clothing,Director of Transformation & Resources,60.00 
2500021577,08/07/2020,GRANT PAYMENTS,School - Clothing,Director of Transformation & Resources,60.00 
2500021578,08/07/2020,GRANT PAYMENTS,School - Clothing,Director of Transformation & Resources,60.00 
2500021579,08/07/2020,GRANT PAYMENTS,School - Clothing,Director of Transformation & Resources,60.00 
2500021580,08/07/2020,GRANT PAYMENTS,School - Clothing,Director of Transformation & Resources,60.00 
2500021581,08/07/2020,GRANT PAYMENTS,School - Clothing,Director of Transformation & Resources,60.00 
2500021582,08/07/2020,GRANT PAYMENTS,School - Clothing,Director of Transformation & Resources,60.00 
5201335434,08/07/2020,PRESCOTT THOMAS LTD,Corporate Services,Director of Children's Services,43.55 
5201335386,08/07/2020,VIRGIN MEDIA PAYMENTS LIMITED,Heating & Air Con,Director of Transformation & Resources,40.55 
5201335425,08/07/2020,PRESCOTT THOMAS LTD,Corporate Services,Director of Children's Services,21.09 
8002824903,08/07/2020,KAAMIL EDUCATION LTD,Priv Sec-- LBH & CCG,Director of Adults & Health,10.50 
5201335413,08/07/2020,The Fulker Consultancy Limited,Fees - Consultant,"Director of Regen,Planning & Devlop",0.50 
5201335388,08/07/2020,VIRGIN MEDIA LTD,ICT Equip,Director of Finance,0.01 
5201335378,08/07/2020,TCR TRAINING LTD,Commission Training,Director of Adults & Health,-0.01 
5201335384,08/07/2020,TRIPOD PARTNERS LIMITED,Priv - Contractor,Director of Children's Services,-20.00 
5201335394,08/07/2020,RINGWAY JACOBS LIMITED,PayContractr Infrast,Director of Finance,-209.25 
8002826416,08/07/2020,Ambient Support Limited,Client Cont Care Pkg,Director of Adults & Health,-347.00 
8002826426,08/07/2020,Ambient Support Limited,Client Cont Care Pkg,Director of Adults & Health,-347.00 
8002826415,08/07/2020,Ambient Support Limited,Client Cont Care Pkg,Director of Adults & Health,-414.20 
8002826424,08/07/2020,Ambient Support Limited,Client Cont Care Pkg,Director of Adults & Health,-414.20 
5201335406,08/07/2020,RINGWAY JACOBS LIMITED,PayContractr Infrast,Director of Finance,-663.68 
5201335404,08/07/2020,RINGWAY JACOBS LIMITED,Priv - Contractor,Director of Environment & Neighbourhoods,-836.50 
5201335411,08/07/2020,RINGWAY JACOBS LIMITED,PayContractr Infrast,Director of Finance,-1012.05 
5201333555,08/07/2020,RINGWAY JACOBS LIMITED,Repair & Maintenance,Director of Finance,-1068.28 
5201335387,08/07/2020,RINGWAY JACOBS LIMITED,PayContractr Infrast,Director of Finance,-1364.55 
5201333662,08/07/2020,RINGWAY JACOBS LIMITED,Repair & Maintenance,Director of Finance,-1376.00 
5201335395,08/07/2020,RINGWAY JACOBS LIMITED,Priv - Contractor,Director of Environment & Neighbourhoods,-1500.94 
5201334649,08/07/2020,RINGWAY JACOBS LIMITED,Repair & Maintenance,Director of Finance,-1703.58 
5201335409,08/07/2020,RINGWAY JACOBS LIMITED,PayContractr Infrast,Director of Finance,-2270.88 
5201335393,08/07/2020,RINGWAY JACOBS LIMITED,PayContractr Infrast,Director of Finance,-2530.67 
5201334640,08/07/2020,RINGWAY JACOBS LIMITED,Repair & Maintenance,Director of Environment & Neighbourhoods,-2677.44 
5201333671,08/07/2020,RINGWAY JACOBS LIMITED,Repair & Maintenance,Director of Finance,-4381.73 
5201333685,08/07/2020,RINGWAY JACOBS LIMITED,Repair & Maintenance,Director of Finance,-6718.37 
5201335407,08/07/2020,RINGWAY JACOBS LIMITED,Priv - Contractor,Director of Environment & Neighbourhoods,-19392.75 
5201333698,08/07/2020,RINGWAY JACOBS LIMITED,Repair & Maintenance,Director of Environment & Neighbourhoods,-20656.35 
5201335330,08/07/2020,HOMES FOR HARINGEY LIMITED,Arms Length Mgmt Org,"Director of Regen,Planning & Devlop",-152119.95 
1900872754,09/07/2020,HAYS SPECIALIST RECRUITMENT,SalAgen-Est Post,Director of Transformation & Resources,267707.56 
1900872754,09/07/2020,HAYS SPECIALIST RECRUITMENT,SalAgen-Est Post,Director of Environment & Neighbourhoods,199070.72 
1900872754,09/07/2020,HAYS SPECIALIST RECRUITMENT,SalAgen-Est Post,Director of Children's Services,188785.34 
1900872754,09/07/2020,HAYS SPECIALIST RECRUITMENT,SalAgen-Est Post,"Director of Regen,Planning & Devlop",128885.83 
1900872754,09/07/2020,HAYS SPECIALIST RECRUITMENT,SalAgen-Est Post,Director of Adults & Health,118567.55 
8002824987,09/07/2020,KISIMUL GROUP LTD,Priv - Board School,Director of Children's Services,74701.25 
8002825045,09/07/2020,KISIMUL GROUP LTD,Priv - Board School,Director of Children's Services,74701.25 
5201335482,09/07/2020,PARAGON BUILDING SOLUTIONS LTD,Equipment,Director of Finance,32040.00 
5201334165,09/07/2020,WORKSPACE TECHNOLOGY LIMITED,General Materials,Director of Finance,31272.63 
8002826702,09/07/2020,OPEN WORLD 2 LIMITED,Priv - Contractor,Director of Children's Services,27618.21 
1900872754,09/07/2020,HAYS SPECIALIST RECRUITMENT,SalAgen-Est Post,Director of Finance,23404.27 
8002826250,09/07/2020,OAKMONT SOCIAL EDUCATION,Vol Sec - Add Supp,Director of Children's Services,17000.00 
8002826302,09/07/2020,OAKMONT SOCIAL EDUCATION,Vol Sec - Add Supp,Director of Children's Services,13479.48 
1900872754,09/07/2020,HAYS SPECIALIST RECRUITMENT,SalAgen-Est Post,Assistant Dir Corporate Governance,12461.56 
2500021589,09/07/2020,GRANT PAYMENTS,Priv Sec-- LBH & CCG,Director of Adults & Health,12300.00 
8002826304,09/07/2020,OAKMONT SOCIAL EDUCATION,Vol Sec - Add Supp,Director of Children's Services,11981.95 
8002826629,09/07/2020,TRANSITION AND LATERLIFE MATTER LTD,Priv Sec-- LBH & CCG,Director of Adults & Health,10080.00 
8002826305,09/07/2020,OAKMONT SOCIAL EDUCATION,Vol Sec - Add Supp,Director of Children's Services,9536.65 
1900872814,09/07/2020,CORNERSTONE BARRISTERS,Fees Legal External,Assistant Dir Corporate Governance,7500.00 
8002826616,09/07/2020,NEW CENTURY CARE (FINCHLEY) LTD,Priv - Res Long,Director of Adults & Health,7410.00 
8002826472,09/07/2020,OAK TREE CARE SERVICES LIMITED,Priv - Res Long,Director of Adults & Health,7315.24 
2500021587,09/07/2020,GRANT PAYMENTS,Priv Sec-- LBH & CCG,Director of Adults & Health,7216.00 
5201335486,09/07/2020,VIGILANT SECURITY SERVICES UK LTD,Equipment,"Director of Regen,Planning & Devlop",5491.20 
5201335488,09/07/2020,VIGILANT SECURITY SERVICES UK LTD,Equipment,"Director of Regen,Planning & Devlop",4491.52 
5201335487,09/07/2020,VIGILANT SECURITY SERVICES UK LTD,Equipment,"Director of Regen,Planning & Devlop",4477.44 
8002821095,09/07/2020,ANDERSEN CARE LIMITED,Priv Sec-- LBH & CCG,Director of Adults & Health,4476.50 
5201335479,09/07/2020,McBains Ltd,Equipment,Director of Finance,4425.00 
8002826565,09/07/2020,KALM CARE LTD,Prv Sctr Care Pkage,Director of Adults & Health,3600.00 
8002826113,09/07/2020,ELYSIUM HEALTHCARE LTD,Vol Sec - Add Supp,Director of Children's Services,3520.00 
8002826706,09/07/2020,LITTLE GAYNES REST HOME LTD,Priv - Res Short,Director of Adults & Health,3397.15 
1900872841,09/07/2020,WING PARKING LTD T/A WING PARKING,Fees - C Parking Z,"Director of Regen,Planning & Devlop",3178.26 
8002826237,09/07/2020,EMBRACE UK COMMUNITY SUPPORT CENTRE,Prv Sctr Care Pkage,Director of Adults & Health,3153.60 
8002823830,09/07/2020,KARTEROS LTD T/A ST MARKS DAY SERVI,Prv Sctr Care Pkage,Director of Adults & Health,3015.60 
8002826448,09/07/2020,AREA 51 EDUCATION LTD,Prv Sctr Care Pkage,Director of Adults & Health,2980.91 
8002826461,09/07/2020,AREA 51 EDUCATION LTD,Prv Sctr Care Pkage,Director of Adults & Health,2980.91 
8002826205,09/07/2020,EMBRACE UK COMMUNITY SUPPORT CENTRE,Prv Sctr Care Pkage,Director of Adults & Health,2930.40 
1900872824,09/07/2020,FIVE PAPER CHAMBERS,Fees Legal External,Assistant Dir Corporate Governance,2913.75 
1900872827,09/07/2020,CORNERSTONE BARRISTERS,Fees Legal External,Assistant Dir Corporate Governance,2750.00 
8002823685,09/07/2020,KANSSAS HOME CARE LTD,Prv Sctr Care Pkage,Director of Adults & Health,2639.00 
8002826169,09/07/2020,EMBRACE UK COMMUNITY SUPPORT CENTRE,Prv Sctr Care Pkage,Director of Adults & Health,2639.00 
8002823702,09/07/2020,KANSSAS HOME CARE LTD,Prv Sctr Care Pkage,Director of Adults & Health,2562.00 
8002826636,09/07/2020,SIGN HEALTH,Prv Sctr Care Pkage,Director of Adults & Health,2400.00 
8002826637,09/07/2020,SIGN HEALTH,Prv Sctr Care Pkage,Director of Adults & Health,2400.00 
8002826638,09/07/2020,SIGN HEALTH,Prv Sctr Care Pkage,Director of Adults & Health,2400.00 
8002826641,09/07/2020,SIGN HEALTH,Prv Sctr Care Pkage,Director of Adults & Health,2400.00 
8002826642,09/07/2020,SIGN HEALTH,Prv Sctr Care Pkage,Director of Adults & Health,2400.00 
8002826643,09/07/2020,SIGN HEALTH,Prv Sctr Care Pkage,Director of Adults & Health,2400.00 
8002826653,09/07/2020,SIGN HEALTH,Prv Sctr Care Pkage,Director of Adults & Health,2400.00 
8002826654,09/07/2020,SIGN HEALTH,Prv Sctr Care Pkage,Director of Adults & Health,2400.00 
8002826656,09/07/2020,SIGN HEALTH,Prv Sctr Care Pkage,Director of Adults & Health,2400.00 
8002824387,09/07/2020,NAS SERVICES LTD,Vol Sect - Care Pk,Director of Adults & Health,2313.36 
8002823710,09/07/2020,KANSSAS HOME CARE LTD,Prv Sctr Care Pkage,Director of Adults & Health,2310.00 
8002826182,09/07/2020,EMBRACE UK COMMUNITY SUPPORT CENTRE,Prv Sctr Care Pkage,Director of Adults & Health,2302.32 
8002823674,09/07/2020,KANSSAS HOME CARE LTD,Prv Sctr Care Pkage,Director of Adults & Health,2254.00 
8002826248,09/07/2020,EMBRACE UK COMMUNITY SUPPORT CENTRE,Prv Sctr Care Pkage,Director of Adults & Health,2247.52 
8002826185,09/07/2020,EMBRACE UK COMMUNITY SUPPORT CENTRE,Prv Sctr Care Pkage,Director of Adults & Health,2160.00 
8002823684,09/07/2020,KANSSAS HOME CARE LTD,Prv Sctr Care Pkage,Director of Adults & Health,2148.32 
1900872816,09/07/2020,KBW LTD (PROFESSIONAL FEES),Fees Legal External,Assistant Dir Corporate Governance,1975.00 
8002826221,09/07/2020,EMBRACE UK COMMUNITY SUPPORT CENTRE,Priv Sec-- LBH & CCG,Director of Adults & Health,1960.00 
8002826234,09/07/2020,EMBRACE UK COMMUNITY SUPPORT CENTRE,Prv Sctr Care Pkage,Director of Adults & Health,1960.00 
8002823695,09/07/2020,KANSSAS HOME CARE LTD,Prv Sctr Care Pkage,Director of Adults & Health,1897.00 
8002823696,09/07/2020,KANSSAS HOME CARE LTD,Prv Sctr Care Pkage,Director of Adults & Health,1890.00 
8002823700,09/07/2020,KANSSAS HOME CARE LTD,Prv Sctr Care Pkage,Director of Adults & Health,1890.00 
8002826628,09/07/2020,TRANSITION AND LATERLIFE MATTER LTD,Prv Sctr Care Pkage,Director of Adults & Health,1890.00 
8002826443,09/07/2020,AREA 51 EDUCATION LTD,Prv Sctr Care Pkage,Director of Adults & Health,1877.96 
8002826457,09/07/2020,AREA 51 EDUCATION LTD,Prv Sctr Care Pkage,Director of Adults & Health,1877.96 
8002823669,09/07/2020,KANSSAS HOME CARE LTD,Prv Sctr Care Pkage,Director of Adults & Health,1862.00 
8002826226,09/07/2020,EMBRACE UK COMMUNITY SUPPORT CENTRE,Priv Sec-- LBH & CCG,Director of Adults & Health,1827.00 
8002826202,09/07/2020,EMBRACE UK COMMUNITY SUPPORT CENTRE,Prv Sctr Care Pkage,Director of Adults & Health,1827.00 
8002826175,09/07/2020,EMBRACE UK COMMUNITY SUPPORT CENTRE,Prv Sctr Care Pkage,Director of Adults & Health,1806.00 
8002823686,09/07/2020,KANSSAS HOME CARE LTD,Prv Sctr Care Pkage,Director of Adults & Health,1764.00 
8002823705,09/07/2020,KANSSAS HOME CARE LTD,Prv Sctr Care Pkage,Director of Adults & Health,1764.00 
8002826172,09/07/2020,EMBRACE UK COMMUNITY SUPPORT CENTRE,Prv Sctr Care Pkage,Director of Adults & Health,1764.00 
8002826218,09/07/2020,EMBRACE UK COMMUNITY SUPPORT CENTRE,Prv Sctr Care Pkage,Director of Adults & Health,1764.00 
8002826222,09/07/2020,EMBRACE UK COMMUNITY SUPPORT CENTRE,Prv Sctr Care Pkage,Director of Adults & Health,1764.00 
8002826261,09/07/2020,AREA 51 EDUCATION LTD,Prv Sctr Care Pkage,Director of Adults & Health,1751.80 
8002826281,09/07/2020,AREA 51 EDUCATION LTD,Prv Sctr Care Pkage,Director of Adults & Health,1751.80 
5201335481,09/07/2020,PLEXUS LAW (OFFICE ACCOUNT),Equipment,Assistant Dir Corporate Governance,1696.50 
8002823662,09/07/2020,KANSSAS HOME CARE LTD,Prv Sctr Care Pkage,Director of Adults & Health,1694.72 
5201335458,09/07/2020,Redacted Personal Data,Prem - Leasing,"Director of Regen,Planning & Devlop",1684.02 
5201335474,09/07/2020,Redacted Personal Data,Prem - Leasing,"Director of Regen,Planning & Devlop",1681.33 
5201335475,09/07/2020,Redacted Personal Data,Prem - Leasing,"Director of Regen,Planning & Devlop",1681.33 
8002826630,09/07/2020,TRANSITION AND LATERLIFE MATTER LTD,Prv Sctr Care Pkage,Director of Adults & Health,1657.60 
5201335468,09/07/2020,Redacted Personal Data,Prem - Leasing,"Director of Regen,Planning & Devlop",1646.66 
8002826266,09/07/2020,AREA 51 EDUCATION LTD,Prv Sctr Care Pkage,Director of Adults & Health,1622.03 
8002826268,09/07/2020,AREA 51 EDUCATION LTD,Prv Sctr Care Pkage,Director of Adults & Health,1622.03 
8002826286,09/07/2020,AREA 51 EDUCATION LTD,Prv Sctr Care Pkage,Director of Adults & Health,1622.03 
8002826288,09/07/2020,AREA 51 EDUCATION LTD,Prv Sctr Care Pkage,Director of Adults & Health,1622.03 
8002826436,09/07/2020,AREA 51 EDUCATION LTD,Prv Sctr Care Pkage,Director of Adults & Health,1622.03 
8002826437,09/07/2020,AREA 51 EDUCATION LTD,Prv Sctr Care Pkage,Director of Adults & Health,1622.03 
8002826440,09/07/2020,AREA 51 EDUCATION LTD,Prv Sctr Care Pkage,Director of Adults & Health,1622.03 
8002826441,09/07/2020,AREA 51 EDUCATION LTD,Prv Sctr Care Pkage,Director of Adults & Health,1622.03 
8002826449,09/07/2020,AREA 51 EDUCATION LTD,Prv Sctr Care Pkage,Director of Adults & Health,1622.03 
8002826450,09/07/2020,AREA 51 EDUCATION LTD,Prv Sctr Care Pkage,Director of Adults & Health,1622.03 
8002826454,09/07/2020,AREA 51 EDUCATION LTD,Prv Sctr Care Pkage,Director of Adults & Health,1622.03 
8002826455,09/07/2020,AREA 51 EDUCATION LTD,Prv Sctr Care Pkage,Director of Adults & Health,1622.03 
1900872836,09/07/2020,WING PARKING LTD T/A WING PARKING,Fees - C Parking Z,"Director of Regen,Planning & Devlop",1600.00 
8002826245,09/07/2020,EMBRACE UK COMMUNITY SUPPORT CENTRE,Prv Sctr Care Pkage,Director of Adults & Health,1571.06 
8002826460,09/07/2020,LANGDON COMMUNITY,Prv Sctr Care Pkage,Director of Adults & Health,1520.00 
8002826465,09/07/2020,LANGDON COMMUNITY,Prv Sctr Care Pkage,Director of Adults & Health,1520.00 
8002826466,09/07/2020,LANGDON COMMUNITY,Prv Sctr Care Pkage,Director of Adults & Health,1520.00 
8002826598,09/07/2020,PRIMERA ASSISTED LIVING LIMITED T/A,Priv Sec-- LBH & CCG,Director of Adults & Health,1519.00 
8002826209,09/07/2020,EMBRACE UK COMMUNITY SUPPORT CENTRE,Prv Sctr Care Pkage,Director of Adults & Health,1512.00 
1900872837,09/07/2020,WING PARKING LTD T/A WING PARKING,Fees - C Parking Z,"Director of Regen,Planning & Devlop",1500.00 
1900872822,09/07/2020,5 PAPER BUILDINGS,Fees Legal External,Assistant Dir Corporate Governance,1500.00 
8002826191,09/07/2020,EMBRACE UK COMMUNITY SUPPORT CENTRE,Prv Sctr Care Pkage,Director of Adults & Health,1495.00 
1900872832,09/07/2020,WING PARKING LTD T/A WING PARKING,Fees - C Parking Z,"Director of Regen,Planning & Devlop",1483.10 
5201335449,09/07/2020,STATEBOND LTD T/A HORNSEY AGENCIES,Prem - Leasing,"Director of Regen,Planning & Devlop",1473.33 
5201335450,09/07/2020,STATEBOND LTD T/A HORNSEY AGENCIES,Prem - Leasing,"Director of Regen,Planning & Devlop",1473.33 
5201335451,09/07/2020,STATEBOND LTD T/A HORNSEY AGENCIES,Prem - Leasing,"Director of Regen,Planning & Devlop",1473.33 
5201335452,09/07/2020,STATEBOND LTD T/A HORNSEY AGENCIES,Prem - Leasing,"Director of Regen,Planning & Devlop",1473.33 
5201335459,09/07/2020,FALCON PROPERTIES LTD,Prem - Leasing,"Director of Regen,Planning & Devlop",1473.33 
5201335477,09/07/2020,PROPERTYNET (UK) LIMITED,Prem - Leasing,"Director of Regen,Planning & Devlop",1473.33 
5201335478,09/07/2020,PROPERTYNET (UK) LIMITED,Prem - Leasing,"Director of Regen,Planning & Devlop",1473.33 
8002823675,09/07/2020,KANSSAS HOME CARE LTD,Prv Sctr Care Pkage,Director of Adults & Health,1470.00 
5201335476,09/07/2020,PROPERTYNET (UK) LIMITED,Prem - Leasing,"Director of Regen,Planning & Devlop",1462.50 
8002826294,09/07/2020,AREA 51 EDUCATION LTD,Prv Sctr Care Pkage,Director of Adults & Health,1365.92 
8002826299,09/07/2020,AREA 51 EDUCATION LTD,Prv Sctr Care Pkage,Director of Adults & Health,1365.92 
5201335440,09/07/2020,ADAMS & STYLES,Prem - Leasing,"Director of Regen,Planning & Devlop",1365.00 
5201335447,09/07/2020,STATEBOND LTD T/A HORNSEY AGENCIES,Prem - Leasing,"Director of Regen,Planning & Devlop",1365.00 
5201335460,09/07/2020,Redacted Personal Data,Prem - Leasing,"Director of Regen,Planning & Devlop",1365.00 
5201335463,09/07/2020,Redacted Personal Data,Prem - Leasing,"Director of Regen,Planning & Devlop",1365.00 
5201335467,09/07/2020,Redacted Personal Data,Prem - Leasing,"Director of Regen,Planning & Devlop",1365.00 
5201335472,09/07/2020,Redacted Personal Data,Prem - Leasing,"Director of Regen,Planning & Devlop",1365.00 
5201335473,09/07/2020,Redacted Personal Data,Prem - Leasing,"Director of Regen,Planning & Devlop",1365.00 
8002826232,09/07/2020,EMBRACE UK COMMUNITY SUPPORT CENTRE,Prv Sctr Care Pkage,Director of Adults & Health,1361.60 
8002823706,09/07/2020,KANSSAS HOME CARE LTD,Prv Sctr Care Pkage,Director of Adults & Health,1360.44 
5201335456,09/07/2020,Redacted Personal Data,Prem - Leasing,"Director of Regen,Planning & Devlop",1334.66 
8002826204,09/07/2020,EMBRACE UK COMMUNITY SUPPORT CENTRE,Prv Sctr Care Pkage,Director of Adults & Health,1328.60 
8002826717,09/07/2020,Ambient Support Limited,Prv Sctr Care Pkage,Director of Adults & Health,1314.60 
8002826718,09/07/2020,Ambient Support Limited,Prv Sctr Care Pkage,Director of Adults & Health,1314.60 
1900872831,09/07/2020,WING PARKING LTD T/A WING PARKING,Fees - C Parking Z,"Director of Regen,Planning & Devlop",1300.00 
1900872834,09/07/2020,WING PARKING LTD T/A WING PARKING,Fees - C Parking Z,"Director of Regen,Planning & Devlop",1300.00 
5201335455,09/07/2020,Redacted Personal Data,Prem - Leasing,"Director of Regen,Planning & Devlop",1300.00 
5201335457,09/07/2020,PATTICHIS PROPERTIES,Prem - Leasing,"Director of Regen,Planning & Devlop",1300.00 
5201335466,09/07/2020,Redacted Personal Data,Prem - Leasing,"Director of Regen,Planning & Devlop",1300.00 
8002826262,09/07/2020,AREA 51 EDUCATION LTD,Prv Sctr Care Pkage,Director of Adults & Health,1280.55 
8002826274,09/07/2020,AREA 51 EDUCATION LTD,Prv Sctr Care Pkage,Director of Adults & Health,1280.55 
8002826279,09/07/2020,AREA 51 EDUCATION LTD,Prv Sctr Care Pkage,Director of Adults & Health,1280.55 
8002826282,09/07/2020,AREA 51 EDUCATION LTD,Prv Sctr Care Pkage,Director of Adults & Health,1280.55 
8002826434,09/07/2020,AREA 51 EDUCATION LTD,Prv Sctr Care Pkage,Director of Adults & Health,1255.12 
8002826471,09/07/2020,AREA 51 EDUCATION LTD,Prv Sctr Care Pkage,Director of Adults & Health,1255.12 
5201335453,09/07/2020,Redacted Personal Data,Prem - Leasing,"Director of Regen,Planning & Devlop",1213.33 
8002823691,09/07/2020,KANSSAS HOME CARE LTD,Prv Sctr Care Pkage,Director of Adults & Health,1201.20 
8002826164,09/07/2020,EMBRACE UK COMMUNITY SUPPORT CENTRE,Prv Sctr Care Pkage,Director of Adults & Health,1201.20 
1900872833,09/07/2020,WING PARKING LTD T/A WING PARKING,Fees - C Parking Z,"Director of Regen,Planning & Devlop",1200.00 
8002826639,09/07/2020,SIGN HEALTH,Prv Sctr Care Pkage,Director of Adults & Health,1200.00 
8002826159,09/07/2020,EMBRACE UK COMMUNITY SUPPORT CENTRE,Prv Sctr Care Pkage,Director of Adults & Health,1196.00 
5201335448,09/07/2020,STATEBOND LTD T/A HORNSEY AGENCIES,Prem - Leasing,"Director of Regen,Planning & Devlop",1191.66 
8002826219,09/07/2020,EMBRACE UK COMMUNITY SUPPORT CENTRE,Prv Sctr Care Pkage,Director of Adults & Health,1176.00 
8002825210,09/07/2020,ROCKSOLID 247,Priv - Contractor,Director of Children's Services,1158.00 
8002823676,09/07/2020,KANSSAS HOME CARE LTD,Prv Sctr Care Pkage,Director of Adults & Health,1143.92 
8002826210,09/07/2020,EMBRACE UK COMMUNITY SUPPORT CENTRE,Prv Sctr Care Pkage,Director of Adults & Health,1124.20 
8002826247,09/07/2020,EMBRACE UK COMMUNITY SUPPORT CENTRE,Prv Sctr Care Pkage,Director of Adults & Health,1124.20 
8002826673,09/07/2020,THE ROYAL ASSOCIATION FOR DEAF PEOP,Prv Sctr Care Pkage,Director of Adults & Health,1110.00 
8002823699,09/07/2020,KANSSAS HOME CARE LTD,Prv Sctr Care Pkage,Director of Adults & Health,1107.00 
5201335443,09/07/2020,ADAMS & STYLES,Prem - Leasing,"Director of Regen,Planning & Devlop",1106.47 
8002826439,09/07/2020,AREA 51 EDUCATION LTD,Prv Sctr Care Pkage,Director of Adults & Health,1106.40 
8002826451,09/07/2020,AREA 51 EDUCATION LTD,Prv Sctr Care Pkage,Director of Adults & Health,1106.40 
8002826452,09/07/2020,AREA 51 EDUCATION LTD,Prv Sctr Care Pkage,Director of Adults & Health,1106.40 
5201335438,09/07/2020,ADAMS & STYLES,Prem - Leasing,"Director of Regen,Planning & Devlop",1105.00 
5201335439,09/07/2020,ADAMS & STYLES,Prem - Leasing,"Director of Regen,Planning & Devlop",1105.00 
5201335441,09/07/2020,ADAMS & STYLES,Prem - Leasing,"Director of Regen,Planning & Devlop",1105.00 
5201335442,09/07/2020,ADAMS & STYLES,Prem - Leasing,"Director of Regen,Planning & Devlop",1105.00 
5201335444,09/07/2020,ADAMS & STYLES,Prem - Leasing,"Director of Regen,Planning & Devlop",1105.00 
5201335445,09/07/2020,Redacted Personal Data,Prem - Leasing,"Director of Regen,Planning & Devlop",1105.00 
5201335446,09/07/2020,Redacted Personal Data,Prem - Leasing,"Director of Regen,Planning & Devlop",1105.00 
5201335454,09/07/2020,Redacted Personal Data,Prem - Leasing,"Director of Regen,Planning & Devlop",1105.00 
5201335462,09/07/2020,Redacted Personal Data,Prem - Leasing,"Director of Regen,Planning & Devlop",1105.00 
5201335464,09/07/2020,Redacted Personal Data,Prem - Leasing,"Director of Regen,Planning & Devlop",1105.00 
5201335470,09/07/2020,ORANGE STONE MANAGEMENT LIMITED,Prem - Leasing,"Director of Regen,Planning & Devlop",1105.00 
5201335465,09/07/2020,Redacted Personal Data,Prem - Leasing,"Director of Regen,Planning & Devlop",1083.33 
8002823683,09/07/2020,KANSSAS HOME CARE LTD,Prv Sctr Care Pkage,Director of Adults & Health,1078.00 
1900872835,09/07/2020,WING PARKING LTD T/A WING PARKING,Fees - C Parking Z,"Director of Regen,Planning & Devlop",1056.00 
5201335469,09/07/2020,MORINA PROPERTY LIMITED,Prem - Leasing,"Director of Regen,Planning & Devlop",1050.01 
5201335461,09/07/2020,Redacted Personal Data,Prem - Leasing,"Director of Regen,Planning & Devlop",1040.00 
8002826290,09/07/2020,AREA 51 EDUCATION LTD,Prv Sctr Care Pkage,Director of Adults & Health,1024.44 
8002826438,09/07/2020,AREA 51 EDUCATION LTD,Prv Sctr Care Pkage,Director of Adults & Health,1014.20 
8002824389,09/07/2020,NAS SERVICES LTD,Prv Sctr Care Pkage,Director of Adults & Health,987.20 
8002823697,09/07/2020,KANSSAS HOME CARE LTD,Priv Sec-- LBH & CCG,Director of Adults & Health,980.00 
8002823672,09/07/2020,KANSSAS HOME CARE LTD,Prv Sctr Care Pkage,Director of Adults & Health,976.52 
8002823692,09/07/2020,KANSSAS HOME CARE LTD,Prv Sctr Care Pkage,Director of Adults & Health,945.00 
8002826242,09/07/2020,EMBRACE UK COMMUNITY SUPPORT CENTRE,Prv Sctr Care Pkage,Director of Adults & Health,941.84 
8002826270,09/07/2020,AREA 51 EDUCATION LTD,Prv Sctr Care Pkage,Director of Adults & Health,939.07 
8002826442,09/07/2020,AREA 51 EDUCATION LTD,Prv Sctr Care Pkage,Director of Adults & Health,939.07 
8002826456,09/07/2020,AREA 51 EDUCATION LTD,Prv Sctr Care Pkage,Director of Adults & Health,939.07 
8002826716,09/07/2020,Ambient Support Limited,Prv Sctr Care Pkage,Director of Adults & Health,939.00 
8002825053,09/07/2020,GENEVA ROAD LTD,Vol Sect - Care Pk,Director of Adults & Health,935.04 
8002826727,09/07/2020,GENEVA ROAD LTD,Vol Sect - Care Pk,Director of Adults & Health,935.04 
1900872826,09/07/2020,ONE TIME,Fees Legal External,Assistant Dir Corporate Governance,920.00 
8002826224,09/07/2020,EMBRACE UK COMMUNITY SUPPORT CENTRE,Prv Sctr Care Pkage,Director of Adults & Health,900.92 
8002826227,09/07/2020,EMBRACE UK COMMUNITY SUPPORT CENTRE,Priv Sec-- LBH & CCG,Director of Adults & Health,882.00 
8002823664,09/07/2020,KANSSAS HOME CARE LTD,Prv Sctr Care Pkage,Director of Adults & Health,882.00 
8002826160,09/07/2020,EMBRACE UK COMMUNITY SUPPORT CENTRE,Prv Sctr Care Pkage,Director of Adults & Health,882.00 
8002826176,09/07/2020,EMBRACE UK COMMUNITY SUPPORT CENTRE,Prv Sctr Care Pkage,Director of Adults & Health,882.00 
8002826236,09/07/2020,EMBRACE UK COMMUNITY SUPPORT CENTRE,Prv Sctr Care Pkage,Director of Adults & Health,882.00 
8002826479,09/07/2020,REMARK! LTD,Prv Sctr Care Pkage,Director of Adults & Health,880.00 
8002826725,09/07/2020,CHRISTOPHER HOUSE (LONDON) LTD,Prem - Rents,Director of Children's Services,868.00 
5201335471,09/07/2020,ORANGE STONE MANAGEMENT LIMITED,Prem - Leasing,"Director of Regen,Planning & Devlop",862.33 
8002826188,09/07/2020,EMBRACE UK COMMUNITY SUPPORT CENTRE,Prv Sctr Care Pkage,Director of Adults & Health,838.03 
8002823703,09/07/2020,KANSSAS HOME CARE LTD,Priv Sec-- LBH & CCG,Director of Adults & Health,807.12 
8002826220,09/07/2020,EMBRACE UK COMMUNITY SUPPORT CENTRE,Priv Sec-- LBH & CCG,Director of Adults & Health,798.00 
8002823667,09/07/2020,KANSSAS HOME CARE LTD,Priv Sec-- LBH & CCG,Director of Adults & Health,795.00 
8002823671,09/07/2020,KANSSAS HOME CARE LTD,Prv Sctr Care Pkage,Director of Adults & Health,784.00 
8002823701,09/07/2020,KANSSAS HOME CARE LTD,Prv Sctr Care Pkage,Director of Adults & Health,784.00 
2500021591,09/07/2020,GRANT PAYMENTS,R&M - Day to Day Ext,Director of Environment & Neighbourhoods,778.00 
8002826235,09/07/2020,EMBRACE UK COMMUNITY SUPPORT CENTRE,Prv Sctr Care Pkage,Director of Adults & Health,768.52 
2500021592,09/07/2020,GRANT PAYMENTS,R&M - Day to Day Ext,Director of Environment & Neighbourhoods,753.00 
1900872821,09/07/2020,FIVE PAPER CHAMBERS,Fees Legal External,Assistant Dir Corporate Governance,750.00 
8002826458,09/07/2020,AREA 51 EDUCATION LTD,Prv Sctr Care Pkage,Director of Adults & Health,737.60 
8002826177,09/07/2020,EMBRACE UK COMMUNITY SUPPORT CENTRE,Prv Sctr Care Pkage,Director of Adults & Health,735.60 
8002826163,09/07/2020,EMBRACE UK COMMUNITY SUPPORT CENTRE,Priv Sec-- LBH & CCG,Director of Adults & Health,735.00 
8002823661,09/07/2020,KANSSAS HOME CARE LTD,Prv Sctr Care Pkage,Director of Adults & Health,725.20 
8002826206,09/07/2020,EMBRACE UK COMMUNITY SUPPORT CENTRE,Prv Sctr Care Pkage,Director of Adults & Health,725.00 
8002823687,09/07/2020,KANSSAS HOME CARE LTD,Prv Sctr Care Pkage,Director of Adults & Health,710.52 
8002826194,09/07/2020,EMBRACE UK COMMUNITY SUPPORT CENTRE,Prv Sctr Care Pkage,Director of Adults & Health,710.52 
8002826199,09/07/2020,EMBRACE UK COMMUNITY SUPPORT CENTRE,Prv Sctr Care Pkage,Director of Adults & Health,710.52 
8002826714,09/07/2020,LITTLE GAYNES REST HOME LTD,Priv - Res Short,Director of Adults & Health,702.86 
